Trans Date,Supplier Name,Trans Ref,Net Value,Expense description,Service Code,Category
03/10/2016,Acousticlad (Interiors) Ltd,578643,551.20,Maintenance Of Equipment,Civic Centre,Supplies & Services
03/10/2016,Ashfords,575792,400.00,Consultants Fees,Vehicles Licensing,Supplies & Services
03/10/2016,Ashfords,575794,"1,593.07",Consultants Fees,Premises Licensing,Supplies & Services
03/10/2016,Ashfords,578535,"1,770.50",Consultants Fees,New Pool Project,Supplies & Services
03/10/2016,Aw Jenkinson Transport Ltd,577454,490.00,Comingled Haulage Out,"Materials, Goods For Resale",Transport
03/10/2016,Aw Jenkinson Transport Ltd,577465,"1,470.00",Comingled Haulage Out,"Materials, Goods For Resale",Transport
03/10/2016,C R Willcocks & Co Ltd,578109,458.95,Reactive Repairs,Cemeteries - Operational,Transport
03/10/2016,C R Willcocks & Co Ltd,578111,"2,368.18",Reactive Repairs,Cemeteries - Operational,Transport
03/10/2016,Cambridge Professional Academy,578842,"1,855.00",Staff Training,Learning & Development,Pay
03/10/2016,Change Your Space,578751,300.00,Consultants Fees,General Management,Supplies & Services
03/10/2016,Devon County Council,577118,"5,000.00",Miscellaneous Grants,Grants And Contributions,Supplies & Services
03/10/2016,Devon Norse Ltd,578717,372.04,Cleaning,Custom House Visitor Centre,Premises
03/10/2016,Devon Rape Crisis Service,577444,500.00,Grants Issued,Community Safety Projects,Supplies & Services
03/10/2016,E.On   (Electricity),578532,"1,031.60",Electricity,Livestock/Matford Centre,Premises
03/10/2016,Edenbrown Synergy,578732,"1,054.05",Temp.Contract-Agency Staff,Commercial Section,Pay
03/10/2016,Event Hire Solutions,578743,310.00,Supplies And Equipment,Community Safety Projects,Supplies & Services
03/10/2016,Exeter City Afc Ltd,578642,"3,980.00",Other Expenses,Marketing,Supplies & Services
03/10/2016,F K Commercials Ltd,578012,"1,569.53",Reactive Repairs,Refuse Collection,Transport
03/10/2016,F K Commercials Ltd,578017,264.29,Reactive Repairs,Trade Refuse Collection,Transport
03/10/2016,F K Commercials Ltd,578077,367.70,Reactive Repairs,Refuse Collection,Transport
03/10/2016,F K Commercials Ltd,578104,355.04,Reactive Repairs,Refuse Collection,Transport
03/10/2016,F K Commercials Ltd,578106,485.74,Reactive Repairs,Refuse Collection,Transport
03/10/2016,Gap Personnel,576954,501.35,Casuals Waged-Agency Staff,Materials Reclamation Facility,Pay
03/10/2016,Gap Personnel,576955,392.74,Casuals Waged-Agency Staff,Agency Costs - Waste,Pay
03/10/2016,Holt Jcb Ltd,577293,241.00,Reactive Repairs,"Materials, Goods For Resale",Transport
03/10/2016,Lifestyle Solutions,578843,"3,810.00",Grants Issued,Disabled Facilities Grants,Supplies & Services
03/10/2016,Mediaclash,578513,250.00,Other Expenses,Guildhall Chambers,Supplies & Services
03/10/2016,Ove Arup & Partners Ltd,575150,"65,177.98",Consultants Fees,Bus Station Construction,Supplies & Services
03/10/2016,Psbe Cyber News Group,578641,"1,065.00",Marketing,Innovation Exeter,Supplies & Services
03/10/2016,Red House Hotel,577654,"58,240.00",Bed And Breakfast,Bed And Breakfast,Premises
03/10/2016,Renault Trucks Southwest,578297,294.33,Reactive Repairs,Mayoralty,Transport
03/10/2016,Royal Mail,578730,36.00,Postage/Stamps,Commercial Section,Supplies & Services
03/10/2016,Royal Mail,578730,36.00,Postage/Stamps,Corporate Property Assets,Supplies & Services
03/10/2016,Royal Mail,578730,36.00,Postage/Stamps,Corporate Support Unit,Supplies & Services
03/10/2016,Royal Mail,578730,36.00,Postage/Stamps,Improvement Grants,Supplies & Services
03/10/2016,Royal Mail,578730,36.00,Postage/Stamps,Monitoring Private Housing,Supplies & Services
03/10/2016,Royal Mail,578730,36.00,Postage/Stamps,Premises Licensing,Supplies & Services
03/10/2016,Scheidt & Bachmann (Uk) Ltd,576845,424.50,Maintenance Of Equipment,Car Parks,Supplies & Services
03/10/2016,St Leonards Neighbourhood Association,576762,300.00,Grants Issued,Community Inclusion & Involv'T,Supplies & Services
03/10/2016,System Simulation Ltd,578321,"3,825.00",Licences,Museum Projects,Supplies & Services
03/10/2016,Venn Group Ltd,577155,861.00,Temp.Contract-Agency Staff,Revenues Recovery,Pay
03/10/2016,W B Employment Ltd,576951,722.60,Casuals Waged-Agency Staff,Agency Costs - Waste,Pay
03/10/2016,W B Employment Ltd,576951,263.76,Casuals Waged-Agency Staff,Parks And Playing Fields,Pay
03/10/2016,West End Welding,578726,"1,279.00",Materials,Rechargeable Works,Supplies & Services
03/10/2016,Whistl Uk Ltd,577027,"1,339.76",Postage/Stamps,Mail,Supplies & Services
03/10/2016,Whistl Uk Ltd,577032,829.97,Postage/Stamps,Mail,Supplies & Services
03/10/2016,Whistl Uk Ltd,578101,214.43,Postage/Stamps,Mail,Supplies & Services
03/10/2016,Whistl Uk Ltd,578167,"1,107.61",Postage/Stamps,Mail,Supplies & Services
04/10/2016,Backline Logistic Support,576848,322.44,Casuals Waged-Agency Staff,Car Park Sweeping,Pay
04/10/2016,Backline Logistic Support,577710,404.41,Casuals Waged-Agency Staff,Car Park Sweeping,Pay
04/10/2016,Backline Logistic Support,577757,486.39,Casuals Waged-Agency Staff,Agency Costs - Waste,Pay
04/10/2016,Berry Recruitment,576757,399.23,Casuals Waged-Agency Staff,City Centre Sweeping,Pay
04/10/2016,Berry Recruitment,576820,399.23,Casuals Waged-Agency Staff,City Centre Sweeping,Pay
04/10/2016,Berry Recruitment,576827,334.49,Casuals Waged-Agency Staff,Parks And Playing Fields,Pay
04/10/2016,Berry Recruitment,576862,380.55,Casuals Waged-Agency Staff,City Centre Sweeping,Pay
04/10/2016,Berry Recruitment,576942,430.66,Casuals Waged-Agency Staff,City Centre Sweeping,Pay
04/10/2016,Berry Recruitment,576943,617.93,Casuals Waged-Agency Staff,Reactive Team,Pay
04/10/2016,Berry Recruitment,576944,617.93,Casuals Waged-Agency Staff,City Centre Sweeping,Pay
04/10/2016,Berry Recruitment,576946,399.23,Casuals Waged-Agency Staff,City Centre Sweeping,Pay
04/10/2016,Berry Recruitment,576947,474.13,Casuals Waged-Agency Staff,City Centre Sweeping,Pay
04/10/2016,Berry Recruitment,576948,511.58,Casuals Waged-Agency Staff,City Centre Sweeping,Pay
04/10/2016,Berry Recruitment,576949,511.58,Casuals Waged-Agency Staff,Reactive Team,Pay
04/10/2016,Berry Recruitment,576950,399.23,Casuals Waged-Agency Staff,City Centre Sweeping,Pay
04/10/2016,Berry Recruitment,577734,399.23,Casuals Waged-Agency Staff,City Centre Sweeping,Pay
04/10/2016,Berry Recruitment,577735,399.23,Casuals Waged-Agency Staff,City Centre Sweeping,Pay
04/10/2016,Berry Recruitment,577737,511.58,Casuals Waged-Agency Staff,City Centre Sweeping,Pay
04/10/2016,Berry Recruitment,577739,429.19,Casuals Waged-Agency Staff,Parks And Playing Fields,Pay
04/10/2016,Berry Recruitment,577741,399.23,Casuals Waged-Agency Staff,City Centre Sweeping,Pay
04/10/2016,Berry Recruitment,577744,698.83,Casuals Waged-Agency Staff,Reactive Team,Pay
04/10/2016,British Telecom Plc,575555,"3,538.69",Web Access Service / Swisp,Strata,Supplies & Services
04/10/2016,Brook Street,576844,"1,200.86",Temp.Contract-Agency Staff,Health & Safety Compliance,Pay
04/10/2016,Brook Street,577761,"1,137.99",Temp.Contract-Agency Staff,Health & Safety Compliance,Pay
04/10/2016,Brook Street,578859,"1,037.16",Temp.Contract-Agency Staff,Health & Safety Compliance,Pay
04/10/2016,Building Recruitment Co Ltd,574212,"1,516.29",Temp.Contract-Agency Staff,Planned Works,Pay
04/10/2016,Building Recruitment Co Ltd,577647,729.96,Temp.Contract-Agency Staff,Planned Works,Pay
04/10/2016,Building Recruitment Co Ltd,577776,989.01,Temp.Contract-Agency Staff,Planned Works,Pay
04/10/2016,Building Recruitment Co Ltd,577777,"1,482.48",Temp.Contract-Agency Staff,Planned Works,Pay
04/10/2016,Building Recruitment Co Ltd,578845,729.96,Temp.Contract-Agency Staff,Planned Works,Pay
04/10/2016,Building Recruitment Co Ltd,578846,989.01,Temp.Contract-Agency Staff,Planned Works,Pay
04/10/2016,Bureau Van Dijk,578486,"2,500.00",Marketing,Economy & Tourism Admin,Supplies & Services
04/10/2016,Devon Tree Services Ltd,575717,"1,132.40",Sub-Contractors,Arboricultural - Assets,Premises
04/10/2016,Devon Tree Services Ltd,579123,"2,240.00",Grants Issued,St Loyes Design Fees,Supplies & Services
04/10/2016,Dolphin Lifts South West,578865,"1,574.03",Grants Issued,Disabled Facilities Grants,Supplies & Services
04/10/2016,Dolphin Lifts South West,578866,"1,980.00",Grants Issued,Disabled Facilities Grants,Supplies & Services
04/10/2016,Equita Certificated Bailiffs,578754,0.00,Bailiffs Fees,Revenues Recovery,Supplies & Services
04/10/2016,Exeter Green Partnership,577382,872.00,Grants Issued,The Exeter Board,Supplies & Services
04/10/2016,Gap Personnel,576945,560.48,Casuals Waged-Agency Staff,Other Street Sweeping,Pay
04/10/2016,Gap Personnel,576953,333.56,Casuals Waged-Agency Staff,Cemeteries - Operational,Pay
04/10/2016,Gap Personnel,576953,618.70,Casuals Waged-Agency Staff,Other Street Sweeping,Pay
04/10/2016,Gregory Distribution  Ltd,577139,529.08,Paper Haulage Out,"Materials, Goods For Resale",Transport
04/10/2016,Hospital Radio Exeter,575138,600.00,Grants Issued,The Exeter Board,Supplies & Services
04/10/2016,I J Cannings & Son Limited,575855,"1,445.00",Maintenance Of Equipment,Childrens Play Areas,Supplies & Services
04/10/2016,James Andrews Recruitment Solutions,577771,16.44,Temp.Contract-Agency Staff,Cob Management,Pay
04/10/2016,James Andrews Recruitment Solutions,577771,49.32,Temp.Contract-Agency Staff,Gf Hsg Property Management,Pay
04/10/2016,James Andrews Recruitment Solutions,577771,756.19,Temp.Contract-Agency Staff,Reactive Repairs,Pay
04/10/2016,James Andrews Recruitment Solutions,578853,20.33,Temp.Contract-Agency Staff,Cob Management,Pay
04/10/2016,James Andrews Recruitment Solutions,578853,60.99,Temp.Contract-Agency Staff,Gf Hsg Property Management,Pay
04/10/2016,James Andrews Recruitment Solutions,578853,935.23,Temp.Contract-Agency Staff,Reactive Repairs,Pay
04/10/2016,Jtt Contracting Ltd,570939,257.86,Sub-Contractors,Footpaths Maint - Assets,Premises
04/10/2016,Julian House,577446,"10,000.00",Grants Issued,The Exeter Board,Supplies & Services
04/10/2016,M3 Housing Ltd,577347,"2,600.00",Staff Training,General Management,Pay
04/10/2016,Main Street Signs,578059,360.45,Sub-Contractors,Signs & Sundries - Assets,Premises
04/10/2016,Mears Ltd,578888,"10,385.23",General Maintenance,Repairs To Void Properties,Premises
04/10/2016,Mears Ltd,578890,"1,337.09",General Maintenance,General Maintenance,Premises
04/10/2016,Mears Ltd,578890,101.36,Glazing,General Maintenance,Premises
04/10/2016,Mears Ltd,578890,928.30,Contract Payments,Structural Repairs,Supplies & Services
04/10/2016,Mears Ltd,578893,"5,297.25",Blocks Of Flat Repairs,General Maintenance,Premises
04/10/2016,Mears Ltd,578895,240.98,General Maintenance,Elec Testing/Reactive,Premises
04/10/2016,Mears Ltd,578895,"1,913.51",General Maintenance,General Maintenance,Premises
04/10/2016,Mears Ltd,578895,66.90,Blocks Of Flat Repairs,General Maintenance,Premises
04/10/2016,Mears Ltd,578896,78.36,General Maintenance,Elec Testing/Reactive,Premises
04/10/2016,Mears Ltd,578896,"1,909.05",General Maintenance,General Maintenance,Premises
04/10/2016,Mears Ltd,578901,"1,908.69",General Maintenance,General Maintenance,Premises
04/10/2016,Mears Ltd,578904,517.41,General Maintenance,General Maintenance,Premises
04/10/2016,Mears Ltd,578904,78.24,Blocks Of Flat Repairs,General Maintenance,Premises
04/10/2016,Mears Ltd,578909,43.36,General Maintenance,Elec Testing/Reactive,Premises
04/10/2016,Mears Ltd,578909,708.61,General Maintenance,General Maintenance,Premises
04/10/2016,Mears Ltd,578933,21.68,General Maintenance,Elec Testing/Reactive,Premises
04/10/2016,Mears Ltd,578933,476.82,General Maintenance,General Maintenance,Premises
04/10/2016,Mears Ltd,578937,197.00,General Maintenance,Elec Testing/Reactive,Premises
04/10/2016,Mears Ltd,578937,"2,424.68",General Maintenance,General Maintenance,Premises
04/10/2016,Mears Ltd,578937,"1,160.82",Flat Roofs,General Maintenance,Premises
04/10/2016,Mears Ltd,578937,172.41,Blocks Of Flat Repairs,General Maintenance,Premises
04/10/2016,Mears Ltd,578947,"1,494.78",Decs For Elderly & Disabled,Internal Decoration Prog,Premises
04/10/2016,Mears Ltd,578950,"2,235.36",Decs For Elderly & Disabled,Internal Decoration Prog,Premises
04/10/2016,Mears Ltd,578952,695.63,General Maintenance,Repairs To Void Properties,Premises
04/10/2016,Mears Ltd,578953,"1,754.92",General Maintenance,Repairs To Void Properties,Premises
04/10/2016,Mears Ltd,578965,"4,164.41",General Maintenance,Repairs To Void Properties,Premises
04/10/2016,Mears Ltd,578967,"2,167.06",Gas Equip Replacement,Repairs To Void Properties,Premises
04/10/2016,Mears Ltd,578968,689.58,General Maintenance,Repairs To Void Properties,Premises
04/10/2016,Mears Ltd,579035,873.49,General Maintenance,Repairs To Void Properties,Premises
04/10/2016,Mears Ltd,579036,"1,041.23",General Maintenance,Repairs To Void Properties,Premises
04/10/2016,Mears Ltd,579037,"1,054.20",General Maintenance,Repairs To Void Properties,Premises
04/10/2016,Mears Ltd,579038,"1,304.37",General Maintenance,Repairs To Void Properties,Premises
04/10/2016,Mears Ltd,579039,"2,259.02",General Maintenance,Repairs To Void Properties,Premises
04/10/2016,Mears Ltd,579040,"2,978.46",General Maintenance,Repairs To Void Properties,Premises
04/10/2016,Mears Ltd,579041,"2,473.99",General Maintenance,Repairs To Void Properties,Premises
04/10/2016,Mears Ltd,579043,251.09,General Maintenance,Repairs To Void Properties,Premises
04/10/2016,Mears Ltd,579044,"3,965.23",General Maintenance,Repairs To Void Properties,Premises
04/10/2016,Mears Ltd,579045,"6,805.52",General Maintenance,Repairs To Void Properties,Premises
04/10/2016,Mike Shelston,578175,"2,280.00",Sub-Contractors,Countryside Man - Assets,Premises
04/10/2016,Northgate Public Services (Uk) Ltd,577317,329.16,Maintenance Of Equipment,Strata,Supplies & Services
04/10/2016,Patronus Security Uk Ltd,578943,960.00,Security Patrol,Vehicles Licensing,Premises
04/10/2016,Pmr Products Ltd,578150,789.00,Equipment Tools And Materials,Business Crime Reduction Init,Supplies & Services
04/10/2016,Prime Time Recruitment,576760,76.93,Casuals Waged-Agency Staff,Agency Costs - Waste,Pay
04/10/2016,Prime Time Recruitment,576760,412.13,Casuals Waged-Agency Staff,Other Street Sweeping,Pay
04/10/2016,Ross & Roberts,578755,0.00,Bailiffs Fees,Revenues Recovery,Supplies & Services
04/10/2016,Setsquare Recruitment,577723,182.34,Temp.Contract-Agency Staff,Planned Works,Pay
04/10/2016,Setsquare Recruitment,577723,273.50,Temp.Contract-Agency Staff,Reactive Repairs,Pay
04/10/2016,Sphere Solutions Ltd,577754,192.50,Temp.Contract-Agency Staff,Planned Works,Pay
04/10/2016,Sphere Solutions Ltd,577754,288.75,Temp.Contract-Agency Staff,Reactive Repairs,Pay
04/10/2016,St Sidwells Centre,577447,"5,000.00",Grants Issued,The Exeter Board,Supplies & Services
04/10/2016,The Best Connection Group Ltd,576759,316.83,Casuals Waged-Agency Staff,Other Street Sweeping,Pay
04/10/2016,The Best Connection Group Ltd,576759,"1,267.32",Casuals Waged-Agency Staff,Parks And Playing Fields,Pay
04/10/2016,Venn Group Ltd,578912,245.35,Temp.Contract-Agency Staff,Planned Works,Pay
04/10/2016,Venn Group Ltd,578912,368.03,Temp.Contract-Agency Staff,Reactive Repairs,Pay
04/10/2016,W B Employment Ltd,576758,648.41,Casuals Waged-Agency Staff,Agency Costs - Waste,Pay
04/10/2016,W B Employment Ltd,576758,164.85,Casuals Waged-Agency Staff,Other Street Sweeping,Pay
04/10/2016,W B Employment Ltd,576758,340.69,Casuals Waged-Agency Staff,Parks And Playing Fields,Pay
04/10/2016,Wordsmith Communications,578610,"1,620.00",Publications/Leaflets,Tenant Participation & Liaison,Supplies & Services
04/10/2016,Wordsmith Communications,578611,"2,042.00",Publications/Leaflets,Tenant Participation & Liaison,Supplies & Services
05/10/2016,Bsw Consulting Ltd,574733,"1,775.00",Contract Payments,Structural Repairs,Supplies & Services
05/10/2016,Burrows-Hutchinson Ltd,579164,"2,340.00",Consultants Fees,Affordable Housing Development,Supplies & Services
05/10/2016,Centre For Human Rights + Social Equality Cic,579059,500.00,Grants Issued,Community Safety Projects,Supplies & Services
05/10/2016,Essa Technology,578939,"16,802.00",Cctv Camera Maintenance,Cctv Control Room,Supplies & Services
05/10/2016,Flybe Training Academy,578171,610.00,Conference/Seminars Costs,Affordable Housing Development,Supplies & Services
05/10/2016,H & S Transport Ltd,577499,"1,077.00",Sub-Contractors,Allotments - Assets,Premises
05/10/2016,H & S Transport Ltd,579181,"2,815.10",Sub-Contractors,Land Drainage Water C - Assets,Premises
05/10/2016,H & S Transport Ltd,579184,230.00,Sub-Contractors,Arboricultural - Assets,Premises
05/10/2016,James Andrews Recruitment Solutions,578852,386.69,Temp.Contract-Agency Staff,Development Team,Pay
05/10/2016,Jtt Contracting Ltd,575542,473.58,Sub-Contractors,Signs & Sundries - Assets,Premises
05/10/2016,Jtt Contracting Ltd,579077,525.50,Sub-Contractors,Footpaths Maint - Assets,Premises
05/10/2016,Jtt Contracting Ltd,579087,230.18,Sub-Contractors,Signs & Sundries - Assets,Premises
05/10/2016,K & J Electrical Contractors Ltd,579081,"2,700.00",Planned Rewires,Prog'D Elec Re-Wiring General,Supplies & Services
05/10/2016,Kendall Kingscott Ltd,578970,735.00,Contract Payments,Common Area Footpth/Wall Imps,Supplies & Services
05/10/2016,REDACTED COMMERCIALLY SENSITIVE,578928,647.00,Burial Expenses-Section 46,Cemeteries,Supplies & Services
05/10/2016,M I Davey,579173,850.00,Food,Public Celebrations & Twinning,Supplies & Services
05/10/2016,M I Davey,579174,520.00,Food,Public Celebrations & Twinning,Supplies & Services
05/10/2016,Mears Ltd,578887,520.45,General Maintenance,General Maintenance,Premises
05/10/2016,Mears Ltd,578891,"4,421.34",General Maintenance,General Maintenance,Premises
05/10/2016,Mears Ltd,578897,62.15,General Maintenance,Elec Testing/Reactive,Premises
05/10/2016,Mears Ltd,578897,648.89,General Maintenance,General Maintenance,Premises
05/10/2016,Mears Ltd,578897,83.23,Blocks Of Flat Repairs,General Maintenance,Premises
05/10/2016,Mears Ltd,578918,396.70,General Maintenance,Elec Testing/Reactive,Premises
05/10/2016,Mears Ltd,578918,556.17,General Maintenance,General Maintenance,Premises
05/10/2016,Mears Ltd,578921,81.60,General Maintenance,Elec Testing/Reactive,Premises
05/10/2016,Mears Ltd,578921,233.84,General Maintenance,General Maintenance,Premises
05/10/2016,Mears Ltd,578921,"1,115.34",Flat Roofs,General Maintenance,Premises
05/10/2016,Mears Ltd,578921,47.74,Blocks Of Flat Repairs,General Maintenance,Premises
05/10/2016,Mears Ltd,578926,600.50,General Maintenance,Elec Testing/Reactive,Premises
05/10/2016,Mears Ltd,578926,208.44,General Maintenance,General Maintenance,Premises
05/10/2016,Mears Ltd,578929,560.19,General Maintenance,General Maintenance,Premises
05/10/2016,Mears Ltd,578930,91.29,General Maintenance,Elec Testing/Reactive,Premises
05/10/2016,Mears Ltd,578930,418.52,General Maintenance,General Maintenance,Premises
05/10/2016,Mears Ltd,578930,42.78,Blocks Of Flat Repairs,General Maintenance,Premises
05/10/2016,Mears Ltd,578935,35.00,General Maintenance,Elec Testing/Reactive,Premises
05/10/2016,Mears Ltd,578935,245.00,General Maintenance,General Maintenance,Premises
05/10/2016,Mears Ltd,578942,530.09,General Maintenance,General Maintenance,Premises
05/10/2016,Mears Ltd,578942,54.62,Blocks Of Flat Repairs,General Maintenance,Premises
05/10/2016,Mears Ltd,578945,507.09,General Maintenance,General Maintenance,Premises
05/10/2016,Mears Ltd,578945,21.68,Blocks Of Flat Repairs,General Maintenance,Premises
05/10/2016,Mears Ltd,579060,"1,419.97",General Maintenance,Repairs To Void Properties,Premises
05/10/2016,Mears Ltd,579061,"1,381.52",General Maintenance,General Maintenance,Premises
05/10/2016,Mears Ltd,579061,"1,471.68",Flat Roofs,General Maintenance,Premises
05/10/2016,Mears Ltd,579062,"3,160.07",Decs For Elderly & Disabled,Internal Decoration Prog,Premises
05/10/2016,Mears Ltd,579063,"4,842.57",General Maintenance,Repairs To Void Properties,Premises
05/10/2016,Mears Ltd,579064,"8,025.67",General Maintenance,Repairs To Void Properties,Premises
05/10/2016,Mears Ltd,579065,23.70,General Maintenance,Elec Testing/Reactive,Premises
05/10/2016,Mears Ltd,579065,345.99,General Maintenance,General Maintenance,Premises
05/10/2016,Mears Ltd,579066,197.00,General Maintenance,Elec Testing/Reactive,Premises
05/10/2016,Mears Ltd,579066,"1,018.61",General Maintenance,General Maintenance,Premises
05/10/2016,Mears Ltd,579067,73.59,General Maintenance,Elec Testing/Reactive,Premises
05/10/2016,Mears Ltd,579067,553.14,General Maintenance,General Maintenance,Premises
05/10/2016,Mears Ltd,579068,21.68,General Maintenance,Elec Testing/Reactive,Premises
05/10/2016,Mears Ltd,579068,82.40,Blocks Of Flat Repairs,Elec Testing/Reactive,Premises
05/10/2016,Mears Ltd,579068,368.75,General Maintenance,General Maintenance,Premises
05/10/2016,Mears Ltd,579068,63.29,Sanctuary Scheme,Resettlement Strategy,Supplies & Services
05/10/2016,Mears Ltd,579069,35.51,General Maintenance,Elec Testing/Reactive,Premises
05/10/2016,Mears Ltd,579069,761.58,General Maintenance,General Maintenance,Premises
05/10/2016,Mears Ltd,579070,430.79,General Maintenance,General Maintenance,Premises
05/10/2016,Mears Ltd,579070,21.68,Blocks Of Flat Repairs,General Maintenance,Premises
05/10/2016,Mears Ltd,579072,35.00,General Maintenance,Elec Testing/Reactive,Premises
05/10/2016,Mears Ltd,579072,187.15,General Maintenance,General Maintenance,Premises
05/10/2016,Mears Ltd,579072,66.90,Blocks Of Flat Repairs,General Maintenance,Premises
05/10/2016,Mears Ltd,579073,"1,425.82",General Maintenance,General Maintenance,Premises
05/10/2016,Mears Ltd,579073,"2,565.24",Glazing,General Maintenance,Premises
05/10/2016,Mears Ltd,579074,429.91,General Maintenance,Elec Testing/Reactive,Premises
05/10/2016,Mears Ltd,579074,"5,421.49",General Maintenance,General Maintenance,Premises
05/10/2016,Mears Ltd,579075,21.68,General Maintenance,Elec Testing/Reactive,Premises
05/10/2016,Mears Ltd,579075,409.52,General Maintenance,General Maintenance,Premises
05/10/2016,Mears Ltd,579075,21.68,Blocks Of Flat Repairs,General Maintenance,Premises
05/10/2016,Mears Ltd,579076,80.38,General Maintenance,Elec Testing/Reactive,Premises
05/10/2016,Mears Ltd,579076,640.43,General Maintenance,General Maintenance,Premises
05/10/2016,Mears Ltd,579076,91.72,Blocks Of Flat Repairs,General Maintenance,Premises
05/10/2016,Mears Ltd,579084,59.59,Reactive Repairs To Property,Extralet,Premises
05/10/2016,Mears Ltd,579084,178.88,Repairs To Void Properties,Shared House Psls,Premises
05/10/2016,Mears Ltd,579086,"7,163.53",General Maintenance,Repairs To Void Properties,Premises
05/10/2016,Mears Ltd,579088,"4,976.07",General Maintenance,General Maintenance,Premises
05/10/2016,Mears Ltd,579092,564.19,General Maintenance,General Maintenance,Premises
05/10/2016,Mears Ltd,579097,23.70,General Maintenance,Elec Testing/Reactive,Premises
05/10/2016,Mears Ltd,579097,758.26,General Maintenance,General Maintenance,Premises
05/10/2016,Mears Ltd,579102,78.24,General Maintenance,Elec Testing/Reactive,Premises
05/10/2016,Mears Ltd,579102,617.09,General Maintenance,General Maintenance,Premises
05/10/2016,Mears Ltd,579102,57.22,Blocks Of Flat Repairs,General Maintenance,Premises
05/10/2016,Mears Ltd,579142,510.55,General Maintenance,General Maintenance,Premises
05/10/2016,Mears Ltd,579147,"1,833.26",General Maintenance,Repairs To Void Properties,Premises
05/10/2016,Mears Ltd,579148,"4,215.70",General Maintenance,Repairs To Void Properties,Premises
05/10/2016,Mears Ltd,579151,478.38,General Maintenance,General Maintenance,Premises
05/10/2016,Mears Ltd,579151,210.52,Sanctuary Scheme,Resettlement Strategy,Supplies & Services
05/10/2016,Mears Ltd,579153,301.85,General Maintenance,Elec Testing/Reactive,Premises
05/10/2016,Mears Ltd,579153,"1,446.59",General Maintenance,General Maintenance,Premises
05/10/2016,Mears Ltd,579153,172.41,Glazing,General Maintenance,Premises
05/10/2016,Mears Ltd,579154,"5,908.93",General Maintenance,Repairs To Void Properties,Premises
05/10/2016,Mears Ltd,579155,"4,475.55",General Maintenance,Repairs To Void Properties,Premises
05/10/2016,Mears Ltd,579159,198.55,General Maintenance,Elec Testing/Reactive,Premises
05/10/2016,Mears Ltd,579159,181.03,General Maintenance,General Maintenance,Premises
05/10/2016,Mears Ltd,579159,21.68,Glazing,General Maintenance,Premises
05/10/2016,Morgan Hunt Uk Ltd,578854,925.00,Temp.Contract-Agency Staff,Revenues Recovery,Pay
05/10/2016,Morgan Hunt Uk Ltd,578855,803.40,Temp.Contract-Agency Staff,Revenues Recovery,Pay
05/10/2016,Morgan Hunt Uk Ltd,578856,810.42,Temp.Contract-Agency Staff,Revenues Recovery,Pay
05/10/2016,Morgan Hunt Uk Ltd,578857,"1,000.00",Temp.Contract-Agency Staff,Revenues Recovery,Pay
05/10/2016,Morgan Hunt Uk Ltd,578858,821.34,Temp.Contract-Agency Staff,Revenues Recovery,Pay
05/10/2016,Otis Ltd,578172,"3,919.79",Aim Reactive Repairs,Property Maintenance,Premises
05/10/2016,Relate Exeter & District,579057,300.00,Grants Issued,Community Safety Projects,Supplies & Services
05/10/2016,Thomson Reuters,578765,317.00,Publications/Leaflets,Estate Services,Supplies & Services
05/10/2016,Tolchards Ltd,578889,318.61,Drinks,Exeter Corn Exchange,Supplies & Services
05/10/2016,Venn Group Ltd,574878,"2,300.00",Temp.Contract-Agency Staff,Procurement,Pay
05/10/2016,Venn Group Ltd,575716,"1,840.00",Temp.Contract-Agency Staff,Procurement,Pay
05/10/2016,Vita Play Ltd,576815,"1,193.00",Sub-Contractors,Childrens Play Areas - Assets,Premises
05/10/2016,West End Welding,579180,450.00,Sub-Contractors,Allotments - Assets,Premises
05/10/2016,Whistl Uk Ltd,579122,240.76,Postage/Stamps,Mail,Supplies & Services
05/10/2016,Whistl Uk Ltd,579136,983.87,Postage/Stamps,Mail,Supplies & Services
05/10/2016,Wordsmith Communications,579156,"3,862.00",Publications/Leaflets,Tenant Participation & Liaison,Supplies & Services
05/10/2016,Young Enterprise,578597,770.00,Other Expenses,Marketing,Supplies & Services
06/10/2016,Aebi Schmidt Uk Ltd,578023,615.41,Routine Maintenance,Other Street Sweeping,Transport
06/10/2016,Ancestors Of Dover Ltd (Ancestors Group),577169,383.04,Goods For Resale,Museum Shop,Supplies & Services
06/10/2016,Bartec Auto Id Ltd,463536,"5,312.50",Equipment Tools And Materials,Housing Cleansing Round,Supplies & Services
06/10/2016,Berry Recruitment,578860,451.66,Casuals Waged-Agency Staff,City Centre Sweeping,Pay
06/10/2016,Berry Recruitment,578864,474.13,Casuals Waged-Agency Staff,City Centre Sweeping,Pay
06/10/2016,Berry Recruitment,578906,318.31,Casuals Waged-Agency Staff,City Centre Sweeping,Pay
06/10/2016,Berry Recruitment,578910,399.23,Casuals Waged-Agency Staff,City Centre Sweeping,Pay
06/10/2016,Bollywood Christmas Ltd,577694,250.43,Goods For Resale,Museum Shop,Supplies & Services
06/10/2016,Bsw Consulting Ltd,574732,450.00,General Maintenance,General Maintenance,Premises
06/10/2016,Bsw Consulting Ltd,574732,250.00,Contract Payments,Structural Repairs,Supplies & Services
06/10/2016,Catherine Macdonald,579363,840.00,Course Fees,Health Education,Supplies & Services
06/10/2016,Cobwebs,576834,300.00,General Maintenance,General Maintenance,Premises
06/10/2016,Concept Staffing Ltd,578907,495.73,Casuals Waged-Agency Staff,Car Park Sweeping,Pay
06/10/2016,Concept Staffing Ltd,578907,429.66,Casuals Waged-Agency Staff,Childrens Play Areas,Pay
06/10/2016,Concept Staffing Ltd,578907,941.21,Casuals Waged-Agency Staff,City Centre Sweeping,Pay
06/10/2016,Concept Staffing Ltd,578907,434.46,Casuals Waged-Agency Staff,Parks And Playing Fields,Pay
06/10/2016,Concept Staffing Ltd,578907,818.81,Casuals Waged-Agency Staff,Public Conveniences,Pay
06/10/2016,County Tyres,578310,236.50,Tyres,Refuse Collection,Transport
06/10/2016,E.On   (Electricity),578534,225.39,Electricity,"Museum Store, Exton Road",Premises
06/10/2016,Equita Certificated Bailiffs,579367,0.00,Bailiffs Fees,Revenues Recovery,Supplies & Services
06/10/2016,F K Commercials Ltd,572745,"1,179.75",Routine Maintenance,Green Waste Collection Service,Transport
06/10/2016,F K Commercials Ltd,572745,274.74,Routine Maintenance,Materials Reclamation Facility,Transport
06/10/2016,F K Commercials Ltd,572745,619.18,Routine Maintenance,Other Street Sweeping,Transport
06/10/2016,F K Commercials Ltd,572745,337.32,Routine Maintenance,Reactive Team,Transport
06/10/2016,F K Commercials Ltd,572745,"6,961.47",Routine Maintenance,Refuse Collection,Transport
06/10/2016,F K Commercials Ltd,572745,218.98,Routine Maintenance,Special Collections,Transport
06/10/2016,F K Commercials Ltd,572745,"1,199.74",Routine Maintenance,Trade Refuse Collection,Transport
06/10/2016,Gale & Snowden,579339,"2,944.57",Grants Issued,Rennes House,Supplies & Services
06/10/2016,Gale & Snowden,579340,"1,462.50",Grants Issued,Rennes House,Supplies & Services
06/10/2016,Gap Personnel,577715,430.12,Casuals Waged-Agency Staff,Cemeteries - Operational,Pay
06/10/2016,Gap Personnel,577715,785.48,Casuals Waged-Agency Staff,Other Street Sweeping,Pay
06/10/2016,Gap Personnel,578917,247.48,Casuals Waged-Agency Staff,Cemeteries - Operational,Pay
06/10/2016,Gap Personnel,578917,796.24,Casuals Waged-Agency Staff,Other Street Sweeping,Pay
06/10/2016,Gullivers Truck Hire Ltd,578301,393.16,Routine Maintenance,Parks And Playing Fields,Transport
06/10/2016,Gullivers Truck Hire Ltd,578500,223.59,Reactive Repairs,Parks And Playing Fields,Transport
06/10/2016,Gullivers Truck Hire Ltd,578508,875.00,Fleet - Hire Costs,Refuse Collection,Transport
06/10/2016,Hako Machines Ltd,578898,"1,835.61",Routine Maintenance,Mechanical Sweeping,Transport
06/10/2016,Heritage Books,576553,328.86,Goods For Resale,Ramm,Supplies & Services
06/10/2016,Independent Futures Cic,575854,"10,744.98",Serviced Accommodation,Serviced Accommodation,Premises
06/10/2016,Keycraft,577663,292.02,Goods For Resale,Museum Shop,Supplies & Services
06/10/2016,Masternaut (Uk) Ltd,578640,300.00,Reactive Repairs,Litter Bins,Transport
06/10/2016,Mears Ltd,576549,127.29,General Maintenance,Elec Testing/Reactive,Premises
06/10/2016,Mears Ltd,576549,486.55,General Maintenance,General Maintenance,Premises
06/10/2016,Mears Ltd,576981,538.00,General Maintenance,General Maintenance,Premises
06/10/2016,Mears Ltd,576981,27.88,Blocks Of Flat Repairs,General Maintenance,Premises
06/10/2016,Mears Ltd,576981,21.68,Knights Place Repairs & Maint,Knights Place,Premises
06/10/2016,Mears Ltd,579157,"5,710.26",General Maintenance,Repairs To Void Properties,Premises
06/10/2016,Mears Ltd,579443,632.13,General Maintenance,Repairs To Void Properties,Premises
06/10/2016,Mears Ltd,579444,885.44,General Maintenance,Repairs To Void Properties,Premises
06/10/2016,Mears Ltd,579445,"1,200.14",General Maintenance,Repairs To Void Properties,Premises
06/10/2016,Mears Ltd,579446,"3,786.21",General Maintenance,Repairs To Void Properties,Premises
06/10/2016,Mears Ltd,579447,169.19,General Maintenance,Elec Testing/Reactive,Premises
06/10/2016,Mears Ltd,579447,417.10,General Maintenance,General Maintenance,Premises
06/10/2016,Mears Ltd,579447,65.26,Blocks Of Flat Repairs,General Maintenance,Premises
06/10/2016,Mears Ltd,579448,93.31,General Maintenance,Elec Testing/Reactive,Premises
06/10/2016,Mears Ltd,579448,261.70,General Maintenance,General Maintenance,Premises
06/10/2016,Mears Ltd,579448,142.54,Glazing,General Maintenance,Premises
06/10/2016,Mears Ltd,579449,301.13,General Maintenance,Elec Testing/Reactive,Premises
06/10/2016,Mears Ltd,579449,21.68,Blocks Of Flat Repairs,Elec Testing/Reactive,Premises
06/10/2016,Mears Ltd,579449,"1,922.86",General Maintenance,General Maintenance,Premises
06/10/2016,Mears Ltd,579450,308.56,General Maintenance,Elec Testing/Reactive,Premises
06/10/2016,Mears Ltd,579450,294.35,General Maintenance,General Maintenance,Premises
06/10/2016,Mears Ltd,579451,324.93,General Maintenance,Elec Testing/Reactive,Premises
06/10/2016,Mears Ltd,579451,21.68,Blocks Of Flat Repairs,Elec Testing/Reactive,Premises
06/10/2016,Mears Ltd,579451,521.81,General Maintenance,General Maintenance,Premises
06/10/2016,Mears Ltd,579452,252.13,General Maintenance,Elec Testing/Reactive,Premises
06/10/2016,Mears Ltd,579452,322.65,General Maintenance,General Maintenance,Premises
06/10/2016,Mears Ltd,579452,253.46,Sanctuary Scheme,Resettlement Strategy,Supplies & Services
06/10/2016,Mears Ltd,579453,680.84,General Maintenance,Repairs To Void Properties,Premises
06/10/2016,Mears Ltd,579454,493.58,General Maintenance,Repairs To Void Properties,Premises
06/10/2016,Mears Ltd,579455,333.67,General Maintenance,General Maintenance,Premises
06/10/2016,Mears Ltd,579456,23.70,General Maintenance,Elec Testing/Reactive,Premises
06/10/2016,Mears Ltd,579456,230.22,General Maintenance,General Maintenance,Premises
06/10/2016,Mears Ltd,579456,55.04,Blocks Of Flat Repairs,General Maintenance,Premises
06/10/2016,Mears Ltd,579457,293.80,Reactive Repairs To Property,Psl Properties,Premises
06/10/2016,Mears Ltd,579458,596.12,General Maintenance,Elec Testing/Reactive,Premises
06/10/2016,Mears Ltd,579458,447.55,General Maintenance,General Maintenance,Premises
06/10/2016,Mears Ltd,579459,36.21,General Maintenance,Elec Testing/Reactive,Premises
06/10/2016,Mears Ltd,579459,361.49,General Maintenance,General Maintenance,Premises
06/10/2016,Mears Ltd,579459,42.78,Blocks Of Flat Repairs,General Maintenance,Premises
06/10/2016,Mears Ltd,579459,31.53,Knights Place Repairs & Maint,Knights Place,Premises
06/10/2016,Mears Ltd,579460,35.61,General Maintenance,Elec Testing/Reactive,Premises
06/10/2016,Mears Ltd,579460,537.64,General Maintenance,General Maintenance,Premises
06/10/2016,Mears Ltd,579461,43.35,General Maintenance,Elec Testing/Reactive,Premises
06/10/2016,Mears Ltd,579461,545.94,General Maintenance,General Maintenance,Premises
06/10/2016,Mears Ltd,579462,78.36,General Maintenance,Elec Testing/Reactive,Premises
06/10/2016,Mears Ltd,579462,853.12,General Maintenance,General Maintenance,Premises
06/10/2016,Meridian Business Support,578844,647.53,Temp.Contract-Agency Staff,Estate Services,Pay
06/10/2016,Pell Frischmann Consultants Ltd,579362,215.00,Contract Payments,Structural Repairs,Supplies & Services
06/10/2016,Prime Time Recruitment,577656,406.63,Casuals Waged-Agency Staff,Other Street Sweeping,Pay
06/10/2016,Recruitment Solutions (Sw) Ltd,577768,351.68,Casuals Waged-Agency Staff,Parks And Playing Fields,Pay
06/10/2016,Renault Trucks Southwest,578298,449.46,Routine Maintenance,Property Assets - Builders,Transport
06/10/2016,Robin Harford,579621,400.00,Event Promotion,Ramm,Supplies & Services
06/10/2016,South Gate Gallery,579373,249.38,Mayors Expenses,Mayoralty,Supplies & Services
06/10/2016,Southern Electric,578612,238.14,Electricity,St Nicholas Priory,Premises
06/10/2016,The Best Connection Group Ltd,577769,397.38,Casuals Waged-Agency Staff,Other Street Sweeping,Pay
06/10/2016,The Best Connection Group Ltd,577769,805.50,Casuals Waged-Agency Staff,Parks And Playing Fields,Pay
06/10/2016,Tunstall Healthcare (Uk) Ltd,578946,220.00,Home Call Alarm Equipment,Home Call Alarm Service,Supplies & Services
06/10/2016,Tunstall Healthcare (Uk) Ltd,578948,749.40,Staff Training,Learning & Development,Pay
06/10/2016,Westcountry Fire Protection Ltd,576731,297.13,General Maintenance,Service Contracts,Premises
07/10/2016,A1 Removals And Storage,573602,410.30,Tenants Removal And Legal Exp,Bed And Breakfast,Supplies & Services
07/10/2016,Accent Wire Ltd,579371,"1,400.00",Equipment Tools And Materials,Materials Reclamation Facility,Supplies & Services
07/10/2016,Airtech Humidity Controls Ltd T/A,577763,399.60,General Maintenance,General Maintenance,Premises
07/10/2016,Airtech Humidity Controls Ltd T/A,577881,538.00,General Maintenance,General Maintenance,Premises
07/10/2016,Airtech Humidity Controls Ltd T/A,577882,512.37,Contract Payments,Adaptations,Supplies & Services
07/10/2016,Arcadis Llp,578138,"10,103.65",Consultants Fees,Leisure Complex - Build,Supplies & Services
07/10/2016,Arcadis Llp,578141,"3,500.00",Consultants Fees,Bus Station Construction,Supplies & Services
07/10/2016,Ashfords,579359,"3,294.60",Consultants Fees,Major Projects,Supplies & Services
07/10/2016,Aw Jenkinson Transport Ltd,578776,490.00,Comingled Haulage Out,"Materials, Goods For Resale",Transport
07/10/2016,Berry Recruitment,578861,399.23,Casuals Waged-Agency Staff,City Centre Sweeping,Pay
07/10/2016,Building Recruitment Co Ltd,576743,681.41,Temp.Contract-Agency Staff,Choice Based Lettings,Pay
07/10/2016,Building Recruitment Co Ltd,576745,694.40,Temp.Contract-Agency Staff,Choice Based Lettings,Pay
07/10/2016,Building Recruitment Co Ltd,578849,734.08,Temp.Contract-Agency Staff,Housing Advice,Pay
07/10/2016,Carrier Direct Ltd,579815,150.00,Marketing,Ramm,Supplies & Services
07/10/2016,Carrier Direct Ltd,579815,350.00,Project Work,Tourism,Supplies & Services
07/10/2016,Chubb Fire + Security,578969,"1,243.38",Warden Call Alarm,Service Contracts,Premises
07/10/2016,Chubb Fire + Security,579189,217.95,Warden Call Alarm,Service Contracts,Premises
07/10/2016,Concept Informatics Ltd ,576853,657.26,Casuals Waged-Agency Staff,Agency Costs - Waste,Pay
07/10/2016,Concept Staffing Ltd,578908,818.81,Casuals Waged-Agency Staff,Materials Reclamation Facility,Pay
07/10/2016,Concept Staffing Ltd,578913,901.22,Casuals Waged-Agency Staff,Agency Costs - Waste,Pay
07/10/2016,County Tyres,579478,374.80,Tyres,Refuse Collection,Transport
07/10/2016,County Tyres,579547,256.00,Tyres,Refuse Collection,Transport
07/10/2016,Dac Beachcroft Claims Ltd,579531,0.00,Insurance Excess,Livestock/Matford Centre,Pay
07/10/2016,Daniels Healthcare Ltd,575253,775.20,Sharp Box,Trade Clinical Waste Coll,Supplies & Services
07/10/2016,Devon Tree Services Ltd,578746,476.80,Hra Shrubs & Trees - Communal,Estate Maintenance,Premises
07/10/2016,Devon Tree Services Ltd,578747,238.40,Hra Shrubs & Trees - Communal,Estate Maintenance,Premises
07/10/2016,Devon Tree Services Ltd,579187,327.80,Hra Shrubs & Trees - Communal,Estate Maintenance,Premises
07/10/2016,Devon Tree Services Ltd,579292,596.00,Sub-Contractors,Arboricultural - Assets,Premises
07/10/2016,Devon Tree Services Ltd,579294,"1,549.60",Sub-Contractors,Arboricultural - Assets,Premises
07/10/2016,E.On   (Electricity),579369,894.33,Electricity,Livestock/Matford Centre,Premises
07/10/2016,Exeair,578502,405.80,Maintenance Of Equipment,Materials Reclamation Facility,Supplies & Services
07/10/2016,Fire Defence Servicing Ltd,578510,900.00,Aim Service & Maintenance,Property Maintenance,Premises
07/10/2016,Formatika,579893,931.00,Museum - Temp Exhibitions,Ramm,Supplies & Services
07/10/2016,Gap Personnel,578920,317.42,Casuals Waged-Agency Staff,Agency Costs - Waste,Pay
07/10/2016,Gap Personnel,578934,796.24,Casuals Waged-Agency Staff,Other Street Sweeping,Pay
07/10/2016,Glen Cleaning,579526,"6,087.95",Cleaning,Civic Centre,Premises
07/10/2016,Jon-Paul Hedge,579749,"2,495.83",Consultants Fees,Press & Public Relations,Supplies & Services
07/10/2016,Jtt Contracting Ltd,579514,450.00,Aim Service & Maintenance,Materials Reclamation Facility,Premises
07/10/2016,K & J Electrical Contractors Ltd,579591,791.68,Planned Rewires,Prog'D Elec Re-Wiring General,Supplies & Services
07/10/2016,K & J Electrical Contractors Ltd,579593,836.98,Planned Rewires,Prog'D Elec Re-Wiring General,Supplies & Services
07/10/2016,Lyreco Uk Ltd,579600,43.49,Stationery,Chief Executive & Growth Dir,Supplies & Services
07/10/2016,Lyreco Uk Ltd,579600,173.99,Stationery,Corporate Support Unit,Supplies & Services
07/10/2016,M W Gozna Services Ltd,579755,"4,210.42",Grants Issued,Disabled Facilities Grants,Supplies & Services
07/10/2016,Mat Electrics Ltd,577024,218.55,Aim Reactive Repairs,Property Maintenance,Premises
07/10/2016,Mears Ltd,577334,"1,348.67",General Maintenance,General Maintenance,Premises
07/10/2016,Mears Ltd,577334,796.31,Glazing,General Maintenance,Premises
07/10/2016,Mears Ltd,578899,21.68,General Maintenance,Elec Testing/Reactive,Premises
07/10/2016,Mears Ltd,578899,464.89,General Maintenance,General Maintenance,Premises
07/10/2016,Mears Ltd,578899,42.78,Floor Tiles,General Maintenance,Premises
07/10/2016,Mears Ltd,578944,21.68,General Maintenance,Elec Testing/Reactive,Premises
07/10/2016,Mears Ltd,578944,326.30,General Maintenance,General Maintenance,Premises
07/10/2016,Mears Ltd,578944,41.33,Knights Place Repairs & Maint,Knights Place,Premises
07/10/2016,Mears Ltd,578944,41.33,General Maintenance,Repairs To Void Properties,Premises
07/10/2016,Mears Ltd,579089,459.58,General Maintenance,Elec Testing/Reactive,Premises
07/10/2016,Mears Ltd,579089,"1,286.16",General Maintenance,General Maintenance,Premises
07/10/2016,Mears Ltd,579486,35.00,General Maintenance,Elec Testing/Reactive,Premises
07/10/2016,Mears Ltd,579486,403.87,General Maintenance,General Maintenance,Premises
07/10/2016,Mears Ltd,579486,35.00,Glazing,General Maintenance,Premises
07/10/2016,Mears Ltd,579490,"1,035.04",General Maintenance,General Maintenance,Premises
07/10/2016,Mears Ltd,579491,"1,450.61",General Maintenance,General Maintenance,Premises
07/10/2016,Mears Ltd,579491,67.89,Blocks Of Flat Repairs,General Maintenance,Premises
07/10/2016,Mears Ltd,579492,"1,579.63",General Maintenance,General Maintenance,Premises
07/10/2016,Mears Ltd,579492,30.41,Sanctuary Scheme,Resettlement Strategy,Supplies & Services
07/10/2016,Mears Ltd,579493,56.48,General Maintenance,Elec Testing/Reactive,Premises
07/10/2016,Mears Ltd,579493,"3,091.31",General Maintenance,General Maintenance,Premises
07/10/2016,Mears Ltd,579493,"2,803.92",Blocks Of Flat Repairs,General Maintenance,Premises
07/10/2016,Mears Ltd,579496,65.04,General Maintenance,Elec Testing/Reactive,Premises
07/10/2016,Mears Ltd,579496,"2,114.67",General Maintenance,General Maintenance,Premises
07/10/2016,Mears Ltd,579496,"1,092.15",Glazing,General Maintenance,Premises
07/10/2016,Mears Ltd,579496,43.36,Blocks Of Flat Repairs,General Maintenance,Premises
07/10/2016,Mears Ltd,579497,"5,196.46",Decs For Elderly & Disabled,Internal Decoration Prog,Premises
07/10/2016,Mears Ltd,579499,377.42,General Maintenance,General Maintenance,Premises
07/10/2016,Mears Ltd,579501,211.91,General Maintenance,General Maintenance,Premises
07/10/2016,Mears Ltd,579502,77.25,General Maintenance,General Maintenance,Premises
07/10/2016,Mears Ltd,579502,21.68,Knights Place Repairs & Maint,Knights Place,Premises
07/10/2016,Mears Ltd,579502,210.00,Contract Payments,Structural Repairs,Supplies & Services
07/10/2016,Mears Ltd,579504,"2,441.34",Decs For Elderly & Disabled,Internal Decoration Prog,Premises
07/10/2016,Mears Ltd,579581,105.00,General Maintenance,Elec Testing/Reactive,Premises
07/10/2016,Mears Ltd,579581,"1,745.57",General Maintenance,General Maintenance,Premises
07/10/2016,Mears Ltd,579586,261.23,General Maintenance,Elec Testing/Reactive,Premises
07/10/2016,Mears Ltd,579586,"3,903.10",General Maintenance,General Maintenance,Premises
07/10/2016,Mears Ltd,579587,271.42,General Maintenance,General Maintenance,Premises
07/10/2016,Mears Ltd,579588,"2,338.71",Decs For Elderly & Disabled,Internal Decoration Prog,Premises
07/10/2016,Mears Ltd,579589,"2,001.25",Decs For Elderly & Disabled,Internal Decoration Prog,Premises
07/10/2016,Mears Ltd,579590,792.46,Decs For Elderly & Disabled,Internal Decoration Prog,Premises
07/10/2016,Meridian Business Support,579782,654.10,Temp.Contract-Agency Staff,Estate Services,Pay
07/10/2016,Pell Frischmann Consultants Ltd,578165,400.00,Contract Payments,Structural Repairs,Supplies & Services
07/10/2016,Pell Frischmann Consultants Ltd,578902,290.00,Contract Payments,Structural Repairs,Supplies & Services
07/10/2016,Prime Time Recruitment,577648,241.78,Casuals Waged-Agency Staff,Agency Costs - Waste,Pay
07/10/2016,Prime Time Recruitment,577648,406.63,Casuals Waged-Agency Staff,Other Street Sweeping,Pay
07/10/2016,Prime Time Recruitment,578951,241.78,Casuals Waged-Agency Staff,Agency Costs - Waste,Pay
07/10/2016,Prime Time Recruitment,578951,406.63,Casuals Waged-Agency Staff,Other Street Sweeping,Pay
07/10/2016,Recruitment Solutions (Sw) Ltd,577767,324.21,Casuals Waged-Agency Staff,Agency Costs - Waste,Pay
07/10/2016,Rob Sims,579364,"2,860.00",Consultants Fees,Leisure Complex - Pr,Supplies & Services
07/10/2016,Room Service,579527,296.47,Food,Civic Centre,Supplies & Services
07/10/2016,South Devon College,579848,"1,500.00",Staff Training,Learning & Development,Pay
07/10/2016,South West Compactor Services,578724,607.16,Maintenance Of Equipment,Materials Reclamation Facility,Supplies & Services
07/10/2016,South West Compactor Services,579166,300.81,Maintenance Of Equipment,Materials Reclamation Facility,Supplies & Services
07/10/2016,Southern Electric,578086,329.39,Electricity,Cemeteries,Premises
07/10/2016,The Exeter Northcott Theatre Company,579464,"3,823.55",Travel & Attraction Tickets,Exeter Visitor Information,Supplies & Services
07/10/2016,The Two Moors Festival,579468,594.89,Travel & Attraction Tickets,Exeter Visitor Information,Supplies & Services
07/10/2016,The Two Moors Festival,579469,309.70,Travel & Attraction Tickets,Exeter Visitor Information,Supplies & Services
07/10/2016,Trump Engineering Ltd,578927,226.00,Maintenance Of Equipment,Materials Reclamation Facility,Supplies & Services
07/10/2016,Trump Engineering Ltd,578931,224.00,Maintenance Of Equipment,Materials Reclamation Facility,Supplies & Services
07/10/2016,Worldwide Waste Wise Ltd,579857,300.00,Staff Training,Learning & Development,Pay
10/10/2016,Advanced Business Solutions,579534,"42,840.00",Software Licences/Support,Strata,Supplies & Services
10/10/2016,Ashton Cleaning Services (Sw) Ltd,578721,312.00,Cleaning,The Haven,Premises
10/10/2016,Atg Ltd,579578,609.21,Travel & Attraction Tickets,Exeter Visitor Information,Supplies & Services
10/10/2016,Atg Ltd,579584,766.75,Travel & Attraction Tickets,Exeter Visitor Information,Supplies & Services
10/10/2016,Concept Staffing Ltd,577712,528.08,Temp.Contract-Agency Staff,Ramm,Pay
10/10/2016,D R Jones (Yeovil) Ltd,579506,"1,218.00",Contract Payments,Common Area Footpth/Wall Imps,Supplies & Services
10/10/2016,D R Jones (Yeovil) Ltd,579566,985.00,Contract Payments,Damp Ingress Repairs,Supplies & Services
10/10/2016,D R Jones (Yeovil) Ltd,579571,"1,608.00",General Maintenance,General Maintenance,Premises
10/10/2016,D R Jones (Yeovil) Ltd,579573,310.00,General Maintenance,General Maintenance,Premises
10/10/2016,D R Jones (Yeovil) Ltd,579574,736.00,General Maintenance,Repairs To Void Properties,Premises
10/10/2016,David Cornick,579360,385.00,Sub-Contractors,Ecqt Suspense,Premises
10/10/2016,Devon Tree Services Ltd,578749,327.80,Hra Shrubs & Trees - Communal,Estate Maintenance,Premises
10/10/2016,Devon Tree Services Ltd,579185,"1,430.40",Hra Shrubs & Trees - Communal,Estate Maintenance,Premises
10/10/2016,E C Jones Ltd,573882,224.00,Museum - Temp Exhibitions,Ramm,Supplies & Services
10/10/2016,Edf Energy Customers Ltd,578492,259.93,Electricity,Underground Passages,Premises
10/10/2016,European Asbestos Services Ltd,574089,"3,468.74",Asbestos Removal,Asbestos Removal,Premises
10/10/2016,Experian Ltd,579331,545.00,Experian,Nndr Collection,Supplies & Services
10/10/2016,Guardian Security Company,579537,"4,215.32",Blocks Of Flat Repairs,General Maintenance,Premises
10/10/2016,Ian Williams Ltd,579617,"96,789.84",General Maintenance,Low Maint & Painting Flats,Premises
10/10/2016,Kendall Kingscott Ltd,579509,"45,680.88",Contract Payments,Laings Refurbishments,Supplies & Services
10/10/2016,Kor Communications,579366,"3,500.00",Marketing,Marketing,Supplies & Services
10/10/2016,Lyreco Uk Ltd,575232,395.35,Equipment Tools And Materials,Leisure Facilities Contract,Supplies & Services
10/10/2016,Mears Ltd,579144,692.65,General Maintenance,General Maintenance,Premises
10/10/2016,Mears Ltd,579144,57.50,Blocks Of Flat Repairs,General Maintenance,Premises
10/10/2016,Mears Ltd,579583,67.16,General Maintenance,Elec Testing/Reactive,Premises
10/10/2016,Mears Ltd,579583,"1,071.30",General Maintenance,General Maintenance,Premises
10/10/2016,Mears Ltd,579583,21.68,Floor Tiles,General Maintenance,Premises
10/10/2016,Recruitment Solutions (Sw) Ltd,574263,340.69,Casuals Waged-Agency Staff,Parks And Playing Fields,Pay
10/10/2016,Roman Glass Ltd,577747,211.50,Sub-Contractors,Parks And Playing Fields,Premises
10/10/2016,Scheidt & Bachmann (Uk) Ltd,578745,860.00,Maintenance Of Equipment,Car Parks,Supplies & Services
10/10/2016,Shield Environmental Services,574085,"7,162.00",Asbestos Removal,Asbestos Removal,Premises
10/10/2016,Westpointe Ltd,577890,"28,825.00",Contract Payments,Common Area Footpth/Wall Imps,Supplies & Services
11/10/2016,Advanced Legal Solutions Ltd,579349,494.00,Subscriptions,Lettings & Leasehold,Supplies & Services
11/10/2016,Alpha Logistics,580221,110.00,Postage/Stamps,Civic Centre,Supplies & Services
11/10/2016,Alpha Logistics,580221,22.00,Other Expenses,Exeter Corn Exchange,Supplies & Services
11/10/2016,Alpha Logistics,580221,22.00,Other Expenses,Livestock/Matford Centre,Supplies & Services
11/10/2016,Alpha Logistics,580221,110.00,Postage/Stamps,Oakwood House Administrative C,Supplies & Services
11/10/2016,Atg Ltd,579585,236.54,Travel & Attraction Tickets,Exeter Visitor Information,Supplies & Services
11/10/2016,Bsw Consulting Ltd,580063,520.00,General Maintenance,General Maintenance,Premises
11/10/2016,Bsw Consulting Ltd,580065,520.00,Blocks Of Flat Repairs,General Maintenance,Premises
11/10/2016,Bsw Consulting Ltd,580068,520.00,Contract Payments,Structural Repairs,Supplies & Services
11/10/2016,Cale Briparc Ltd,579345,"7,600.00",Maintenance Of Equipment,Car Parks,Supplies & Services
11/10/2016,D R Jones (Yeovil) Ltd,580059,"33,388.32",Contract Payments,Fire Prevention Work,Supplies & Services
11/10/2016,D R Jones (Yeovil) Ltd,580060,"4,126.35",Contract Payments,Kitchen Replacements,Supplies & Services
11/10/2016,D R Jones (Yeovil) Ltd,580062,"3,226.45",Contract Payments,Bathroom Replacements,Supplies & Services
11/10/2016,D R Jones (Yeovil) Ltd,580064,"2,840.11",Contract Payments,Bathroom Replacements,Supplies & Services
11/10/2016,D R Jones (Yeovil) Ltd,580067,"3,596.66",Contract Payments,Bathroom Replacements,Supplies & Services
11/10/2016,D R Jones (Yeovil) Ltd,580069,"2,897.79",Contract Payments,Bathroom Replacements,Supplies & Services
11/10/2016,D R Jones (Yeovil) Ltd,580071,"2,886.40",Contract Payments,Bathroom Replacements,Supplies & Services
11/10/2016,D R Jones (Yeovil) Ltd,580072,"2,524.36",Contract Payments,Bathroom Replacements,Supplies & Services
11/10/2016,D R Jones (Yeovil) Ltd,580073,"3,429.50",Contract Payments,Bathroom Replacements,Supplies & Services
11/10/2016,D R Jones (Yeovil) Ltd,580074,"2,903.05",Contract Payments,Bathroom Replacements,Supplies & Services
11/10/2016,D R Jones (Yeovil) Ltd,580077,"3,071.80",Contract Payments,Bathroom Replacements,Supplies & Services
11/10/2016,D R Jones (Yeovil) Ltd,580078,"2,788.60",Contract Payments,Bathroom Replacements,Supplies & Services
11/10/2016,D R Jones (Yeovil) Ltd,580079,"2,857.00",Contract Payments,Bathroom Replacements,Supplies & Services
11/10/2016,D R Jones (Yeovil) Ltd,580080,"2,985.93",Contract Payments,Bathroom Replacements,Supplies & Services
11/10/2016,D R Jones (Yeovil) Ltd,580081,"5,075.00",Contract Payments,Kitchen Replacements,Supplies & Services
11/10/2016,D R Jones (Yeovil) Ltd,580082,"4,242.72",Contract Payments,Kitchen Replacements,Supplies & Services
11/10/2016,D R Jones (Yeovil) Ltd,580083,"5,162.43",Contract Payments,Kitchen Replacements,Supplies & Services
11/10/2016,Dolphin Lifts South West,579752,"4,885.00",Grants Issued,Disabled Facilities Grants,Supplies & Services
11/10/2016,Edf Energy Customers Ltd,580020,872.95,Electricity,Commercial Properties,Premises
11/10/2016,Glendale Countryside Ltd,570372,"7,276.81",Sub-Contractors,Parks & Playing Field - Assets,Premises
11/10/2016,H & S Transport Ltd,579186,370.00,Sub-Contractors,Parks & Playing Field - Assets,Premises
11/10/2016,Joe Webster,579615,613.00,Artist Fees,Custom House Visitor Centre,Supplies & Services
11/10/2016,Jtt Contracting Ltd,579811,277.26,Sub-Contractors,Signs & Sundries - Assets,Premises
11/10/2016,K & J Electrical Contractors Ltd,580070,"1,021.44",Planned Rewires,Prog'D Elec Re-Wiring General,Supplies & Services
11/10/2016,Path,577696,"17,098.75",Private Rented Access Scheme,Resettlement Strategy,Supplies & Services
11/10/2016,Premier Roofing Contractors Ltd,579895,327.62,General Maintenance,General Maintenance,Premises
11/10/2016,REDACTED PERSONAL DATA,579753,510.64,Building Control Fees,Building Control Fee Earning,Income
11/10/2016,Robert Heath Heating Ltd,580029,"1,089.27",Gas & Central Heat Servicing,Service Contracts,Premises
11/10/2016,Robert Heath Heating Ltd,580057,"5,446.35",Gas & Central Heat Servicing,Service Contracts,Premises
11/10/2016,Robert Heath Heating Ltd,580061,38.00,General Maintenance,General Maintenance,Premises
11/10/2016,Robert Heath Heating Ltd,580061,"7,898.32",Gas Equip Replacement,General Maintenance,Premises
11/10/2016,Robert Heath Heating Ltd,580061,105.57,General Maintenance,Repairs To Void Properties,Premises
11/10/2016,Sampson Hall Ltd,580205,"7,000.00",Consultants Fees,Human Resources,Supplies & Services
11/10/2016,Sky Platform Hire Ltd,578143,395.00,Materials,Rechargeable Works,Supplies & Services
11/10/2016,South West Water,578494,260.64,Water,Allotments - Assets,Premises
11/10/2016,Southern Electric,578525,833.07,Electricity,Car Parks - Assets,Premises
11/10/2016,Southern Electric,578529,213.34,Electricity,Car Parks - Assets,Premises
11/10/2016,Southern Electric,578531,972.69,Electricity,Car Parks - Assets,Premises
11/10/2016,Southern Electric,578544,"3,886.65",Electricity,Facilities Management - Assets,Premises
11/10/2016,The Oyster Partnership Ltd,577171,"1,565.50",Temp.Contract-Agency Staff,Planning,Pay
11/10/2016,The Oyster Partnership Ltd,577452,480.50,Temp.Contract-Agency Staff,Planning,Pay
11/10/2016,The Oyster Partnership Ltd,577462,"1,450.65",Temp.Contract-Agency Staff,Planning,Pay
11/10/2016,The Oyster Partnership Ltd,577708,961.00,Temp.Contract-Agency Staff,Planning,Pay
11/10/2016,Tolchards Ltd,580051,"1,232.51",Drinks,Exeter Corn Exchange,Supplies & Services
11/10/2016,Wessex Group Ltd,580050,322.35,Planned Rewires,Prog'D Elec Re-Wiring General,Supplies & Services
12/10/2016,A1 Removals And Storage,580256,209.26,Tenants Removal And Legal Exp,Reactive Repairs,Supplies & Services
12/10/2016,A1 Removals And Storage,580258,209.26,Tenants Removal And Legal Exp,Reactive Repairs,Supplies & Services
12/10/2016,Andrew Hart Industrial Roofing Ltd,580212,"7,200.00",Contract Payments,Programmed Re-Roofing,Supplies & Services
12/10/2016,Burn The Curtain Theatre,579813,"2,000.00",Special Events,Arts & Events,Supplies & Services
12/10/2016,Cobwebs,579318,"16,122.82",Hra Routine Cleaning Contract,Customer Relations,Premises
12/10/2016,D R Jones (Yeovil) Ltd,580177,"3,052.89",Contract Payments,Bathroom Replacements,Supplies & Services
12/10/2016,D R Jones (Yeovil) Ltd,580178,"4,630.25",Contract Payments,Kitchen Replacements,Supplies & Services
12/10/2016,D R Jones (Yeovil) Ltd,580179,"3,180.82",Contract Payments,Bathroom Replacements,Supplies & Services
12/10/2016,D R Jones (Yeovil) Ltd,580184,"3,370.28",Contract Payments,Bathroom Replacements,Supplies & Services
12/10/2016,D R Jones (Yeovil) Ltd,580188,"4,139.08",Contract Payments,Kitchen Replacements,Supplies & Services
12/10/2016,D R Jones (Yeovil) Ltd,580194,"2,733.83",Contract Payments,Bathroom Replacements,Supplies & Services
12/10/2016,D R Jones (Yeovil) Ltd,580266,"5,595.22",Contract Payments,Bathroom Replacements,Supplies & Services
12/10/2016,D R Jones (Yeovil) Ltd,580269,"2,898.65",Contract Payments,Bathroom Replacements,Supplies & Services
12/10/2016,D R Jones (Yeovil) Ltd,580270,"2,691.01",Contract Payments,Bathroom Replacements,Supplies & Services
12/10/2016,D R Jones (Yeovil) Ltd,580272,"2,731.67",Contract Payments,Bathroom Replacements,Supplies & Services
12/10/2016,D R Jones (Yeovil) Ltd,580274,616.14,Planned Rewires,Prog'D Elec Re-Wiring General,Supplies & Services
12/10/2016,D R Jones (Yeovil) Ltd,580276,615.79,Planned Rewires,Prog'D Elec Re-Wiring General,Supplies & Services
12/10/2016,Dodd Group (South) Ltd,580166,747.27,Electrical Testing Dwellings,Elec Testing/Reactive,Premises
12/10/2016,Dodd Group (South) Ltd,580273,747.27,Electrical Testing Dwellings,Elec Testing/Reactive,Premises
12/10/2016,Dodd Group (South) Ltd,580275,747.27,Electrical Testing Dwellings,Elec Testing/Reactive,Premises
12/10/2016,Dodd Group (South) Ltd,580277,747.27,Electrical Testing Dwellings,Elec Testing/Reactive,Premises
12/10/2016,E.On   (Electricity),578496,"1,639.75",Electricity,Mrf Premises Costs,Premises
12/10/2016,Edenbrown Synergy,577762,743.75,Temp.Contract-Agency Staff,Customer Service Centre,Pay
12/10/2016,Edenbrown Synergy,579865,790.20,Temp.Contract-Agency Staff,Commercial Section,Pay
12/10/2016,Essa Technology,580255,"3,212.00",Cctv,Customer Service Centre,Premises
12/10/2016,European Asbestos Services Ltd,574091,365.44,Asbestos Removal,Asbestos Removal,Premises
12/10/2016,Exeter Pa Network Ltd,580187,450.00,Hospitality,Deputy Chief Executive,Supplies & Services
12/10/2016,Glendale Grounds Management Ltd,577738,880.66,Sub-Contractors,Car Parks - Assets,Premises
12/10/2016,Homemaker South West,579354,"4,000.00",Consultants Fees,Local Welfare Support,Supplies & Services
12/10/2016,Leese'S Ltd.,579601,390.00,Sub-Contractors,Parks And Playing Fields,Premises
12/10/2016,M W Gozna Services Ltd,580165,250.00,Contract Payments,Adaptations,Supplies & Services
12/10/2016,Morgan Hunt Uk Ltd,579880,856.18,Temp.Contract-Agency Staff,Revenues Recovery,Pay
12/10/2016,Morgan Hunt Uk Ltd,579882,925.00,Temp.Contract-Agency Staff,Revenues Recovery,Pay
12/10/2016,Patrol,580054,820.50,Contributions,Car Parks,Supplies & Services
12/10/2016,Robert Heath Heating Ltd,578260,"2,338.95",Gas Equip Replacement,General Maintenance,Premises
12/10/2016,Robert Heath Heating Ltd,578260,82.64,Gas Equip Replacement,Repairs To Void Properties,Premises
12/10/2016,Ross & Roberts,580209,0.00,Bailiffs Fees,Revenues Recovery,Supplies & Services
12/10/2016,South West Water,578100,326.07,Water,Oakwood House Premises Costs,Premises
12/10/2016,Southern Electric,578549,"1,032.18",Electricity,Car Parks - Assets,Premises
12/10/2016,Venn Group Ltd,579860,896.00,Temp.Contract-Agency Staff,Revenues Recovery,Pay
12/10/2016,Venn Group Ltd,580055,"1,880.00",Temp.Contract-Agency Staff,Procurement,Pay
12/10/2016,Venn Group Ltd,580056,"2,300.00",Temp.Contract-Agency Staff,Procurement,Pay
12/10/2016,Venn Group Ltd,580204,870.24,Temp.Contract-Agency Staff,Revenues Recovery,Pay
12/10/2016,Whistl Uk Ltd,580220,233.53,Postage/Stamps,Mail,Supplies & Services
12/10/2016,Whistl Uk Ltd,580226,"1,794.50",Postage/Stamps,Mail,Supplies & Services
12/10/2016,Whistl Uk Ltd,580278,215.08,Postage/Stamps,Mail,Supplies & Services
12/10/2016,Wider Plan Ltd,580211,26.14,Performing Rights,Payroll,Supplies & Services
13/10/2016,A H Jones Investigators Ltd,580216,480.00,Bailiffs Fees,General Management,Supplies & Services
13/10/2016,Andrew Hart Industrial Roofing Ltd,580535,320.00,General Maintenance,General Maintenance,Premises
13/10/2016,Apse,572563,225.00,Conference/Seminars Costs,Members Expenses,Supplies & Services
13/10/2016,Aw Jenkinson Transport Ltd,579563,980.00,Comingled Haulage Out,"Materials, Goods For Resale",Transport
13/10/2016,Aw Jenkinson Transport Ltd,579564,980.00,Comingled Haulage Out,"Materials, Goods For Resale",Transport
13/10/2016,Backline Logistic Support,579805,404.41,Casuals Waged-Agency Staff,Agency Costs - Waste,Pay
13/10/2016,Beeswift Ltd,578168,718.70,"Clothing, Laundry, & Uniforms",Materials Reclamation Facility,Supplies & Services
13/10/2016,Beeswift Ltd,578729,230.95,"Clothing, Laundry, & Uniforms",Materials Reclamation Facility,Supplies & Services
13/10/2016,Beeswift Ltd,579176,246.90,"Clothing, Laundry, & Uniforms",Materials Reclamation Facility,Supplies & Services
13/10/2016,Berry Recruitment,579868,237.38,Casuals Waged-Agency Staff,City Centre Sweeping,Pay
13/10/2016,Biogas Technology Limited,580647,689.70,Sub-Contractors,Parks & O Spaces Man - Assets,Premises
13/10/2016,Blamphayne Sawmill Ltd,580645,"1,030.32",Sub-Contractors,Signs & Sundries - Assets,Premises
13/10/2016,Building Recruitment Co Ltd,576744,346.35,Temp.Contract-Agency Staff,Housing Advice,Pay
13/10/2016,Building Recruitment Co Ltd,579814,734.08,Temp.Contract-Agency Staff,Housing Advice,Pay
13/10/2016,Clear Channel Uk Ltd,580263,"1,086.00",Advertising,Home Call Alarm Service,Supplies & Services
13/10/2016,Concept Staffing Ltd,579821,412.18,Casuals Waged-Agency Staff,Materials Reclamation Facility,Pay
13/10/2016,D R Jones (Yeovil) Ltd,579494,398.84,Planned Rewires,Prog'D Elec Re-Wiring General,Supplies & Services
13/10/2016,D R Jones (Yeovil) Ltd,580620,979.60,Planned Rewires,Prog'D Elec Re-Wiring General,Supplies & Services
13/10/2016,Devon Minor Works Contractor Ltd,574193,"3,694.00",Contract Payments,Wessex Loan Suspense,Supplies & Services
13/10/2016,E.On   (Electricity),578562,"5,151.51",Electricity,Civic Centre,Premises
13/10/2016,E.On   (Electricity),580432,"1,452.60",Electricity,Livestock/Matford Centre,Premises
13/10/2016,European Asbestos Services Ltd,580441,"2,274.84",Asbestos Removal,Asbestos Removal,Premises
13/10/2016,European Asbestos Services Ltd,580443,625.16,Asbestos Removal,Asbestos Removal,Premises
13/10/2016,European Asbestos Services Ltd,580444,"1,862.98",Asbestos Removal,Asbestos Removal,Premises
13/10/2016,European Asbestos Services Ltd,580446,240.00,Asbestos Surveys,Asbestos Removal,Premises
13/10/2016,European Asbestos Services Ltd,580448,508.65,Asbestos Removal,Asbestos Removal,Premises
13/10/2016,European Asbestos Services Ltd,580451,365.44,Asbestos Removal,Asbestos Removal,Premises
13/10/2016,European Asbestos Services Ltd,580452,"1,014.52",Asbestos Removal,Asbestos Removal,Premises
13/10/2016,European Asbestos Services Ltd,580453,"1,310.56",Asbestos Removal,Asbestos Removal,Premises
13/10/2016,European Asbestos Services Ltd,580454,974.52,Asbestos Removal,Asbestos Removal,Premises
13/10/2016,European Asbestos Services Ltd,580455,"1,842.98",Asbestos Removal,Asbestos Removal,Premises
13/10/2016,European Asbestos Services Ltd,580456,613.83,Asbestos Removal,Asbestos Removal,Premises
13/10/2016,European Asbestos Services Ltd,580460,211.36,Asbestos Removal,Asbestos Removal,Premises
13/10/2016,European Asbestos Services Ltd,580466,974.52,Asbestos Removal,Asbestos Removal,Premises
13/10/2016,European Asbestos Services Ltd,580467,666.04,Asbestos Removal,Asbestos Removal,Premises
13/10/2016,European Asbestos Services Ltd,580488,974.52,Asbestos Removal,Asbestos Removal,Premises
13/10/2016,European Asbestos Services Ltd,580491,357.31,Asbestos Removal,Asbestos Removal,Premises
13/10/2016,F K Commercials Ltd,579986,"1,179.75",Routine Maintenance,Green Waste Collection Service,Transport
13/10/2016,F K Commercials Ltd,579986,274.74,Routine Maintenance,Materials Reclamation Facility,Transport
13/10/2016,F K Commercials Ltd,579986,619.18,Routine Maintenance,Other Street Sweeping,Transport
13/10/2016,F K Commercials Ltd,579986,337.32,Routine Maintenance,Reactive Team,Transport
13/10/2016,F K Commercials Ltd,579986,"6,961.47",Routine Maintenance,Refuse Collection,Transport
13/10/2016,F K Commercials Ltd,579986,218.98,Routine Maintenance,Special Collections,Transport
13/10/2016,F K Commercials Ltd,579986,"1,199.74",Routine Maintenance,Trade Refuse Collection,Transport
13/10/2016,F K Commercials Ltd,580155,226.50,Reactive Repairs,Refuse Collection,Transport
13/10/2016,F K Commercials Ltd,580156,716.69,Reactive Repairs,Refuse Collection,Transport
13/10/2016,F K Commercials Ltd,580167,250.70,Reactive Repairs,Reactive Team,Transport
13/10/2016,F K Commercials Ltd,580173,"1,104.00",Reactive Repairs,Refuse Collection,Transport
13/10/2016,F K Commercials Ltd,580198,"1,329.90",Reactive Repairs,Refuse Collection,Transport
13/10/2016,F K Commercials Ltd,580260,794.92,Reactive Repairs,Special Collections,Transport
13/10/2016,F K Commercials Ltd,580262,"1,299.49",Reactive Repairs,Refuse Collection,Transport
13/10/2016,First Class Builders Ltd,580477,382.08,Contract Payments,Adaptations,Supplies & Services
13/10/2016,First Class Builders Ltd,580480,225.00,General Maintenance,General Maintenance,Premises
13/10/2016,First Class Builders Ltd,580484,255.18,Contract Payments,Adaptations,Supplies & Services
13/10/2016,First Class Builders Ltd,580486,"1,750.00",Contract Payments,Adaptations,Supplies & Services
13/10/2016,G & L Consultancy Ltd,580527,600.00,Asbestos Surveys,Asbestos Removal,Premises
13/10/2016,G & L Consultancy Ltd,580530,495.00,Asbestos Surveys,Asbestos Removal,Premises
13/10/2016,Gap Personnel,579772,398.12,Casuals Waged-Agency Staff,Agency Costs - Waste,Pay
13/10/2016,Glen Cleaning,579524,286.06,Cleaning,Exeter Visitor Information,Premises
13/10/2016,Gregory Distribution  Ltd,577644,"1,077.33",Paper Haulage Out,"Materials, Goods For Resale",Transport
13/10/2016,Gregory Distribution  Ltd,578775,"1,050.25",Paper Haulage Out,"Materials, Goods For Resale",Transport
13/10/2016,Gregory Distribution  Ltd,579094,520.75,Paper Haulage Out,"Materials, Goods For Resale",Transport
13/10/2016,Gregory Distribution  Ltd,579098,526.17,Paper Haulage Out,"Materials, Goods For Resale",Transport
13/10/2016,Gregory Distribution  Ltd,579101,534.50,Paper Haulage Out,"Materials, Goods For Resale",Transport
13/10/2016,Gullivers Truck Hire Ltd,580259,875.00,Fleet - Hire Costs,Refuse Collection,Transport
13/10/2016,Hako Machines Ltd,580039,342.50,Accident Repairs,Other Street Sweeping,Transport
13/10/2016,James Andrews Recruitment Solutions,579886,497.65,Temp.Contract-Agency Staff,Development Team,Pay
13/10/2016,K & J Electrical Contractors Ltd,580650,827.11,Planned Rewires,Prog'D Elec Re-Wiring General,Supplies & Services
13/10/2016,Keith Gridley,580516,300.00,Contract Payments,Fire Prevention Work,Supplies & Services
13/10/2016,Lifestyle Solutions,580391,"1,740.00",Grants Issued,Disabled Facilities Grants,Supplies & Services
13/10/2016,M W Gozna Services Ltd,580396,250.00,Contract Payments,Adaptations,Supplies & Services
13/10/2016,M W Gozna Services Ltd,580401,672.54,Contract Payments,Adaptations,Supplies & Services
13/10/2016,M W Gozna Services Ltd,580532,250.00,Contract Payments,Adaptations,Supplies & Services
13/10/2016,M W Gozna Services Ltd,580536,379.00,Contract Payments,Adaptations,Supplies & Services
13/10/2016,Mercure Southgate Hotel,580035,330.00,Conference/Seminars Costs,General Management,Supplies & Services
13/10/2016,Moorland Fuels,580252,746.30,Motor Fuel,"Materials, Goods For Resale",Transport
13/10/2016,Ocs Group Uk Ltd,580642,336.84,Cleaning,Livestock/Matford Centre,Premises
13/10/2016,Pertemps Recruitment Partnership Ltd,577765,475.60,Temp.Contract-Agency Staff,Car Parks,Pay
13/10/2016,Pertemps Recruitment Partnership Ltd,577773,475.60,Temp.Contract-Agency Staff,Car Parks,Pay
13/10/2016,Pertemps Recruitment Partnership Ltd,577775,541.00,Temp.Contract-Agency Staff,Car Parks,Pay
13/10/2016,Phs Group,579576,"2,234.19",Cleaning Materials,Underground Passages,Premises
13/10/2016,Recruitment Solutions (Sw) Ltd,579847,472.58,Casuals Waged-Agency Staff,Agency Costs - Waste,Pay
13/10/2016,Renault Trucks Southwest,580293,482.95,Routine Maintenance,Recycling Management /Strategy,Transport
13/10/2016,Sanctuary Housing Association,579533,"3,258.20",Serviced Accommodation,The Haven,Premises
13/10/2016,Savex Services Ltd,579851,367.26,Routine Maintenance,Cemeteries - Operational,Transport
13/10/2016,Signs Express (Exeter),578916,394.40,Sub-Contractors,Parks & Playing Field - Assets,Premises
13/10/2016,Southern Electric,578550,515.37,Electricity,Custom House Visitor Centre,Premises
13/10/2016,Southern Electric,578607,381.04,Electricity,Miscellaneous Properties,Premises
13/10/2016,Strata Service Solutions Ltd,580519,"4,103.00",Payment To Strata,Strata Contract Payment,Supplies & Services
13/10/2016,Tam Marketing Ltd,579542,220.10,Maintenance Of Equipment,Materials Reclamation Facility,Supplies & Services
13/10/2016,The Best Connection Group Ltd,579802,875.31,Casuals Waged-Agency Staff,Materials Reclamation Facility,Pay
13/10/2016,The Best Connection Group Ltd,579850,714.21,Casuals Waged-Agency Staff,Materials Reclamation Facility,Pay
13/10/2016,The Best Connection Group Ltd,579894,397.38,Casuals Waged-Agency Staff,Materials Reclamation Facility,Pay
13/10/2016,The Best Connection Group Ltd,579896,397.38,Casuals Waged-Agency Staff,Materials Reclamation Facility,Pay
13/10/2016,Ultimate Cleaning South West,579333,490.00,Equipment Tools And Materials,Cleansing Overheads,Supplies & Services
13/10/2016,Venn Group Ltd,577108,"2,350.00",Temp.Contract-Agency Staff,Procurement,Pay
13/10/2016,Venn Group Ltd,578112,"1,269.00",Temp.Contract-Agency Staff,Procurement,Pay
13/10/2016,Venn Group Ltd,579058,"1,880.00",Temp.Contract-Agency Staff,Procurement,Pay
13/10/2016,Venn Group Ltd,580210,840.00,Temp.Contract-Agency Staff,Legal Services,Pay
13/10/2016,Venn Group Ltd,580476,846.80,Temp.Contract-Agency Staff,Legal Services,Pay
13/10/2016,Venn Group Ltd,580479,"1,333.42",Temp.Contract-Agency Staff,Legal Services,Pay
13/10/2016,Venn Group Ltd,580481,680.00,Temp.Contract-Agency Staff,Legal Services,Pay
13/10/2016,Venn Group Ltd,580485,"1,103.52",Temp.Contract-Agency Staff,Legal Services,Pay
13/10/2016,Vitax Ltd,579167,"1,038.48",Sports Pitches,Parks And Playing Fields,Premises
13/10/2016,Wessex Group Ltd,580222,260.41,Planned Rewires,Prog'D Elec Re-Wiring General,Supplies & Services
14/10/2016,A1 Electrics,580681,"1,007.23",Planned Rewires,Prog'D Elec Re-Wiring General,Supplies & Services
14/10/2016,A1 Electrics,580716,511.60,Planned Rewires,Prog'D Elec Re-Wiring General,Supplies & Services
14/10/2016,Adt Fire And Security,562083,243.50,Equipment Leasing,Canal,Supplies & Services
14/10/2016,Allstar Business Solutions,580842,132.21,Motor Fuel,Canal,Transport
14/10/2016,Allstar Business Solutions,580842,280.44,Motor Fuel,Car Park Sweeping,Transport
14/10/2016,Allstar Business Solutions,580842,342.51,Motor Fuel,Cash Collection,Transport
14/10/2016,Allstar Business Solutions,580842,230.76,Motor Fuel,Cemeteries - Operational,Transport
14/10/2016,Allstar Business Solutions,580842,18.59,Motor Fuel,City Centre Sweeping,Transport
14/10/2016,Allstar Business Solutions,580842,32.48,Motor Fuel,Cleansing Overheads,Transport
14/10/2016,Allstar Business Solutions,580842,63.83,Motor Fuel,Countryside Recreation,Transport
14/10/2016,Allstar Business Solutions,580842,89.93,Motor Fuel,Development Team,Transport
14/10/2016,Allstar Business Solutions,580842,115.85,Motor Fuel,Dog Bins,Transport
14/10/2016,Allstar Business Solutions,580842,112.39,Motor Fuel,Electricians,Transport
14/10/2016,Allstar Business Solutions,580842,189.97,Motor Fuel,Enforcement Team,Transport
14/10/2016,Allstar Business Solutions,580842,65.72,Motor Fuel,General Environmental Services,Transport
14/10/2016,Allstar Business Solutions,580842,199.18,Motor Fuel,Graffiti Cleaning,Transport
14/10/2016,Allstar Business Solutions,580842,"1,824.98",Motor Fuel,Green Waste Collection Service,Transport
14/10/2016,Allstar Business Solutions,580842,177.75,Motor Fuel,Housing Cleansing Round,Transport
14/10/2016,Allstar Business Solutions,580842,269.00,Motor Fuel,Litter Bins,Transport
14/10/2016,Allstar Business Solutions,580842,184.24,Motor Fuel,Materials Reclamation Facility,Transport
14/10/2016,Allstar Business Solutions,580842,147.80,Motor Fuel,Mayoralty,Transport
14/10/2016,Allstar Business Solutions,580842,"1,257.24",Motor Fuel,Mechanical Sweeping,Transport
14/10/2016,Allstar Business Solutions,580842,"1,698.39",Motor Fuel,Other Street Sweeping,Transport
14/10/2016,Allstar Business Solutions,580842,"2,073.68",Motor Fuel,Parks And Playing Fields,Transport
14/10/2016,Allstar Business Solutions,580842,"1,062.84",Motor Fuel,Parks Operational Overheads,Transport
14/10/2016,Allstar Business Solutions,580842,33.56,Motor Fuel,Planning,Transport
14/10/2016,Allstar Business Solutions,580842,177.05,Motor Fuel,Property Assets - Builders,Transport
14/10/2016,Allstar Business Solutions,580842,142.97,Motor Fuel,Ramm,Transport
14/10/2016,Allstar Business Solutions,580842,337.16,Motor Fuel,Reactive Team,Transport
14/10/2016,Allstar Business Solutions,580842,629.99,Motor Fuel,Recycling Round,Transport
14/10/2016,Allstar Business Solutions,580842,"9,424.55",Motor Fuel,Refuse Collection,Transport
14/10/2016,Allstar Business Solutions,580842,238.61,Motor Fuel,Special Collections,Transport
14/10/2016,Allstar Business Solutions,580842,845.20,Motor Fuel,Trade Recycling Collection,Transport
14/10/2016,Allstar Business Solutions,580842,"2,175.76",Motor Fuel,Trade Refuse Collection,Transport
14/10/2016,Ashton Cleaning Services (Sw) Ltd,580024,308.00,Cleaning,Psl Properties,Premises
14/10/2016,Ashton Cleaning Services (Sw) Ltd,580037,624.00,Cleaning,Glencoe,Premises
14/10/2016,Berry Recruitment,579775,399.23,Casuals Waged-Agency Staff,City Centre Sweeping,Pay
14/10/2016,Berry Recruitment,579777,399.23,Casuals Waged-Agency Staff,City Centre Sweeping,Pay
14/10/2016,Berry Recruitment,579791,285.94,Casuals Waged-Agency Staff,Reactive Team,Pay
14/10/2016,Berry Recruitment,579793,429.19,Casuals Waged-Agency Staff,Parks And Playing Fields,Pay
14/10/2016,Berry Recruitment,579794,393.84,Casuals Waged-Agency Staff,City Centre Sweeping,Pay
14/10/2016,Berry Recruitment,579866,399.23,Casuals Waged-Agency Staff,City Centre Sweeping,Pay
14/10/2016,Brakes,580525,652.24,Food,Exeter Corn Exchange,Supplies & Services
14/10/2016,Brakes,580818,409.20,Food,Exeter Corn Exchange,Supplies & Services
14/10/2016,Concept Staffing Ltd,579827,985.91,Casuals Waged-Agency Staff,Car Park Sweeping,Pay
14/10/2016,Concept Staffing Ltd,579827,434.46,Casuals Waged-Agency Staff,Childrens Play Areas,Pay
14/10/2016,Concept Staffing Ltd,579827,941.21,Casuals Waged-Agency Staff,City Centre Sweeping,Pay
14/10/2016,Concept Staffing Ltd,579827,434.46,Casuals Waged-Agency Staff,Parks And Playing Fields,Pay
14/10/2016,Concept Staffing Ltd,579827,818.81,Casuals Waged-Agency Staff,Public Conveniences,Pay
14/10/2016,Design Review Ltd,579768,"1,800.00",Fees,Planning,Income
14/10/2016,Devon Tree Services Ltd,580496,"2,151.20",Hra Shrubs & Trees - Communal,Estate Maintenance,Premises
14/10/2016,Devon Tree Services Ltd,580498,596.00,Hra Shrubs & Trees - Communal,Estate Maintenance,Premises
14/10/2016,Dolphin Lifts South West,580472,"2,020.00",Contract Payments,Adaptations,Supplies & Services
14/10/2016,Egbert H Taylor & Co Ltd,577732,"10,124.40",Bins & Recycling Boxes,Refuse Collection,Supplies & Services
14/10/2016,Exeter Community Initiatives,580739,"2,500.00",Contributions,Tenant Participation & Liaison,Supplies & Services
14/10/2016,Gap Personnel,577717,634.84,Casuals Waged-Agency Staff,Other Street Sweeping,Pay
14/10/2016,Gap Personnel,579771,333.56,Casuals Waged-Agency Staff,Cemeteries - Operational,Pay
14/10/2016,Gap Personnel,579771,796.24,Casuals Waged-Agency Staff,Other Street Sweeping,Pay
14/10/2016,Gap Personnel,579890,"1,078.86",Casuals Waged-Agency Staff,Other Street Sweeping,Pay
14/10/2016,Guardian Security Company,577453,407.52,General Maintenance,General Maintenance,Premises
14/10/2016,REDACTED COMMERCIALLY SENSITIVE,580500,651.00,Burial Expenses-Section 46,Cemeteries,Supplies & Services
14/10/2016,REDACTED COMMERCIALLY SENSITIVE,580501,651.00,Burial Expenses-Section 46,Cemeteries,Supplies & Services
14/10/2016,REDACTED COMMERCIALLY SENSITIVE,580502,771.00,Burial Expenses-Section 46,Cemeteries,Supplies & Services
14/10/2016,Moorland Fuels,580254,790.20,Motor Fuel,Cemeteries - Operational,Transport
14/10/2016,Mrs S Bell,580392,"2,643.29",Event Promotion,Exeter Corn Exchange,Supplies & Services
14/10/2016,Nute Plumbing Services Ltd,580440,725.22,Contract Payments,Adaptations,Supplies & Services
14/10/2016,Oceanallover Ltd,580889,"21,236.00",Special Events,Arts & Events,Supplies & Services
14/10/2016,Off The Kerb Productions,580621,900.00,Event Promotion,Exeter Corn Exchange,Supplies & Services
14/10/2016,Patronus Security Uk Ltd,580649,281.88,Event Promotion,Exeter Corn Exchange,Supplies & Services
14/10/2016,Phil Mcintyre Entertainments Ltd,580523,515.75,Event Promotion,Exeter Corn Exchange,Supplies & Services
14/10/2016,Prime Time Recruitment,577655,406.63,Casuals Waged-Agency Staff,Bid Cleansing Project,Pay
14/10/2016,Recruitment Solutions (Sw) Ltd,580702,340.69,Casuals Waged-Agency Staff,Parks And Playing Fields,Pay
14/10/2016,Safety First Manufacturing Co Ltd,580820,351.00,Special Events,Arts & Events,Supplies & Services
14/10/2016,Secureforce Uk Ltd,580727,536.37,Security Patrol,Livestock/Matford Centre,Premises
14/10/2016,Showbitz Ltd,580520,235.00,Event Promotion,Exeter Corn Exchange,Supplies & Services
14/10/2016,Sky Platform Hire Ltd,580027,493.76,Materials,Rechargeable Works,Supplies & Services
14/10/2016,Sodexo Motivation Solutions Uk,580386,"1,851.74",Longservice Awards,Human Resources,Pay
14/10/2016,South West Water,579302,443.49,Water,Public Conveniences - Assets,Premises
14/10/2016,South West Water,579510,529.53,Water,Cemeteries,Premises
14/10/2016,South West Water,579512,"1,441.87",Water,Public Conveniences - Assets,Premises
14/10/2016,Southern Electric,578598,676.61,Electricity,Public Conveniences - Assets,Premises
14/10/2016,Southern Electric,578615,672.79,Electricity,Guildhall Chambers,Premises
14/10/2016,St John Ambulance Devon,579192,213.08,Equipment Tools And Materials,Civic Centre,Supplies & Services
14/10/2016,The Best Connection Group Ltd,579779,"1,079.37",Casuals Waged-Agency Staff,Parks And Playing Fields,Pay
14/10/2016,W B Employment Ltd,579854,755.53,Casuals Waged-Agency Staff,Agency Costs - Waste,Pay
14/10/2016,W B Employment Ltd,579854,434.11,Casuals Waged-Agency Staff,Childrens Play Areas,Pay
14/10/2016,W B Employment Ltd,579854,241.78,Temp.Contract-Agency Staff,Human Resources,Pay
14/10/2016,West End Welding,580697,800.00,Sub-Contractors,Footpaths Maint - Assets,Premises
17/10/2016,Arcadis Llp,578129,"3,854.77",Grants Issued,St Loyes Design Fees,Supplies & Services
17/10/2016,Ats Euromaster Ltd,580283,306.07,Tyres,Refuse Collection,Transport
17/10/2016,Backline Logistic Support,580692,404.41,Casuals Waged-Agency Staff,Agency Costs - Waste,Pay
17/10/2016,Concept Staffing Ltd,580679,412.18,Casuals Waged-Agency Staff,Materials Reclamation Facility,Pay
17/10/2016,Concept Staffing Ltd,580709,241.78,Casuals Waged-Agency Staff,Materials Reclamation Facility,Pay
17/10/2016,Concept Staffing Ltd,580712,"1,431.39",Casuals Waged-Agency Staff,Car Park Sweeping,Pay
17/10/2016,Concept Staffing Ltd,580712,879.58,Casuals Waged-Agency Staff,Childrens Play Areas,Pay
17/10/2016,Concept Staffing Ltd,580712,461.59,Casuals Waged-Agency Staff,City Centre Sweeping,Pay
17/10/2016,Concept Staffing Ltd,580712,115.29,Casuals Waged-Agency Staff,Other Street Sweeping,Pay
17/10/2016,Concept Staffing Ltd,580712,818.81,Casuals Waged-Agency Staff,Public Conveniences,Pay
17/10/2016,Dawson Steeplejacks Ltd,578932,815.00,Aim Lease Requirements,Miscellaneous Properties,Premises
17/10/2016,Dfr Roofing Ltd,579521,321.00,Sub-Contractors,Ecqt Suspense,Premises
17/10/2016,Dolphin Lifts South West,580738,"5,060.00",Contract Payments,Adaptations,Supplies & Services
17/10/2016,European Asbestos Services Ltd,580457,250.50,Asbestos Removal,Asbestos Removal,Premises
17/10/2016,Exeter Phoenix,580030,450.00,Equipment Rental,Arts & Events,Supplies & Services
17/10/2016,F Clark,580907,270.00,Sub-Contractors,Countryside Man - Assets,Premises
17/10/2016,F Clark,580908,270.00,Sub-Contractors,Countryside Man - Assets,Premises
17/10/2016,Local World Ltd,579313,299.14,Publications/Leaflets,Planning,Supplies & Services
17/10/2016,Local World Ltd,579316,271.95,Publications/Leaflets,Planning,Supplies & Services
17/10/2016,Local World Ltd,579317,217.56,Publications/Leaflets,Planning,Supplies & Services
17/10/2016,Meridian Business Support,580685,640.80,Temp.Contract-Agency Staff,Estate Services,Pay
17/10/2016,Mnr Mowers,580619,984.00,Materials,Parks And Playing Fields,Supplies & Services
17/10/2016,Premier Park Ltd,580910,296.00,Contract Payments,Env Improvements - General,Supplies & Services
17/10/2016,Radmore & Tucker Ltd,574872,"8,950.00",Equipment Tools And Materials,Parks And Playing Fields,Supplies & Services
17/10/2016,Randall Simmonds,579877,"2,100.00",Grants Issued,Rennes House,Supplies & Services
17/10/2016,Randall Simmonds,579879,"1,650.00",Grants Issued,Rennes House,Supplies & Services
17/10/2016,Setsquare Recruitment,579335,156.29,Temp.Contract-Agency Staff,Planned Works,Pay
17/10/2016,Setsquare Recruitment,579335,234.43,Temp.Contract-Agency Staff,Reactive Repairs,Pay
17/10/2016,Setsquare Recruitment,579862,184.70,Temp.Contract-Agency Staff,Planned Works,Pay
17/10/2016,Setsquare Recruitment,579862,277.06,Temp.Contract-Agency Staff,Reactive Repairs,Pay
17/10/2016,Southern Electric,578602,877.81,Electricity,Oakwood House Premises Costs,Premises
17/10/2016,Spektrix Ltd,580817,"1,383.42",Event Promotion,Exeter Corn Exchange,Supplies & Services
17/10/2016,Stagecoach Services Ltd,576847,"8,586.00",Public Transport,Green Travel Plan,Transport
17/10/2016,The Best Connection Group Ltd,580723,794.76,Casuals Waged-Agency Staff,Materials Reclamation Facility,Pay
17/10/2016,The Oyster Partnership Ltd,579820,"1,085.00",Temp.Contract-Agency Staff,Planning,Pay
17/10/2016,Venn Group Ltd,576817,600.00,Temp.Contract-Agency Staff,Legal Services,Pay
17/10/2016,Venn Group Ltd,576819,"1,103.52",Temp.Contract-Agency Staff,Legal Services,Pay
17/10/2016,Venn Group Ltd,577315,"1,747.24",Temp.Contract-Agency Staff,Legal Services,Pay
17/10/2016,Venn Group Ltd,577322,616.80,Temp.Contract-Agency Staff,Legal Services,Pay
17/10/2016,Venn Group Ltd,577324,980.00,Temp.Contract-Agency Staff,Legal Services,Pay
17/10/2016,Venn Group Ltd,577726,270.58,Temp.Contract-Agency Staff,Planned Works,Pay
17/10/2016,Venn Group Ltd,577726,405.86,Temp.Contract-Agency Staff,Reactive Repairs,Pay
17/10/2016,Venn Group Ltd,578632,896.00,Temp.Contract-Agency Staff,Revenues Recovery,Pay
18/10/2016,Ashdown Academy Ltd,580704,"2,400.00",Staff Training,Learning & Development,Pay
18/10/2016,Beanice Ltd Ice Cream,581051,238.27,Food,Exeter Corn Exchange,Supplies & Services
18/10/2016,Bidvest Foodservice,581053,325.48,Food,Exeter Corn Exchange,Supplies & Services
18/10/2016,Brook Street,579873,"1,210.02",Temp.Contract-Agency Staff,Health & Safety Compliance,Pay
18/10/2016,Building Recruitment Co Ltd,578848,"1,497.12",Temp.Contract-Agency Staff,Planned Works,Pay
18/10/2016,Building Recruitment Co Ltd,579810,729.96,Temp.Contract-Agency Staff,Planned Works,Pay
18/10/2016,Building Recruitment Co Ltd,579816,989.01,Temp.Contract-Agency Staff,Planned Works,Pay
18/10/2016,Building Recruitment Co Ltd,580660,729.96,Temp.Contract-Agency Staff,Planned Works,Pay
18/10/2016,Building Recruitment Co Ltd,580690,989.01,Temp.Contract-Agency Staff,Planned Works,Pay
18/10/2016,Chubb Fire & Security Ltd,571864,363.29,Maintenance Of Equipment,Car Parks - Assets,Supplies & Services
18/10/2016,Concept Staffing Ltd,578915,462.31,Temp.Contract-Agency Staff,Land Charges,Pay
18/10/2016,Concept Staffing Ltd,579818,378.76,Temp.Contract-Agency Staff,Land Charges,Pay
18/10/2016,Concept Staffing Ltd,580652,278.50,Temp.Contract-Agency Staff,Planning,Pay
18/10/2016,D R Jones (Yeovil) Ltd,579495,"4,210.16",Contract Payments,Damp Ingress Repairs,Supplies & Services
18/10/2016,Devon Carousel Project,580863,"1,800.00",Grants Issued,Arts & Events Grants,Supplies & Services
18/10/2016,Equita Certificated Bailiffs,581050,287.09,Bailiffs Fees,Revenues Recovery,Supplies & Services
18/10/2016,European Asbestos Services Ltd,581097,"1,046.63",Asbestos Removal,Asbestos Removal,Premises
18/10/2016,First Class Builders Ltd,581114,323.02,Contract Payments,Adaptations,Supplies & Services
18/10/2016,First Class Builders Ltd,581115,482.00,General Maintenance,General Maintenance,Premises
18/10/2016,G & L Consultancy Ltd,581082,"3,840.00",Asbestos Surveys,Asbestos Removal,Premises
18/10/2016,G & L Consultancy Ltd,581083,"1,020.00",Asbestos Surveys,Asbestos Removal,Premises
18/10/2016,G & L Consultancy Ltd,581118,"1,560.00",Asbestos Surveys,Asbestos Removal,Premises
18/10/2016,G & L Consultancy Ltd,581118,100.00,Asbestos Removal,Asbestos Removal,Premises
18/10/2016,Ian Williams Ltd,581101,"44,173.70",Planned Maintenance,Re-Pointing,Premises
18/10/2016,Ian Williams Ltd,581103,"3,008.10",General Maintenance,Low Maint & Painting Flats,Premises
18/10/2016,Ian Williams Ltd,581105,"16,446.19",Contract Payments,Rendering Works - Flats,Supplies & Services
18/10/2016,Ian Williams Ltd,581106,"113,784.87",General Maintenance,Low Maint & Painting Flats,Premises
18/10/2016,Imwp (Uk) Ltd,581052,"10,909.50",Event Promotion,Exeter Corn Exchange,Supplies & Services
18/10/2016,James Andrews Recruitment Solutions,579852,567.48,Temp.Contract-Agency Staff,Planned Works,Pay
18/10/2016,James Andrews Recruitment Solutions,579852,567.48,Temp.Contract-Agency Staff,Reactive Repairs,Pay
18/10/2016,James Andrews Recruitment Solutions,579884,15.90,Temp.Contract-Agency Staff,Cob Management,Pay
18/10/2016,James Andrews Recruitment Solutions,579884,47.70,Temp.Contract-Agency Staff,Gf Hsg Property Management,Pay
18/10/2016,James Andrews Recruitment Solutions,579884,731.40,Temp.Contract-Agency Staff,Reactive Repairs,Pay
18/10/2016,Lear Browne + Dunsford,580912,502.50,Special Events,Arts & Events,Supplies & Services
18/10/2016,Lear Browne + Dunsford,580914,258.00,Special Events,Arts & Events,Supplies & Services
18/10/2016,M I Davey,581119,300.00,Food,Public Celebrations & Twinning,Supplies & Services
18/10/2016,M W Gozna Services Ltd,581116,"1,294.50",Contract Payments,Adaptations,Supplies & Services
18/10/2016,M W Gozna Services Ltd,581117,960.90,Contract Payments,Adaptations,Supplies & Services
18/10/2016,Mears Ltd,581086,"3,793.34",General Maintenance,Repairs To Void Properties,Premises
18/10/2016,Mears Ltd,581087,"1,671.23",General Maintenance,General Maintenance,Premises
18/10/2016,Mears Ltd,581087,91.70,Blocks Of Flat Repairs,General Maintenance,Premises
18/10/2016,Mears Ltd,581087,633.15,Contract Payments,Structural Repairs,Supplies & Services
18/10/2016,Mears Ltd,581088,425.47,General Maintenance,Elec Testing/Reactive,Premises
18/10/2016,Mears Ltd,581088,721.43,General Maintenance,General Maintenance,Premises
18/10/2016,Mears Ltd,581088,45.86,Blocks Of Flat Repairs,General Maintenance,Premises
18/10/2016,Mears Ltd,581089,"1,169.48",General Maintenance,General Maintenance,Premises
18/10/2016,Mears Ltd,581089,114.80,Blocks Of Flat Repairs,General Maintenance,Premises
18/10/2016,Mears Ltd,581090,47.75,General Maintenance,Elec Testing/Reactive,Premises
18/10/2016,Mears Ltd,581090,623.35,General Maintenance,General Maintenance,Premises
18/10/2016,Mears Ltd,581090,142.54,Glazing,General Maintenance,Premises
18/10/2016,Mears Ltd,581090,21.68,Blocks Of Flat Repairs,General Maintenance,Premises
18/10/2016,Mears Ltd,581091,41.65,Blocks Of Flat Repairs,Elec Testing/Reactive,Premises
18/10/2016,Mears Ltd,581091,522.24,General Maintenance,General Maintenance,Premises
18/10/2016,Mears Ltd,581091,149.67,Blocks Of Flat Repairs,General Maintenance,Premises
18/10/2016,Mears Ltd,581093,228.84,General Maintenance,Elec Testing/Reactive,Premises
18/10/2016,Mears Ltd,581093,313.11,General Maintenance,General Maintenance,Premises
18/10/2016,Mears Ltd,581093,76.06,Blocks Of Flat Repairs,General Maintenance,Premises
18/10/2016,Mears Ltd,581095,109.38,General Maintenance,Elec Testing/Reactive,Premises
18/10/2016,Mears Ltd,581095,635.42,General Maintenance,General Maintenance,Premises
18/10/2016,Mears Ltd,581096,116.01,General Maintenance,Elec Testing/Reactive,Premises
18/10/2016,Mears Ltd,581096,968.80,General Maintenance,General Maintenance,Premises
18/10/2016,Mears Ltd,581102,72.93,General Maintenance,Elec Testing/Reactive,Premises
18/10/2016,Mears Ltd,581102,686.92,General Maintenance,General Maintenance,Premises
18/10/2016,Mears Ltd,581102,103.82,Blocks Of Flat Repairs,General Maintenance,Premises
18/10/2016,Mears Ltd,581104,"2,827.17",Decs For Elderly & Disabled,Internal Decoration Prog,Premises
18/10/2016,Mears Ltd,581107,396.70,General Maintenance,Elec Testing/Reactive,Premises
18/10/2016,Mears Ltd,581107,"1,041.34",General Maintenance,General Maintenance,Premises
18/10/2016,Mears Ltd,581109,451.51,General Maintenance,Elec Testing/Reactive,Premises
18/10/2016,Mears Ltd,581109,"3,237.98",General Maintenance,General Maintenance,Premises
18/10/2016,Mears Ltd,581109,881.28,Glazing,General Maintenance,Premises
18/10/2016,Mears Ltd,581110,"1,298.44",General Maintenance,Repairs To Void Properties,Premises
18/10/2016,P Harvey,580862,500.00,Special Events,Arts & Events,Supplies & Services
18/10/2016,Peac (Uk) Ltd,580703,550.57,Staff Computer Loans - 2013,Ecc Balance Sheet,Current Assets
18/10/2016,Renault Trucks Southwest,580720,447.26,Reactive Repairs,Dog Bins,Transport
18/10/2016,Ross & Roberts,581094,0.00,Bailiffs Fees,Revenues Recovery,Supplies & Services
18/10/2016,Setsquare Recruitment,570725,179.97,Temp.Contract-Agency Staff,Planned Works,Pay
18/10/2016,Setsquare Recruitment,570725,269.95,Temp.Contract-Agency Staff,Reactive Repairs,Pay
18/10/2016,Setsquare Recruitment,574217,479.52,Temp.Contract-Agency Staff,Planned Works,Pay
18/10/2016,Shield Environmental Services,575553,852.00,Aim Lease Requirements,Miscellaneous Properties,Premises
18/10/2016,Signs Express (Exeter),580909,719.20,Staff Training,Learning & Development,Pay
18/10/2016,Sphere Solutions Ltd,579858,203.50,Temp.Contract-Agency Staff,Planned Works,Pay
18/10/2016,Sphere Solutions Ltd,579858,305.25,Temp.Contract-Agency Staff,Reactive Repairs,Pay
18/10/2016,Sphere Solutions Ltd,580694,151.25,Temp.Contract-Agency Staff,Planned Works,Pay
18/10/2016,Sphere Solutions Ltd,580694,226.88,Temp.Contract-Agency Staff,Reactive Repairs,Pay
18/10/2016,Sps Marketing Ltd,579859,339.00,Advertising,Tour Guides,Supplies & Services
18/10/2016,Teignbridge District Council,581043,"5,000.00",Dhop,Resettlement Strategy,Supplies & Services
18/10/2016,The Oyster Partnership Ltd,581121,651.00,Temp.Contract-Agency Staff,Planning,Pay
18/10/2016,Tolchards Ltd,581046,"1,268.79",Drinks,Exeter Corn Exchange,Supplies & Services
18/10/2016,Venn Group Ltd,579784,256.82,Temp.Contract-Agency Staff,Planned Works,Pay
18/10/2016,Venn Group Ltd,579784,385.22,Temp.Contract-Agency Staff,Reactive Repairs,Pay
18/10/2016,Venn Group Ltd,580708,332.48,Temp.Contract-Agency Staff,Planned Works,Pay
18/10/2016,Venn Group Ltd,580708,498.73,Temp.Contract-Agency Staff,Reactive Repairs,Pay
19/10/2016,Baker Ruff Hannon Llp,579870,"4,500.00",Consultants Fees,Bus Station Construction,Supplies & Services
19/10/2016,Baker Ruff Hannon Llp,579872,"7,535.60",Consultants Fees,Leisure Complex - Build,Supplies & Services
19/10/2016,Concept Staffing Ltd,580677,440.03,Temp.Contract-Agency Staff,Land Charges,Pay
19/10/2016,County Tyres,580689,491.30,Tyres,Enforcement Team,Transport
19/10/2016,E.On   (Electricity),579819,"1,905.43",Electricity,Street Lighting,Premises
19/10/2016,E.On   (Electricity),580436,"5,153.42",Electricity,Civic Centre,Premises
19/10/2016,European Asbestos Services Ltd,581289,308.32,Asbestos Removal,Asbestos Removal,Premises
19/10/2016,European Asbestos Services Ltd,581291,211.36,Asbestos Removal,Asbestos Removal,Premises
19/10/2016,Exeter College,581229,420.00,Special Events,Arts & Events,Supplies & Services
19/10/2016,Gae Smith Holdings Ltd T/A Casepak,580725,"4,807.04",Processing Comingled Materials,"Materials, Goods For Resale",Supplies & Services
19/10/2016,Gap Personnel,577720,398.12,Casuals Waged-Agency Staff,Agency Costs - Waste,Pay
19/10/2016,Glendale Grounds Management Ltd,581309,219.00,Hra Shrubs & Trees - Communal,Estate Maintenance,Premises
19/10/2016,Glendale Grounds Management Ltd,581309,602.50,Initial Cultivations - Housing,Garden Assistance,Premises
19/10/2016,Glendale Grounds Management Ltd,581309,390.00,General Maintenance,General Maintenance,Premises
19/10/2016,Glendale Grounds Management Ltd,581309,650.00,Grass Cutting,Syrian Resettlement Scheme,Premises
19/10/2016,Gullivers Truck Hire Ltd,581038,875.00,Fleet - Hire Costs,Refuse Collection,Transport
19/10/2016,H & S Transport Ltd,581311,"3,429.00",Sub-Contractors,Land Drainage Water C - Assets,Premises
19/10/2016,Jeremy Benn Associates Ltd T/A Jba Consulting,581314,"2,650.00",Sub-Contractors,Parks & Playing Field - Assets,Premises
19/10/2016,Jon-Paul Hedge,581453,"2,495.83",Consultants Fees,Press & Public Relations,Supplies & Services
19/10/2016,Jtt Contracting Ltd,579078,456.48,Sub-Contractors,Footpaths Maint - Assets,Premises
19/10/2016,Lee Ross Associates,581302,266.00,Building Control Fees,Building Control Fee Earning,Income
19/10/2016,Mears Ltd,581092,"1,047.54",General Maintenance,General Maintenance,Premises
19/10/2016,Mears Ltd,581098,"4,290.41",General Maintenance,General Maintenance,Premises
19/10/2016,Mears Ltd,581098,228.07,Blocks Of Flat Repairs,General Maintenance,Premises
19/10/2016,Mears Ltd,581100,111.65,General Maintenance,Elec Testing/Reactive,Premises
19/10/2016,Mears Ltd,581100,48.79,Blocks Of Flat Repairs,Elec Testing/Reactive,Premises
19/10/2016,Mears Ltd,581100,750.24,General Maintenance,General Maintenance,Premises
19/10/2016,Mears Ltd,581100,66.90,Blocks Of Flat Repairs,General Maintenance,Premises
19/10/2016,Ove Arup & Partners Ltd,580648,"21,807.37",Consultants Fees,Bus Station Construction,Supplies & Services
19/10/2016,Pattersons (Bristol) Ltd,581237,255.07,Cleaning Materials,Livestock/Matford Centre,Premises
19/10/2016,Pinhoe Pcc,574679,350.00,Grants Issued,Cemeteries,Supplies & Services
19/10/2016,Protective Wear Supplies Ltd,580217,635.55,Materials,City Centre Sweeping,Supplies & Services
19/10/2016,South West Water,580363,502.81,Water,Allotments - Assets,Premises
19/10/2016,South West Water,580365,"1,514.84",Water,Cemeteries - Assets,Premises
19/10/2016,South West Water,580366,"1,108.60",Water,Public Conveniences - Assets,Premises
19/10/2016,South West Water,580367,"1,080.36",Water,Civic Centre,Premises
19/10/2016,South West Water,581222,"1,728.97",Water,Livestock/Matford Centre,Premises
19/10/2016,Stagecoach Services Ltd,581318,"2,610.00",Public Transport,Green Travel Plan,Transport
19/10/2016,Tam Marketing Ltd,581217,235.90,Materials,Car Park Sweeping,Supplies & Services
19/10/2016,Tam Marketing Ltd,581330,353.28,Materials,Public Conveniences,Supplies & Services
19/10/2016,Venn Group Ltd,581251,"2,300.00",Temp.Contract-Agency Staff,Procurement,Pay
19/10/2016,W B Employment Ltd,578506,675.89,Casuals Waged-Agency Staff,Agency Costs - Waste,Pay
19/10/2016,W B Employment Ltd,578506,343.09,Temp.Contract-Agency Staff,Civic Centre,Pay
19/10/2016,W B Employment Ltd,578506,428.61,Casuals Waged-Agency Staff,Parks And Playing Fields,Pay
19/10/2016,W B Employment Ltd,580686,76.93,Casuals Waged-Agency Staff,Agency Costs - Waste,Pay
19/10/2016,W B Employment Ltd,580686,436.13,Temp.Contract-Agency Staff,Civic Centre,Pay
19/10/2016,W B Employment Ltd,580686,390.15,Casuals Waged-Agency Staff,Parks And Playing Fields,Pay
19/10/2016,Whistl Uk Ltd,581227,"1,433.92",Postage/Stamps,Mail,Supplies & Services
19/10/2016,Whistl Uk Ltd,581228,349.59,Postage/Stamps,Mail,Supplies & Services
19/10/2016,Wonder Associates Ltd,581493,"1,250.00",Marketing,Ramm,Supplies & Services
20/10/2016,Creditcall Communications Ltd,580537,702.39,Card Payment Charges,Car Parks - Assets,Supplies & Services
20/10/2016,Creditcall Communications Ltd,580538,720.57,Card Payment Charges,Car Parks - Assets,Supplies & Services
20/10/2016,D R Jones (Yeovil) Ltd,579498,"1,440.00",Decoration / Alterations,Civic Centre,Premises
20/10/2016,Devon Tree Services Ltd,581047,"3,814.40",Hra Shrubs & Trees - Communal,Estate Maintenance,Premises
20/10/2016,Devon Tree Services Ltd,581454,"1,519.80",Sub-Contractors,Arboricultural - Assets,Premises
20/10/2016,Devon Tree Services Ltd,581510,774.80,Sub-Contractors,Arboricultural - Assets,Premises
20/10/2016,Devon Tree Services Ltd,581511,476.80,Sub-Contractors,Arboricultural - Assets,Premises
20/10/2016,E.On   (Electricity),580435,"1,725.62",Electricity,Mrf Premises Costs,Premises
20/10/2016,Euro Lifts Ltd,581277,278.28,Lift Maintenance,Service Contracts,Premises
20/10/2016,Exeter Locksmiths,581279,129.79,Materials,Allotments - Assets,Supplies & Services
20/10/2016,Exeter Locksmiths,581279,129.79,Materials,Parks & Playing Field - Assets,Supplies & Services
20/10/2016,First Cleaning Choice,579619,"1,260.00",Cleaning,Ramm,Premises
20/10/2016,Jurys Inn,581084,"3,047.50",Special Events,Arts & Events,Supplies & Services
20/10/2016,Mann Williams,576335,"1,800.00",Contract Payments,St Nicholas Priory,Supplies & Services
20/10/2016,Pell Frischmann Consultants Ltd,581108,290.00,Contract Payments,Structural Repairs,Supplies & Services
20/10/2016,Pertemps Recruitment Partnership Ltd,579876,451.82,Temp.Contract-Agency Staff,Planning,Pay
20/10/2016,Pertemps Recruitment Partnership Ltd,580699,451.82,Temp.Contract-Agency Staff,Planning,Pay
20/10/2016,Policy Review Projects Ltd,578489,445.00,Conference/Seminars Costs,Customer Service Centre,Supplies & Services
20/10/2016,Premier Roofing Contractors Ltd,581319,486.08,General Maintenance,General Maintenance,Premises
20/10/2016,Premier Roofing Contractors Ltd,581320,"1,799.20",General Maintenance,General Maintenance,Premises
20/10/2016,Sciprint Ltd,581475,"2,711.19",Conference/Seminars Costs,Electoral Registration,Supplies & Services
20/10/2016,Sciprint Ltd,581476,"1,606.68",Stationery,Electoral Registration,Supplies & Services
20/10/2016,Showbitz Ltd,581296,300.00,Event Promotion,Exeter Corn Exchange,Supplies & Services
20/10/2016,Showbitz Ltd,581298,300.00,Event Promotion,Exeter Corn Exchange,Supplies & Services
20/10/2016,Tersus Consultancy Ltd,581313,"3,885.00",Asbestos Surveys,Asbestos Removal,Premises
20/10/2016,The Locked Horns,581477,300.00,Special Events,Arts & Events,Supplies & Services
20/10/2016,The Locked Horns,581478,300.00,Special Events,Arts & Events,Supplies & Services
20/10/2016,University Of Exeter,579867,"7,000.00",Consultants Fees,New Pool- Operator Tenders,Supplies & Services
20/10/2016,University Of Exeter,581492,"1,400.00",Reports,Council Tax Collection,Supplies & Services
20/10/2016,Vienna Festival Ballet,581294,"1,319.51",Event Promotion,Exeter Corn Exchange,Supplies & Services
21/10/2016,Adecco Uk Ltd,577649,412.50,Temp.Contract-Agency Staff,Customer Relations,Pay
21/10/2016,Adt Fire And Security,562326,781.18,Aim Service & Maintenance,Property Maintenance,Premises
21/10/2016,Ashton Cleaning Services (Sw) Ltd,581679,264.40,Cleaning,Extralet,Premises
21/10/2016,Beth De Tisi,581658,"2,500.00",Special Events,Arts & Events,Supplies & Services
21/10/2016,D G Electrical Services,576287,"1,899.00",Property Maintenance Fund,Property Maintenance,Premises
21/10/2016,D R Jones (Yeovil) Ltd,578512,"1,103.00",Aim Reactive Repairs,Property Maintenance,Premises
21/10/2016,D R Jones (Yeovil) Ltd,579500,897.00,Aim Reactive Repairs,Property Maintenance,Premises
21/10/2016,E.On   (Electricity),578576,"7,514.15",Electricity,Ramm,Premises
21/10/2016,East Devon District Council,581627,"4,000.00",Grants Issued,Arts & Events Grants,Supplies & Services
21/10/2016,Environment Agency,579516,"2,240.00",Agenda 21 Promotions,Materials Reclamation Facility,Supplies & Services
21/10/2016,Fire Defence Servicing Ltd,579517,720.00,Aim Service & Maintenance,Property Maintenance,Premises
21/10/2016,Heritage Books,579825,"1,221.00",Goods For Resale,Ramm,Supplies & Services
21/10/2016,Interserve Fs (Uk) Ltd,571895,"7,053.97",Aim Service & Maintenance,Contracts Susp (Legionella),Premises
21/10/2016,Interserve Fs (Uk) Ltd,579849,500.00,Aim Service & Maintenance,Property Maintenance,Premises
21/10/2016,K & J Electrical Contractors Ltd,578630,"1,995.52",Aim Reactive Repairs,Property Maintenance,Premises
21/10/2016,Kone Plc,578505,326.88,Aim Service & Maintenance,Property Maintenance,Premises
21/10/2016,Ks Engineering,580208,233.27,Aim Service & Maintenance,Property Maintenance,Premises
21/10/2016,Mat Electrics Ltd,578722,373.15,Aim Reactive Repairs,Property Maintenance,Premises
21/10/2016,Mat Electrics Ltd,578971,331.96,Aim Service & Maintenance,Property Maintenance,Premises
21/10/2016,Mat Electrics Ltd,579869,480.85,Aim Reactive Repairs,Property Maintenance,Premises
21/10/2016,Mat Electrics Ltd,579871,441.51,Aim Reactive Repairs,Property Maintenance,Premises
21/10/2016,Meridian Business Support,581696,627.50,Temp.Contract-Agency Staff,Estate Services,Pay
21/10/2016,Mitie Technical Facilities Managment Ltd,579357,"2,787.06",Aim Service & Maintenance,Property Maintenance,Premises
21/10/2016,Nevada Construction Ltd,575868,488.75,Aim Reactive Repairs,Property Maintenance,Premises
21/10/2016,Nevada Construction Ltd,580865,800.00,Cleaning,Ramm,Premises
21/10/2016,Nevada Construction Ltd,581283,950.00,Aim Reactive Repairs,Property Maintenance,Premises
21/10/2016,Otis Ltd,578922,62.71,Service Charges,Bradninch Place,Premises
21/10/2016,Otis Ltd,578922,62.71,Aim Lease Requirements,Commercial Properties,Premises
21/10/2016,Otis Ltd,578922,83.66,Lift Maintenance,Knights Place,Premises
21/10/2016,Otis Ltd,578922,51.33,Aim Lease Requirements,Miscellaneous Properties,Premises
21/10/2016,Otis Ltd,578922,986.92,Aim Service & Maintenance,Property Maintenance,Premises
21/10/2016,Otis Ltd,578922,533.04,Lift Maintenance,Service Contracts,Premises
21/10/2016,Pattersons (Bristol) Ltd,579161,281.92,Cleaning,Ramm,Premises
21/10/2016,Premier Roofing Contractors Ltd,581673,735.80,General Maintenance,General Maintenance,Premises
21/10/2016,Prime Time Recruitment,580730,76.93,Casuals Waged-Agency Staff,Agency Costs - Waste,Pay
21/10/2016,Prime Time Recruitment,580730,406.63,Casuals Waged-Agency Staff,Other Street Sweeping,Pay
21/10/2016,Rose Removals & Storage,574296,421.61,Tenants Removal And Legal Exp,Lettings & Leasehold,Supplies & Services
21/10/2016,Rose Removals & Storage,578316,576.94,Tenants Removal And Legal Exp,Lettings & Leasehold,Supplies & Services
21/10/2016,South West Water,580021,"1,039.34",Trade Effluent Charges,Refuse Collection,Premises
21/10/2016,The Copyright Licensing Agency Ltd,581615,"1,754.70",Licences,Members Expenses,Supplies & Services
21/10/2016,Trinity Fire & Security Systems,579348,652.43,Aim Reactive Repairs,Property Maintenance,Premises
21/10/2016,Venn Group Ltd,581252,"1,880.00",Temp.Contract-Agency Staff,Procurement,Pay
21/10/2016,Vodafone,579623,"2,567.03",Web Access Service / Swisp,Strata,Supplies & Services
21/10/2016,Wood & Wood Signs,581081,825.00,Contract Payments,Ecqt Suspense,Supplies & Services
21/10/2016,Zep Uk,581299,"1,210.00",Materials,Public Conveniences,Supplies & Services
24/10/2016,A H Jones Investigators Ltd,581612,480.00,Bailiffs Fees,Customer Relations,Supplies & Services
24/10/2016,A H Jones Investigators Ltd,581891,225.00,Bailiffs Fees,Customer Relations,Supplies & Services
24/10/2016,Alpha Logistics,581871,110.00,Postage/Stamps,Civic Centre,Supplies & Services
24/10/2016,Alpha Logistics,581871,22.00,Other Expenses,Exeter Corn Exchange,Supplies & Services
24/10/2016,Alpha Logistics,581871,22.00,Other Expenses,Livestock/Matford Centre,Supplies & Services
24/10/2016,Alpha Logistics,581871,110.00,Postage/Stamps,Oakwood House Administrative C,Supplies & Services
24/10/2016,Aw Jenkinson Transport Ltd,580732,980.00,Comingled Haulage Out,"Materials, Goods For Resale",Transport
24/10/2016,British Gas,581622,503.65,Gas,Glencoe,Premises
24/10/2016,Building Recruitment Co Ltd,579812,"1,540.29",Temp.Contract-Agency Staff,Planned Works,Pay
24/10/2016,Building Recruitment Co Ltd,580659,"1,090.70",Temp.Contract-Agency Staff,Planned Works,Pay
24/10/2016,Building Recruitment Co Ltd,580693,734.08,Temp.Contract-Agency Staff,Housing Advice,Pay
24/10/2016,Burrows-Hutchinson Ltd,581122,"2,500.00",Consultants Fees,Affordable Housing Development,Supplies & Services
24/10/2016,C R Willcocks & Co Ltd,581236,738.62,Reactive Repairs,Parks And Playing Fields,Transport
24/10/2016,Concept Staffing Ltd,580736,657.26,Casuals Waged-Agency Staff,Agency Costs - Waste,Pay
24/10/2016,Continuum Sport & Leisure,581775,"9,684.94",Consultants Fees,New Pool- Operator Tenders,Supplies & Services
24/10/2016,Devon County Council,581327,"2,603.40",Devon County Council Consult.,Land Charges,Supplies & Services
24/10/2016,Dolphin Lifts South West,581876,"5,410.00",Contract Payments,Adaptations,Supplies & Services
24/10/2016,Dolphin Lifts South West,581878,"2,880.00",Contract Payments,Adaptations,Supplies & Services
24/10/2016,Equita Certificated Bailiffs,581507,75.00,Bailiffs Fees,Revenues Recovery,Supplies & Services
24/10/2016,European Asbestos Services Ltd,581824,210.79,Asbestos Removal,Asbestos Removal,Premises
24/10/2016,European Asbestos Services Ltd,581828,"1,094.60",Asbestos Removal,Asbestos Removal,Premises
24/10/2016,European Asbestos Services Ltd,581829,974.52,Asbestos Removal,Asbestos Removal,Premises
24/10/2016,European Asbestos Services Ltd,581832,211.36,Asbestos Removal,Asbestos Removal,Premises
24/10/2016,European Asbestos Services Ltd,581877,998.60,Asbestos Removal,Asbestos Removal,Premises
24/10/2016,European Asbestos Services Ltd,581879,974.52,Asbestos Removal,Asbestos Removal,Premises
24/10/2016,European Asbestos Services Ltd,581888,"1,876.67",Asbestos Removal,Asbestos Removal,Premises
24/10/2016,Exeter Phoenix,581594,"18,400.00",Grants Issued,Grants And Contributions,Supplies & Services
24/10/2016,F K Commercials Ltd,570340,295.24,Reactive Repairs,Refuse Collection,Transport
24/10/2016,First Class Builders Ltd,581806,339.02,Contract Payments,Adaptations,Supplies & Services
24/10/2016,First Class Builders Ltd,581807,"4,799.59",Contract Payments,Adaptations,Supplies & Services
24/10/2016,First Class Builders Ltd,581808,"5,477.63",Contract Payments,Adaptations,Supplies & Services
24/10/2016,First Class Builders Ltd,581811,461.80,Contract Payments,Adaptations,Supplies & Services
24/10/2016,First Class Builders Ltd,581854,318.00,General Maintenance,General Maintenance,Premises
24/10/2016,First Class Builders Ltd,581880,"3,356.26",Contract Payments,Adaptations,Supplies & Services
24/10/2016,G & L Consultancy Ltd,581873,639.00,Asbestos Surveys,Asbestos Removal,Premises
24/10/2016,Gap Personnel,581445,398.12,Casuals Waged-Agency Staff,Materials Reclamation Facility,Pay
24/10/2016,Glendale Grounds Management Ltd,581310,"11,805.08",Grounds Costs,Garden Assistance,Premises
24/10/2016,Gregory Distribution  Ltd,581231,"1,593.07",Paper Haulage Out,"Materials, Goods For Resale",Transport
24/10/2016,Gullivers Truck Hire Ltd,581224,493.52,Reactive Repairs,Parks Operational Overheads,Transport
24/10/2016,Hammicks Legal Bookshops,580641,310.00,Publications/Leaflets,Legal Services,Supplies & Services
24/10/2016,Heritage Books,579826,263.66,Goods For Resale,Ramm,Supplies & Services
24/10/2016,Independent Futures Cic,579562,"10,744.98",Serviced Accommodation,Serviced Accommodation,Premises
24/10/2016,James Andrews Recruitment Solutions,580695,16.80,Temp.Contract-Agency Staff,Cob Management,Pay
24/10/2016,James Andrews Recruitment Solutions,580695,50.42,Temp.Contract-Agency Staff,Gf Hsg Property Management,Pay
24/10/2016,James Andrews Recruitment Solutions,580695,772.98,Temp.Contract-Agency Staff,Reactive Repairs,Pay
24/10/2016,Jtt Contracting Ltd,581868,"2,850.00",Contract Payments,Adaptations,Supplies & Services
24/10/2016,Lions Club Of Exeter,581218,136.18,Paper Buy In,"Materials, Goods For Resale",Supplies & Services
24/10/2016,Lions Club Of Exeter,581218,390.98,Recycling Credits,"Materials, Goods For Resale",Supplies & Services
24/10/2016,Lions Club Of Exeter,581219,145.60,Paper Buy In,"Materials, Goods For Resale",Supplies & Services
24/10/2016,Lions Club Of Exeter,581219,429.96,Recycling Credits,"Materials, Goods For Resale",Supplies & Services
24/10/2016,Mears Ltd,581816,101.50,General Maintenance,Elec Testing/Reactive,Premises
24/10/2016,Mears Ltd,581816,33.32,Blocks Of Flat Repairs,Elec Testing/Reactive,Premises
24/10/2016,Mears Ltd,581816,312.35,General Maintenance,General Maintenance,Premises
24/10/2016,Mears Ltd,581821,"2,604.10",General Maintenance,Repairs To Void Properties,Premises
24/10/2016,Mears Ltd,581823,"8,236.53",General Maintenance,Repairs To Void Properties,Premises
24/10/2016,Mears Ltd,581825,"3,117.91",General Maintenance,Repairs To Void Properties,Premises
24/10/2016,Mears Ltd,581869,"1,430.70",General Maintenance,Repairs To Void Properties,Premises
24/10/2016,Mears Ltd,581872,"2,563.39",General Maintenance,General Maintenance,Premises
24/10/2016,Mears Ltd,581872,84.24,Floor Tiles,General Maintenance,Premises
24/10/2016,Morgan Hunt Uk Ltd,581692,"1,000.00",Temp.Contract-Agency Staff,Revenues Recovery,Pay
24/10/2016,Naomi Eastham,581589,832.00,Event Promotion,Exeter Corn Exchange,Supplies & Services
24/10/2016,Ntm-Gb Ltd,582063,220.00,Vehicle Road Tax,Vehicle Replacement Prog,Transport
24/10/2016,Ntm-Gb Ltd,582063,"87,965.00",Vehicle Acquisitions,Vehicle Replacement Prog,Transport
24/10/2016,Nute Plumbing Services Ltd,580439,351.32,General Maintenance,General Maintenance,Premises
24/10/2016,South West Water,577758,463.60,Water,Older Persons Accommodation,Premises
24/10/2016,South West Water,580853,356.49,Water,Guildhall Chambers,Premises
24/10/2016,Southern Electric,577907,487.36,Electricity,Older Persons Accommodation,Premises
24/10/2016,Southern Electric,577908,"1,997.15",Electricity,Customer Relations,Premises
24/10/2016,Southern Electric,577914,504.36,Electricity,Customer Relations,Premises
24/10/2016,Southern Electric,577916,466.90,Electricity,Older Persons Accommodation,Premises
24/10/2016,Southern Electric,577920,316.12,Electricity,Older Persons Accommodation,Premises
24/10/2016,Southern Electric,577924,293.64,Electricity,Older Persons Accommodation,Premises
24/10/2016,Southern Electric,577940,352.86,Electricity,Customer Relations,Premises
24/10/2016,Southern Electric,577953,"2,041.48",Electricity,Older Persons Accommodation,Premises
24/10/2016,Southern Electric,577987,681.88,Electricity,Older Persons Accommodation,Premises
24/10/2016,Southern Electric,580615,735.89,Electricity,Car Parks - Assets,Premises
24/10/2016,Southern Electric,580616,547.48,Electricity,Car Parks - Assets,Premises
24/10/2016,St John Ambulance Devon,581699,615.00,Staff Training,Learning & Development,Pay
24/10/2016,Stonewater Ltd,574070,"3,500.00",Serviced Accommodation,Serviced Accommodation,Premises
24/10/2016,Venn Group Ltd,581613,"1,471.36",Temp.Contract-Agency Staff,Legal Services,Pay
24/10/2016,Venn Group Ltd,581614,636.40,Temp.Contract-Agency Staff,Legal Services,Pay
24/10/2016,Wildy & Sons Ltd,581474,"5,662.00",Publications/Leaflets,Legal Services,Supplies & Services
25/10/2016,Abbey Lifts Ltd,581660,"12,622.20",Contract Payments,Lift Replacemnt-98 Sidwell St,Supplies & Services
25/10/2016,Adecco Uk Ltd,580731,309.38,Temp.Contract-Agency Staff,Customer Relations,Pay
25/10/2016,Ashley House Printing Co Ltd,581497,434.00,Printing,Community Safety Projects,Supplies & Services
25/10/2016,Ats Euromaster Ltd,581667,281.50,Reactive Repairs,Trade Refuse Collection,Transport
25/10/2016,British Gas Business,580638,322.33,Gas,Older Persons Accommodation,Premises
25/10/2016,Caroline Barnes Ceramics,579620,486.00,Goods For Resale,Museum Shop,Supplies & Services
25/10/2016,City Electrical Factors,581709,357.53,Contract Payments,Adaptations,Supplies & Services
25/10/2016,Dsg Quantity Surveyors,580846,"5,500.00",Grants Issued,St Loyes Design Fees,Supplies & Services
25/10/2016,Edenbrown Synergy,581681,879.10,Temp.Contract-Agency Staff,Commercial Section,Pay
25/10/2016,Epc Tickets,582228,315.40,Travel & Attraction Tickets,Exeter Visitor Information,Supplies & Services
25/10/2016,Exeter Hose & Hydraulics Ltd,581845,215.86,Reactive Repairs,Refuse Collection,Transport
25/10/2016,F K Commercials Ltd,581442,397.28,Reactive Repairs,Trade Refuse Collection,Transport
25/10/2016,F K Commercials Ltd,581444,253.28,Reactive Repairs,Reactive Team,Transport
25/10/2016,F K Commercials Ltd,581837,220.19,Reactive Repairs,Refuse Collection,Transport
25/10/2016,F K Commercials Ltd,581840,281.31,Accident Repairs,Materials Reclamation Facility,Transport
25/10/2016,G B Sport & Leisure,581670,219.07,Equipment Tools And Materials,Childrens Play Areas,Supplies & Services
25/10/2016,G Ryder & Co Ltd,579900,"1,081.50",Curatorial Materials,Ramm,Supplies & Services
25/10/2016,Gullivers Truck Hire Ltd,581833,506.55,Routine Maintenance,Other Street Sweeping,Transport
25/10/2016,Ian Williams Ltd,581710,"7,436.48",Contract Payments,Structural Repairs,Supplies & Services
25/10/2016,K & J Electrical Contractors Ltd,582263,"2,001.11",Planned Rewires,Prog'D Elec Re-Wiring General,Supplies & Services
25/10/2016,K & J Electrical Contractors Ltd,582264,834.89,Planned Rewires,Prog'D Elec Re-Wiring General,Supplies & Services
25/10/2016,K & J Electrical Contractors Ltd,582265,"1,274.75",Planned Rewires,Prog'D Elec Re-Wiring General,Supplies & Services
25/10/2016,K & J Electrical Contractors Ltd,582266,"1,354.06",Planned Rewires,Prog'D Elec Re-Wiring General,Supplies & Services
25/10/2016,Kl Seymour,581890,"1,351.01",Special Events,Arts & Events,Supplies & Services
25/10/2016,M W Gozna Services Ltd,582267,240.00,Contract Payments,Adaptations,Supplies & Services
25/10/2016,M W Gozna Services Ltd,582269,452.07,Contract Payments,Adaptations,Supplies & Services
25/10/2016,North Devon Tyres Ltd,581855,382.40,Tyres,Other Street Sweeping,Transport
25/10/2016,North Devon Tyres Ltd,581857,310.17,Tyres,Refuse Collection,Transport
25/10/2016,Norville-Day Ltd,580913,"6,930.00",Consultants Fees,Museum Projects,Supplies & Services
25/10/2016,Orange Tree Toys Ltd,580866,372.84,Goods For Resale,Ramm,Supplies & Services
25/10/2016,Orchid Designs Ltd,578071,539.88,Goods For Resale,Museum Shop,Supplies & Services
25/10/2016,Pub Solutions (South West) Ltd,582237,280.00,Drivers Licences - 1 Year,Vehicles Licensing,Income
25/10/2016,Purchase Power,580928,"5,065.00",Postage/Stamps,Mail,Supplies & Services
25/10/2016,Renault Trucks Southwest,580287,437.10,Reactive Repairs,Parks And Playing Fields,Transport
25/10/2016,Scottish Power Group,578543,406.01,Electricity,Older Persons Accommodation,Premises
25/10/2016,South West Water,580372,281.20,Water,Shared House Psls,Premises
25/10/2016,South West Water,580375,342.26,Water,Extralet,Premises
25/10/2016,South West Water,580852,269.93,Water,Facilities Management - Assets,Premises
25/10/2016,South West Water,580879,693.65,Water,Public Conveniences - Assets,Premises
25/10/2016,South West Water,581625,"1,375.33",Water,Car Parks - Assets,Premises
25/10/2016,Southern Electric,579327,245.38,Electricity,Customer Relations,Premises
25/10/2016,Star Editions Ltd,577297,544.92,Goods For Resale,Museum Shop,Supplies & Services
25/10/2016,Tftp,582244,370.45,Consultants Fees,Health Education,Supplies & Services
25/10/2016,The Two Moors Festival,582229,863.65,Travel & Attraction Tickets,Exeter Visitor Information,Supplies & Services
25/10/2016,The Two Moors Festival,582231,803.70,Travel & Attraction Tickets,Exeter Visitor Information,Supplies & Services
25/10/2016,West Devon Business Information Point Ltd,581889,"25,000.00",Contributions,Economic/Partner Initiatives,Supplies & Services
25/10/2016,Yarto Europe Ltd,580227,310.56,Goods For Resale,Museum Shop,Supplies & Services
26/10/2016,Adecco Uk Ltd,581485,412.50,Temp.Contract-Agency Staff,Customer Relations,Pay
26/10/2016,Aflsp Ltd,581473,"21,151.23",Consultants Fees,Leisure Complex - Build,Supplies & Services
26/10/2016,And Now Ltd,580700,"4,190.00",Special Events,Arts & Events,Supplies & Services
26/10/2016,Aw Jenkinson Transport Ltd,581603,"1,470.00",Comingled Haulage Out,"Materials, Goods For Resale",Transport
26/10/2016,Backline Logistic Support,581448,404.41,Casuals Waged-Agency Staff,Agency Costs - Waste,Pay
26/10/2016,Brightsea Ltd,581041,343.00,Printing,Trade Refuse Collection,Supplies & Services
26/10/2016,British Telecom Plc,580022,18.00,Phone Calls For Fixed Phones,Strata,Supplies & Services
26/10/2016,British Telecom Plc,580022,526.74,Phone Line Rental Only,Strata,Supplies & Services
26/10/2016,Burrows-Hutchinson Ltd,582661,"2,500.00",Consultants Fees,Affordable Housing Development,Supplies & Services
26/10/2016,Burrows-Hutchinson Ltd,582662,500.00,Consultants Fees,Affordable Housing Development,Supplies & Services
26/10/2016,Cg Fry + Son Ltd,582660,"86,786.00",Grants Issued,Rennes House,Supplies & Services
26/10/2016,G & L Consultancy Ltd,579355,360.00,Staff Training,Learning & Development,Pay
26/10/2016,Helping Hand Company (Ledbury) Ltd,582254,252.20,Equipment Tools And Materials,City Centre Sweeping,Supplies & Services
26/10/2016,Northgate Public Services (Uk) Ltd,570928,"15,687.69",Software Licences/Support,Strata,Supplies & Services
26/10/2016,Nute Plumbing Services Ltd,582749,"3,678.45",Grants Issued,Disabled Facilities Grants,Supplies & Services
26/10/2016,Parker Merchanting Ltd,582061,468.00,Materials,Parks And Playing Fields,Supplies & Services
26/10/2016,Recruitment Solutions (Sw) Ltd,581481,318.72,Casuals Waged-Agency Staff,Agency Costs - Waste,Pay
26/10/2016,Rock Artist Management,581512,"1,200.00",Event Promotion,Ramm,Supplies & Services
26/10/2016,Structurehaus Ltd,582663,"5,200.00",Grants Issued,Rennes House,Supplies & Services
26/10/2016,The Oyster Partnership Ltd,582095,775.00,Temp.Contract-Agency Staff,Planning,Pay
26/10/2016,Tolchards Ltd,582665,777.88,Drinks,Exeter Corn Exchange,Supplies & Services
26/10/2016,Venn Group Ltd,582255,"2,070.00",Temp.Contract-Agency Staff,Procurement,Pay
27/10/2016,A1 Electrics,580174,"1,260.00",Aim Service & Maintenance,Property Maintenance,Premises
27/10/2016,A1 Electrics,580871,400.00,Aim Reactive Repairs,Property Maintenance,Premises
27/10/2016,Adt Fire And Security,575438,436.00,Aim Service & Maintenance,Guildhall Chambers,Premises
27/10/2016,Artifax Software Ltd,581498,706.88,Maintenance Of Equipment,Ramm,Supplies & Services
27/10/2016,Berry Recruitment,581605,537.01,Casuals Waged-Agency Staff,City Centre Sweeping,Pay
27/10/2016,Berry Recruitment,581606,399.23,Casuals Waged-Agency Staff,City Centre Sweeping,Pay
27/10/2016,Berry Recruitment,581641,285.94,Casuals Waged-Agency Staff,Reactive Team,Pay
27/10/2016,Berry Recruitment,581644,429.19,Casuals Waged-Agency Staff,Parks And Playing Fields,Pay
27/10/2016,Berry Recruitment,581648,399.23,Casuals Waged-Agency Staff,City Centre Sweeping,Pay
27/10/2016,Berry Recruitment,581694,318.31,Casuals Waged-Agency Staff,City Centre Sweeping,Pay
27/10/2016,Berry Recruitment,581695,399.23,Casuals Waged-Agency Staff,City Centre Sweeping,Pay
27/10/2016,British Telecom Plc,576866,"1,320.00",Web Access Service / Swisp,Strata,Supplies & Services
27/10/2016,British Telecom Plc,580505,48.00,Phone Calls For Fixed Phones,Strata,Supplies & Services
27/10/2016,British Telecom Plc,580505,193.25,Phone Line Rental Only,Strata,Supplies & Services
27/10/2016,Brook Street,581682,"1,200.51",Temp.Contract-Agency Staff,Health & Safety Compliance,Pay
27/10/2016,Cubic Products Ltd,582791,385.60,Goods For Resale,Museum Shop,Supplies & Services
27/10/2016,D R Jones (Yeovil) Ltd,582797,991.30,Contract Payments,Fire Prevention Work,Supplies & Services
27/10/2016,D R Jones (Yeovil) Ltd,582801,"3,236.87",Contract Payments,Bathroom Replacements,Supplies & Services
27/10/2016,D R Jones (Yeovil) Ltd,582803,"2,852.29",Contract Payments,Bathroom Replacements,Supplies & Services
27/10/2016,D R Jones (Yeovil) Ltd,582808,"4,774.91",Contract Payments,Kitchen Replacements,Supplies & Services
27/10/2016,D R Jones (Yeovil) Ltd,582809,"3,665.28",Contract Payments,Kitchen Replacements,Supplies & Services
27/10/2016,Dolphin Lifts South West,582754,"4,265.00",Grants Issued,Disabled Facilities Grants,Supplies & Services
27/10/2016,Dolphin Lifts South West,582755,"2,040.00",Grants Issued,Disabled Facilities Grants,Supplies & Services
27/10/2016,E.On   (Gas),581657,359.19,Gas,Civic Centre,Premises
27/10/2016,Electoral Reform Services Ltd,582987,"3,666.80",Other Expenses,Electoral Registration,Supplies & Services
27/10/2016,Euro  Business Information Services Ltd (Ebis,579990,395.00,Publications/Leaflets,Learning & Development,Supplies & Services
27/10/2016,Exeter Nissan,582251,55.00,Vehicle Road Tax,Vehicle Replacement Prog,Transport
27/10/2016,Exeter Nissan,582251,"17,916.46",Vehicle Acquisitions,Vehicle Replacement Prog,Transport
27/10/2016,F K Commercials Ltd,581886,195.50,Reactive Repairs,Refuse Collection,Transport
27/10/2016,F K Commercials Ltd,581886,399.58,Accident Repairs,Refuse Collection,Transport
27/10/2016,Freight Transport Association,581305,560.00,Conference/Seminars Costs,Transport Management,Supplies & Services
27/10/2016,Gale & Snowden,580881,"3,382.50",Equipment Tools And Materials,Museum Projects,Supplies & Services
27/10/2016,Gap Personnel,581446,333.56,Casuals Waged-Agency Staff,Cemeteries - Operational,Pay
27/10/2016,Gap Personnel,581446,640.22,Casuals Waged-Agency Staff,Other Street Sweeping,Pay
27/10/2016,Gap Personnel,581447,870.82,Casuals Waged-Agency Staff,Other Street Sweeping,Pay
27/10/2016,Gillian Taylor,581515,"2,612.50",Consultants Fees,Ramm,Supplies & Services
27/10/2016,Goldsworthy Heating,582757,"3,837.00",Grants Issued,Disabled Facilities Grants,Supplies & Services
27/10/2016,Gullivers Truck Hire Ltd,581882,556.92,Routine Maintenance,Parks Operational Overheads,Transport
27/10/2016,Gullivers Truck Hire Ltd,582248,875.00,Fleet - Hire Costs,Refuse Collection,Transport
27/10/2016,Holt Jcb Ltd,581863,386.57,Accident Repairs,Materials Reclamation Facility,Transport
27/10/2016,Holt Jcb Ltd,581865,305.00,Reactive Repairs,"Materials, Goods For Resale",Transport
27/10/2016,James Andrews Recruitment Solutions,576631,857.22,Temp.Contract-Agency Staff,Lettings & Leasehold,Pay
27/10/2016,James Andrews Recruitment Solutions,576631,116.89,Temp.Contract-Agency Staff,Rtb Sales Administration,Pay
27/10/2016,Jtt Contracting Ltd,582775,643.00,Contract Payments,Common Area Footpth/Wall Imps,Supplies & Services
27/10/2016,Keychange Charity,583004,382.50,Bed And Breakfast,Bed And Breakfast,Premises
27/10/2016,Keychange Charity,583005,"1,062.50",Bed And Breakfast,Bed And Breakfast,Premises
27/10/2016,Keychange Charity,583006,"1,317.50",Bed And Breakfast,Bed And Breakfast,Premises
27/10/2016,Keychange Charity,583007,"1,062.50",Bed And Breakfast,Bed And Breakfast,Premises
27/10/2016,Lifestyle Solutions,582758,"4,020.00",Grants Issued,Disabled Facilities Grants,Supplies & Services
27/10/2016,Masternaut (Uk) Ltd,582104,222.00,Routine Maintenance,Parks Operational Overheads,Transport
27/10/2016,Matt Austin Images Ltd,581704,260.00,Photographic Contract/Work,Ramm,Supplies & Services
27/10/2016,Morgan Hunt Uk Ltd,581691,853.84,Temp.Contract-Agency Staff,Revenues Recovery,Pay
27/10/2016,Nkuku Ltd,581702,556.50,Goods For Resale,Museum Shop,Supplies & Services
27/10/2016,Rd & E Nhs Foundation Trust,581892,81.68,Medical Inspections,Housing Cleansing Round,Pay
27/10/2016,Rd & E Nhs Foundation Trust,581892,320.10,Medical Inspections,Materials Reclamation Facility,Pay
27/10/2016,Rd & E Nhs Foundation Trust,581892,473.10,Medical Inspections,Refuse Collection,Pay
27/10/2016,Robert Heath Heating Ltd,582993,513.05,Contract Payments,Boiler Replacement Programme,Supplies & Services
27/10/2016,Robert Heath Heating Ltd,582994,513.05,Contract Payments,Boiler Replacement Programme,Supplies & Services
27/10/2016,Robert Heath Heating Ltd,582995,513.05,Contract Payments,Boiler Replacement Programme,Supplies & Services
27/10/2016,Ross & Roberts,582654,0.00,Bailiffs Fees,Revenues Recovery,Supplies & Services
27/10/2016,Ross & Roberts,582864,0.00,Bailiffs Fees,Revenues Recovery,Supplies & Services
27/10/2016,Royal Mail,582988,"1,173.10",Postage/Stamps,Electoral Registration,Supplies & Services
27/10/2016,Setsquare Recruitment,581693,182.34,Temp.Contract-Agency Staff,Planned Works,Pay
27/10/2016,Setsquare Recruitment,581693,273.50,Temp.Contract-Agency Staff,Reactive Repairs,Pay
27/10/2016,Stalite Signs Ltd,580893,433.00,Museum - Temp Exhibitions,Ramm,Supplies & Services
27/10/2016,The Best Connection Group Ltd,581680,"1,004.19",Casuals Waged-Agency Staff,Parks And Playing Fields,Pay
27/10/2016,Therm-Eco Ewi Ltd,583038,698.75,Grants Issued,Warm Up Exeter,Supplies & Services
27/10/2016,Therm-Eco Ewi Ltd,583039,"2,000.00",Grants Issued,Warm Up Exeter,Supplies & Services
27/10/2016,Therm-Eco Ewi Ltd,583040,673.50,Grants Issued,Warm Up Exeter,Supplies & Services
27/10/2016,Therm-Eco Ewi Ltd,583046,"2,000.00",Grants Issued,Warm Up Exeter,Supplies & Services
27/10/2016,Toucan Graphic Design Ltd,583078,"5,000.00",Activities Web Site,Renaissance - Core Activities,Supplies & Services
27/10/2016,Ustigate Ltd,581280,"2,287.00",Sub-Contractors,Childrens Play Areas,Premises
27/10/2016,Venn Group Ltd,581672,868.00,Temp.Contract-Agency Staff,Revenues Recovery,Pay
27/10/2016,Venn Group Ltd,581674,191.57,Temp.Contract-Agency Staff,Commercial Section,Pay
27/10/2016,Venn Group Ltd,581674,319.27,Temp.Contract-Agency Staff,General Environmental Services,Pay
27/10/2016,Venn Group Ltd,581674,34.83,Temp.Contract-Agency Staff,Looking Good Redesign Team,Pay
27/10/2016,Venn Group Ltd,581674,34.83,Temp.Contract-Agency Staff,Monitoring Private Housing,Pay
27/10/2016,Whistl Uk Ltd,582847,992.59,Postage/Stamps,Mail,Supplies & Services
27/10/2016,Whistl Uk Ltd,582848,"1,071.62",Postage/Stamps,Mail,Supplies & Services
28/10/2016,Burn The Curtain Theatre,582861,"1,900.00",Special Events,Arts & Events,Supplies & Services
28/10/2016,C R Willcocks & Co Ltd,582844,442.31,Reactive Repairs,Parks Operational Overheads,Transport
28/10/2016,Capricorn Engineering,581480,360.00,Equipment Tools And Materials,Car Parks,Supplies & Services
28/10/2016,D R Jones (Yeovil) Ltd,583050,"2,116.70",Contract Payments,Damp Ingress Repairs,Supplies & Services
28/10/2016,D R Jones (Yeovil) Ltd,583051,310.35,Planned Rewires,Prog'D Elec Re-Wiring General,Supplies & Services
28/10/2016,Daniels Healthcare Ltd,583068,290.00,Sharp Box,Trade Clinical Waste Coll,Supplies & Services
28/10/2016,Devon Tree Services Ltd,582743,"9,774.40",Sub-Contractors,River Exe - Assets,Premises
28/10/2016,Earth Anchors Ltd,582658,"3,496.00",Bins & Recycling Boxes,Litter Bins,Supplies & Services
28/10/2016,First Class Builders Ltd,583060,238.00,General Maintenance,General Maintenance,Premises
28/10/2016,G B Sport & Leisure,581669,675.00,Play Ground Repair/Inspect/Mnt,Childrens Play Areas,Premises
28/10/2016,Howdens Joinery Ltd,583080,478.66,Aim Reactive Repairs,Property Maintenance,Premises
28/10/2016,Interserve Fs (Uk) Ltd,581235,"7,053.97",Aim Service & Maintenance,Contracts Susp (Legionella),Premises
28/10/2016,K & J Electrical Contractors Ltd,581249,611.52,Sub-Contractors,River Exe - Assets,Premises
28/10/2016,M S Krage,583380,"1,000.00",Special Events,Arts & Events,Supplies & Services
28/10/2016,Marina O'Shea,582862,700.00,Special Events,Arts & Events,Supplies & Services
28/10/2016,Mears Ltd,581813,"3,454.23",Contract Payments,Adaptations,Supplies & Services
28/10/2016,Mears Ltd,581819,"1,113.59",General Maintenance,General Maintenance,Premises
28/10/2016,Mears Ltd,581819,"1,105.02",Glazing,General Maintenance,Premises
28/10/2016,Mears Ltd,581819,151.44,Blocks Of Flat Repairs,General Maintenance,Premises
28/10/2016,Mears Ltd,581866,"1,773.08",General Maintenance,General Maintenance,Premises
28/10/2016,Mears Ltd,582792,499.83,General Maintenance,General Maintenance,Premises
28/10/2016,Mears Ltd,582792,116.22,Blocks Of Flat Repairs,General Maintenance,Premises
28/10/2016,Mears Ltd,582795,92.52,General Maintenance,Elec Testing/Reactive,Premises
28/10/2016,Mears Ltd,582795,503.05,General Maintenance,General Maintenance,Premises
28/10/2016,Mears Ltd,582796,366.59,General Maintenance,Elec Testing/Reactive,Premises
28/10/2016,Mears Ltd,582796,"2,060.62",General Maintenance,General Maintenance,Premises
28/10/2016,Mears Ltd,582796,126.34,Floor Tiles,General Maintenance,Premises
28/10/2016,Mears Ltd,583047,21.68,General Maintenance,Elec Testing/Reactive,Premises
28/10/2016,Mears Ltd,583047,"1,065.60",General Maintenance,General Maintenance,Premises
28/10/2016,Mears Ltd,583047,273.84,Blocks Of Flat Repairs,General Maintenance,Premises
28/10/2016,Mears Ltd,583048,45.38,General Maintenance,Elec Testing/Reactive,Premises
28/10/2016,Mears Ltd,583048,561.27,General Maintenance,General Maintenance,Premises
28/10/2016,Mears Ltd,583058,539.31,General Maintenance,General Maintenance,Premises
28/10/2016,Mears Ltd,583058,42.16,Glazing,General Maintenance,Premises
28/10/2016,Mears Ltd,583058,72.30,Floor Tiles,General Maintenance,Premises
28/10/2016,Mears Ltd,583058,83.60,Blocks Of Flat Repairs,General Maintenance,Premises
28/10/2016,Mears Ltd,583115,91.58,General Maintenance,Elec Testing/Reactive,Premises
28/10/2016,Mears Ltd,583115,502.16,General Maintenance,General Maintenance,Premises
28/10/2016,Mears Ltd,583115,26.44,Blocks Of Flat Repairs,General Maintenance,Premises
28/10/2016,Protective Wear Supplies Ltd,583112,"1,348.80",Supplies And Equipment,Other Street Sweeping,Supplies & Services
28/10/2016,Protective Wear Supplies Ltd,583113,"1,901.02","Clothing, Laundry, & Uniforms",Cleansing Overheads,Supplies & Services
28/10/2016,South West Geotechnical,580816,"12,970.00",Contract Payments,Rougemont Grdns Path & Railing,Supplies & Services
28/10/2016,Tam Marketing Ltd,582746,582.40,Materials,Public Conveniences,Supplies & Services
28/10/2016,The Law Society,582824,"1,610.00",Professional Subscriptions,Legal Services,Pay
28/10/2016,Thrifty Scot Car Rentals,578518,271.50,Fleet - Hire Costs,Mayoralty,Transport
28/10/2016,West End Welding,582666,900.00,Sub-Contractors,Allotments - Assets,Premises
28/10/2016,Westwood Meters & Timers Ltd,583289,282.00,Equipment Tools And Materials,Canal - Assets,Supplies & Services
31/10/2016,Benbow Group Ltd,578741,"68,173.00",Equipment Tools And Materials,Ramm Shop,Supplies & Services
31/10/2016,Cambridge Professional Academy,582981,"1,155.00",Staff Training,Learning & Development,Pay
31/10/2016,First Class Builders Ltd,581800,"5,902.63",Contract Payments,Adaptations,Supplies & Services
31/10/2016,Greenham Trading Ltd,582252,324.80,"Clothing, Laundry, & Uniforms",Technical Support/Agenda 21,Supplies & Services
31/10/2016,John Kennard,583231,"12,197.15",Serviced Accommodation,Serviced Accommodation,Premises
31/10/2016,Mervyn Powell,583228,"8,494.35",Serviced Accommodation,Serviced Accommodation,Premises
31/10/2016,Mr M N Hassan,583229,"17,688.46",Serviced Accommodation,Serviced Accommodation,Premises
31/10/2016,Multilingua Devon Cic,582857,"1,025.00",Consultants Fees,General Management,Supplies & Services
31/10/2016,Opus International Consultants (Uk) Ltd,583010,"10,900.00",Contract Payments,Rennes House Structural Works,Supplies & Services
31/10/2016,Rics,583001,"1,035.00",Staff Training,Learning & Development,Pay
31/10/2016,Sphere Solutions Ltd,581698,217.25,Temp.Contract-Agency Staff,Planned Works,Pay
31/10/2016,Sphere Solutions Ltd,581698,325.88,Temp.Contract-Agency Staff,Reactive Repairs,Pay
31/10/2016,Venn Group Ltd,583057,866.80,Temp.Contract-Agency Staff,Legal Services,Pay
31/10/2016,Venn Group Ltd,583219,"1,517.34",Temp.Contract-Agency Staff,Legal Services,Pay
31/10/2016,W B Employment Ltd,583284,424.50,Temp.Contract-Agency Staff,Human Resources,Pay
31/10/2016,West End Welding,583342,265.00,Sub-Contractors,Allotments - Assets,Premises
31/10/2016,Zep Uk,583347,321.50,Materials,Public Conveniences,Supplies & Services
01/11/2016,Brandon Hire Plc,579856,236.00,Supplies And Equipment,Parks And Playing Fields,Supplies & Services
01/11/2016,Brandon Hire Plc,583045,352.00,Supplies And Equipment,Parks And Playing Fields,Supplies & Services
01/11/2016,Cale Briparc Ltd,581323,"4,350.00",Maintenance Of Equipment,Car Parks,Supplies & Services
01/11/2016,Clear Channel Uk Ltd,583504,795.00,Advertising,Home Call Alarm Service,Supplies & Services
01/11/2016,Concept Staffing Ltd,583305,428.89,Temp.Contract-Agency Staff,Land Charges,Pay
01/11/2016,Dac Beachcroft Claims Ltd,583230,0.00,Insurance Excess,General Management,Pay
01/11/2016,Devon Norse Ltd,578766,442.25,Cleaning,Cctv Control Room - Assets,Premises
01/11/2016,Equita Certificated Bailiffs,583061,98.56,Bailiffs Fees,Revenues Recovery,Supplies & Services
01/11/2016,Faac (Uk) Ltd,583509,547.00,Maintenance Of Equipment,Car Parks,Supplies & Services
01/11/2016,First Class Builders Ltd,583449,667.00,General Maintenance,General Maintenance,Premises
01/11/2016,Hospital Radio Publications,580225,545.00,Advertising,Home Call Alarm Service,Supplies & Services
01/11/2016,Iola Weir,583496,338.59,Special Events,Arts & Events,Supplies & Services
01/11/2016,James Andrews Recruitment Solutions,583346,322.80,Temp.Contract-Agency Staff,Development Team,Pay
01/11/2016,Kendall Kingscott Ltd,583008,"3,294.12",Contract Payments,Laings Refurbishments,Supplies & Services
01/11/2016,Kendall Kingscott Ltd,583009,700.00,Contract Payments,Energy Saving Projects,Supplies & Services
01/11/2016,Mears Ltd,583457,"3,743.09",General Maintenance,Repairs To Void Properties,Premises
01/11/2016,Mears Ltd,583458,"2,326.47",General Maintenance,Repairs To Void Properties,Premises
01/11/2016,Mears Ltd,583459,"1,848.33",General Maintenance,Repairs To Void Properties,Premises
01/11/2016,Mears Ltd,583460,"1,365.79",General Maintenance,Repairs To Void Properties,Premises
01/11/2016,Mears Ltd,583476,"5,347.28",General Maintenance,Repairs To Void Properties,Premises
01/11/2016,Mears Ltd,583482,"4,835.26",General Maintenance,Repairs To Void Properties,Premises
01/11/2016,Mears Ltd,583483,842.77,General Maintenance,Repairs To Void Properties,Premises
01/11/2016,Mears Ltd,583484,873.44,General Maintenance,Repairs To Void Properties,Premises
01/11/2016,Mears Ltd,583485,886.15,General Maintenance,Repairs To Void Properties,Premises
01/11/2016,Mears Ltd,583486,758.30,General Maintenance,Repairs To Void Properties,Premises
01/11/2016,Mears Ltd,583488,584.53,General Maintenance,Repairs To Void Properties,Premises
01/11/2016,Mears Ltd,583489,275.00,General Maintenance,Repairs To Void Properties,Premises
01/11/2016,Mears Ltd,583490,204.39,General Maintenance,Elec Testing/Reactive,Premises
01/11/2016,Mears Ltd,583490,"1,240.72",General Maintenance,General Maintenance,Premises
01/11/2016,Mears Ltd,583492,"1,841.22",Decs For Elderly & Disabled,Internal Decoration Prog,Premises
01/11/2016,Mears Ltd,583510,105.53,General Maintenance,Elec Testing/Reactive,Premises
01/11/2016,Mears Ltd,583510,391.65,General Maintenance,General Maintenance,Premises
01/11/2016,Mears Ltd,583512,157.84,General Maintenance,Elec Testing/Reactive,Premises
01/11/2016,Mears Ltd,583512,283.23,General Maintenance,General Maintenance,Premises
01/11/2016,Mears Ltd,583517,"4,184.82",General Maintenance,Repairs To Void Properties,Premises
01/11/2016,Mig Security & Events Ltd,580034,"1,885.50",Security Patrol,Car Parks - Assets,Premises
01/11/2016,Mr Malcolm Wilson Dodd,583441,450.00,Special Events,Arts & Events,Supplies & Services
01/11/2016,Protective Wear Supplies Ltd,583639,532.40,"Clothing, Laundry, & Uniforms",Cleansing Overheads,Supplies & Services
01/11/2016,Protective Wear Supplies Ltd,583642,287.20,"Clothing, Laundry, & Uniforms",Cleansing Overheads,Supplies & Services
01/11/2016,Rose Removals & Storage,583069,321.76,Tenants Removal And Legal Exp,Lettings & Leasehold,Supplies & Services
01/11/2016,St John Ambulance Devon,583073,800.74,Equipment Tools And Materials,Cleansing Overheads,Supplies & Services
01/11/2016,Teignbridge District Council,582106,886.28,Cash Collection Service,Cash Collection,Supplies & Services
01/11/2016,The Oyster Partnership Ltd,583501,604.50,Temp.Contract-Agency Staff,Planning,Pay
01/11/2016,Tunstall Healthcare (Uk) Ltd,583526,234.91,Home Call Alarm Equipment,Home Call Alarm Service,Supplies & Services
02/11/2016,Br Holdford,583092,788.00,Marketing,Ramm,Supplies & Services
02/11/2016,Complete Weed Control (Somerset & Devon),583655,600.00,Sub-Contractors,Canal - Assets,Premises
02/11/2016,Complete Weed Control (Somerset & Devon),583656,495.00,Sub-Contractors,Canal - Assets,Premises
02/11/2016,County Tyres,583081,394.00,Tyres,Refuse Collection,Transport
02/11/2016,D R Jones (Yeovil) Ltd,583609,527.85,General Maintenance,General Maintenance,Premises
02/11/2016,D R Jones (Yeovil) Ltd,583614,"4,687.91",Contract Payments,Kitchen Replacements,Supplies & Services
02/11/2016,D R Jones (Yeovil) Ltd,583617,"27,672.07",Contract Payments,Fire Prevention Work,Supplies & Services
02/11/2016,D R Jones (Yeovil) Ltd,583641,"3,080.50",Contract Payments,Bathroom Replacements,Supplies & Services
02/11/2016,D R Jones (Yeovil) Ltd,583643,"3,001.31",Contract Payments,Bathroom Replacements,Supplies & Services
02/11/2016,E.On   (Electricity),580433,"7,490.94",Electricity,Ramm,Premises
02/11/2016,E.On   (Gas),581659,"2,121.71",Gas,Ramm,Premises
02/11/2016,Energyserv Uk Ltd,583586,841.50,Gas & Central Heat Servicing,Service Contracts,Premises
02/11/2016,Exeter City Council,583053,600.00,Exeter Festival Imprest,Ecc Balance Sheet,Current Assets
02/11/2016,F K Commercials Ltd,583044,276.14,Reactive Repairs,Refuse Collection,Transport
02/11/2016,F K Commercials Ltd,583049,214.29,Reactive Repairs,Refuse Collection,Transport
02/11/2016,First Cleaning Choice,581707,"1,335.00",Cleaning,Ramm,Premises
02/11/2016,H & S Transport Ltd,574314,568.50,Sub-Contractors,Land Drainage Water C - Assets,Premises
02/11/2016,Havills Maintenance Ltd T/A Havmain,579622,297.29,Aim Service & Maintenance,Property Maintenance,Premises
02/11/2016,Havills Maintenance Ltd T/A Havmain,580265,293.40,Aim Service & Maintenance,Property Maintenance,Premises
02/11/2016,K & J Electrical Contractors Ltd,583590,"3,292.74",Planned Rewires,Prog'D Elec Re-Wiring General,Supplies & Services
02/11/2016,Keith Gridley,583747,300.00,Fire Risk Assessment,Service Contracts,Premises
02/11/2016,Mears Ltd,583491,989.81,General Maintenance,General Maintenance,Premises
02/11/2016,Mears Ltd,583491,28.95,Blocks Of Flat Repairs,General Maintenance,Premises
02/11/2016,Mears Ltd,583599,29.57,General Maintenance,Elec Testing/Reactive,Premises
02/11/2016,Mears Ltd,583599,634.43,General Maintenance,General Maintenance,Premises
02/11/2016,Mears Ltd,583603,425.45,General Maintenance,General Maintenance,Premises
02/11/2016,Mears Ltd,583603,21.73,Blocks Of Flat Repairs,General Maintenance,Premises
02/11/2016,Mears Ltd,583604,598.04,General Maintenance,General Maintenance,Premises
02/11/2016,Mears Ltd,583604,30.40,Blocks Of Flat Repairs,General Maintenance,Premises
02/11/2016,Mears Ltd,583611,136.04,Repairs To Void Properties,Extralet,Premises
02/11/2016,Mears Ltd,583611,35.00,Reactive Repairs To Property,Extralet,Premises
02/11/2016,Mears Ltd,583611,89.64,Reactive Repairs To Property,Psl Properties,Premises
02/11/2016,Mears Ltd,583611,21.68,Reactive Repairs To Property,Shared House Psls,Premises
02/11/2016,Mears Ltd,583611,46.17,Reactive Repairs To Property,The Haven,Premises
02/11/2016,Mears Ltd,583625,23.70,General Maintenance,Elec Testing/Reactive,Premises
02/11/2016,Mears Ltd,583625,454.38,General Maintenance,General Maintenance,Premises
02/11/2016,Mears Ltd,583625,21.68,Blocks Of Flat Repairs,General Maintenance,Premises
02/11/2016,Mears Ltd,583625,64.46,Reactive Repairs To Property,Psl Properties,Premises
02/11/2016,Mears Ltd,583631,91.68,General Maintenance,Elec Testing/Reactive,Premises
02/11/2016,Mears Ltd,583631,36.33,Blocks Of Flat Repairs,Elec Testing/Reactive,Premises
02/11/2016,Mears Ltd,583631,160.06,General Maintenance,General Maintenance,Premises
02/11/2016,Mears Ltd,583631,142.39,Blocks Of Flat Repairs,General Maintenance,Premises
02/11/2016,Mears Ltd,583764,494.93,General Maintenance,General Maintenance,Premises
02/11/2016,Mears Ltd,583764,54.75,Floor Tiles,General Maintenance,Premises
02/11/2016,Mears Ltd,583765,250.66,General Maintenance,General Maintenance,Premises
02/11/2016,Mears Ltd,583766,317.18,General Maintenance,General Maintenance,Premises
02/11/2016,Mears Ltd,583768,65.22,General Maintenance,Elec Testing/Reactive,Premises
02/11/2016,Mears Ltd,583768,438.00,General Maintenance,General Maintenance,Premises
02/11/2016,Mears Ltd,583769,58.70,General Maintenance,Elec Testing/Reactive,Premises
02/11/2016,Mears Ltd,583769,490.22,General Maintenance,General Maintenance,Premises
02/11/2016,Mercure Exeter Rougemont Hotel,583738,"4,940.25",Staff Training,Learning & Development,Pay
02/11/2016,Nute Plumbing Services Ltd,582643,"4,316.00",Contract Payments,Adaptations,Supplies & Services
02/11/2016,Premier Power Products Ltd,580053,229.73,Play Ground Repair/Inspect/Mnt,Childrens Play Areas,Premises
02/11/2016,Protective Wear Supplies Ltd,583114,441.60,Supplies And Equipment,Other Street Sweeping,Supplies & Services
02/11/2016,Rob Sims,583672,"2,600.00",Consultants Fees,Leisure Complex - Pr,Supplies & Services
02/11/2016,Sciprint Ltd,582653,"1,519.05",Stationery,Electoral Registration,Supplies & Services
02/11/2016,Secureforce Uk Ltd,580864,273.00,Central Alarm Service,Ramm,Premises
02/11/2016,Secureforce Uk Ltd,581495,"3,346.80",Central Alarm Service,Ramm,Premises
02/11/2016,South West Water,581599,"1,787.05",Water,Ramm,Premises
02/11/2016,South West Water,582249,312.75,Water,Scrapstore,Premises
02/11/2016,University Of Exeter,572945,"5,040.00",Subscriptions,Corporate Energy Team,Supplies & Services
02/11/2016,W J Mathews (Exeter) Ltd,582970,"1,158.20",Sewerage Pump Maintenance,Service Contracts,Premises
02/11/2016,Xylem Water Solutions,578733,416.00,Sewerage Pump Maintenance,Service Contracts,Premises
03/11/2016,Brook Street,583802,"1,188.41",Temp.Contract-Agency Staff,Health & Safety Compliance,Pay
03/11/2016,Cfc Solutions,583381,"8,204.91",Software Licences/Support,Strata,Supplies & Services
03/11/2016,Edenbrown Synergy,583280,985.63,Temp.Contract-Agency Staff,Commercial Section,Pay
03/11/2016,Edenbrown Synergy,583341,931.25,Temp.Contract-Agency Staff,Customer Service Centre,Pay
03/11/2016,Edenbrown Synergy,583798,956.25,Temp.Contract-Agency Staff,Customer Service Centre,Pay
03/11/2016,First Class Builders Ltd,583856,"4,781.20",Contract Payments,Adaptations,Supplies & Services
03/11/2016,Glendale Countryside Ltd,583825,725.00,Sub-Contractors,Countryside Man - Assets,Premises
03/11/2016,Glendale Countryside Ltd,583826,690.00,Countryside Management,Countryside Man - Assets,Premises
03/11/2016,Glendale Countryside Ltd,583828,495.00,Sub-Contractors,Countryside Man - Assets,Premises
03/11/2016,Hamlin Lane Allotments,583840,410.00,Rates,Allotments,Premises
03/11/2016,I-Civils Ltd,583834,492.00,Sub-Contractors,Footpaths Maint - Assets,Premises
03/11/2016,I-Civils Ltd,583836,"1,325.00",Sub-Contractors,Footpaths Maint - Assets,Premises
03/11/2016,J W  Lake,583846,996.99,Special Events,Arts & Events,Supplies & Services
03/11/2016,Jtt Contracting Ltd,581482,"16,037.52",Sub-Contractors,Radio 1 Big Weekend,Premises
03/11/2016,Morgan Hunt Uk Ltd,583362,"1,062.50",Temp.Contract-Agency Staff,Revenues Recovery,Pay
03/11/2016,Morgan Hunt Uk Ltd,583365,757.90,Temp.Contract-Agency Staff,Revenues Recovery,Pay
03/11/2016,Novar Systems Ltd,582096,319.64,Rechargeable Repairs,Bradninch Place,Premises
03/11/2016,Parker Merchanting Ltd,583525,579.40,Materials,Parks And Playing Fields,Supplies & Services
03/11/2016,REDACTED PERSONAL DATA,583821,280.00,Grants Issued,Grants And Contributions,Supplies & Services
03/11/2016,Sound Events Ltd,583791,"1,642.76",Special Events,Arts & Events,Supplies & Services
03/11/2016,Venn Group Ltd,578114,"2,300.00",Temp.Contract-Agency Staff,Procurement,Pay
03/11/2016,Venn Group Ltd,579056,"2,300.00",Temp.Contract-Agency Staff,Procurement,Pay
03/11/2016,Venn Group Ltd,579787,74.07,Temp.Contract-Agency Staff,Commercial Section,Pay
03/11/2016,Venn Group Ltd,579787,123.45,Temp.Contract-Agency Staff,General Environmental Services,Pay
03/11/2016,Venn Group Ltd,579787,13.47,Temp.Contract-Agency Staff,Looking Good Redesign Team,Pay
03/11/2016,Venn Group Ltd,579787,13.47,Temp.Contract-Agency Staff,Monitoring Private Housing,Pay
03/11/2016,Venn Group Ltd,583348,191.57,Temp.Contract-Agency Staff,Commercial Section,Pay
03/11/2016,Venn Group Ltd,583348,319.28,Temp.Contract-Agency Staff,General Environmental Services,Pay
03/11/2016,Venn Group Ltd,583348,34.83,Temp.Contract-Agency Staff,Looking Good Redesign Team,Pay
03/11/2016,Venn Group Ltd,583348,34.82,Temp.Contract-Agency Staff,Monitoring Private Housing,Pay
03/11/2016,Whistl Uk Ltd,583593,214.77,Postage/Stamps,Mail,Supplies & Services
03/11/2016,Whistl Uk Ltd,583595,"1,423.87",Postage/Stamps,Mail,Supplies & Services
04/11/2016,Adecco Uk Ltd,583339,412.50,Temp.Contract-Agency Staff,Customer Relations,Pay
04/11/2016,Arcadis Llp,583636,"3,500.00",Consultants Fees,Bus Station Construction,Supplies & Services
04/11/2016,Atg Ltd,582996,438.70,Travel & Attraction Tickets,Exeter Visitor Information,Supplies & Services
04/11/2016,Atg Ltd,583382,281.58,Travel & Attraction Tickets,Exeter Visitor Information,Supplies & Services
04/11/2016,Backline Logistic Support,565259,404.41,Casuals Waged-Agency Staff,Car Park Sweeping,Pay
04/11/2016,Bidvest Foodservice,583796,509.04,Food,Exeter Corn Exchange,Supplies & Services
04/11/2016,British Telecom Plc,580025,18.00,Phone Calls For Fixed Phones,Strata,Supplies & Services
04/11/2016,British Telecom Plc,580025,"5,043.14",Phone Line Rental Only,Strata,Supplies & Services
04/11/2016,Building Recruitment Co Ltd,577778,859.51,Temp.Contract-Agency Staff,Housing Advice,Pay
04/11/2016,Building Recruitment Co Ltd,578847,859.51,Temp.Contract-Agency Staff,Choice Based Lettings,Pay
04/11/2016,Building Recruitment Co Ltd,579809,859.51,Temp.Contract-Agency Staff,Choice Based Lettings,Pay
04/11/2016,Concept Staffing Ltd,583316,817.74,Casuals Waged-Agency Staff,Agency Costs - Waste,Pay
04/11/2016,Cuda Drinks Co Ltd,582744,410.65,Drinks,Exeter Corn Exchange,Supplies & Services
04/11/2016,Devon Norse Ltd,583064,372.04,Cleaning,Custom House Visitor Centre,Premises
04/11/2016,Epc Tickets,583247,774.25,Travel & Attraction Tickets,Exeter Visitor Information,Supplies & Services
04/11/2016,Ian Williams Ltd,583936,"83,515.02",General Maintenance,Low Maint & Painting Flats,Premises
04/11/2016,Independent Futures Cic,583953,"10,744.98",Serviced Accommodation,Serviced Accommodation,Premises
04/11/2016,James Andrews Recruitment Solutions,583344,20.39,Temp.Contract-Agency Staff,Cob Management,Pay
04/11/2016,James Andrews Recruitment Solutions,583344,61.16,Temp.Contract-Agency Staff,Gf Hsg Property Management,Pay
04/11/2016,James Andrews Recruitment Solutions,583344,937.80,Temp.Contract-Agency Staff,Reactive Repairs,Pay
04/11/2016,James Andrews Recruitment Solutions,583363,20.32,Temp.Contract-Agency Staff,Cob Management,Pay
04/11/2016,James Andrews Recruitment Solutions,583363,60.95,Temp.Contract-Agency Staff,Gf Hsg Property Management,Pay
04/11/2016,James Andrews Recruitment Solutions,583363,934.58,Temp.Contract-Agency Staff,Reactive Repairs,Pay
04/11/2016,Jon-Paul Hedge,584155,"2,495.83",Consultants Fees,Press & Public Relations,Supplies & Services
04/11/2016,K & J Electrical Contractors Ltd,584025,330.67,Planned Rewires,Prog'D Elec Re-Wiring General,Supplies & Services
04/11/2016,K & J Electrical Contractors Ltd,584026,593.25,Planned Rewires,Prog'D Elec Re-Wiring General,Supplies & Services
04/11/2016,K & J Electrical Contractors Ltd,584178,611.52,Sub-Contractors,River Exe - Assets,Premises
04/11/2016,Mears Ltd,583951,"7,122.38",General Maintenance,Repairs To Void Properties,Premises
04/11/2016,Mears Ltd,583952,"6,453.80",Revenue Repairs Contingency,General Maintenance,Premises
04/11/2016,Mears Ltd,584020,"8,179.24",General Maintenance,Repairs To Void Properties,Premises
04/11/2016,Meridian Business Support,583315,646.25,Temp.Contract-Agency Staff,Estate Services,Pay
04/11/2016,Metta Theatre Ltd,583932,400.00,Grants Issued,Grants And Contributions,Supplies & Services
04/11/2016,Off The Kerb Productions,583748,900.00,Event Promotion,Exeter Corn Exchange,Supplies & Services
04/11/2016,REDACTED PERSONAL DATA,583933,400.00,Grants Issued,Grants And Contributions,Supplies & Services
04/11/2016,Robert Heath Heating Ltd,583946,513.05,Contract Payments,Boiler Replacement Programme,Supplies & Services
04/11/2016,Robert Heath Heating Ltd,583947,513.05,Contract Payments,Boiler Replacement Programme,Supplies & Services
04/11/2016,Robert Heath Heating Ltd,583948,944.00,Contract Payments,Boiler Replacement Programme,Supplies & Services
04/11/2016,Robert Heath Heating Ltd,583949,618.89,Contract Payments,Boiler Replacement Programme,Supplies & Services
04/11/2016,Robert Heath Heating Ltd,583950,"2,273.82",Contract Payments,Central Heating Programme,Supplies & Services
04/11/2016,Robert Heath Heating Ltd,583997,594.05,Contract Payments,Boiler Replacement Programme,Supplies & Services
04/11/2016,Robert Heath Heating Ltd,583999,513.05,Contract Payments,Boiler Replacement Programme,Supplies & Services
04/11/2016,Robert Heath Heating Ltd,584000,513.05,Contract Payments,Boiler Replacement Programme,Supplies & Services
04/11/2016,Robert Heath Heating Ltd,584002,513.05,Contract Payments,Boiler Replacement Programme,Supplies & Services
04/11/2016,Robert Heath Heating Ltd,584004,513.05,Contract Payments,Boiler Replacement Programme,Supplies & Services
04/11/2016,Setsquare Recruitment,583321,175.23,Temp.Contract-Agency Staff,Planned Works,Pay
04/11/2016,Setsquare Recruitment,583321,262.85,Temp.Contract-Agency Staff,Reactive Repairs,Pay
04/11/2016,Setsquare Recruitment,583827,175.23,Temp.Contract-Agency Staff,Planned Works,Pay
04/11/2016,Setsquare Recruitment,583827,262.85,Temp.Contract-Agency Staff,Reactive Repairs,Pay
04/11/2016,South West Compactor Services,583056,742.15,Maintenance Of Equipment,Materials Reclamation Facility,Supplies & Services
04/11/2016,Sungift Solar Ltd,584047,"14,195.58",Contract Payments,Energy Saving Projects,Supplies & Services
04/11/2016,The Two Moors Festival,583244,875.90,Travel & Attraction Tickets,Exeter Visitor Information,Supplies & Services
04/11/2016,Tolchards Ltd,583657,"1,513.29",Drinks,Exeter Corn Exchange,Supplies & Services
04/11/2016,Trump Engineering Ltd,582989,286.00,Equipment Tools And Materials,Materials Reclamation Facility,Supplies & Services
07/11/2016,Arcadis Llp,583615,"45,368.02",Grants Issued,St Loyes Design Fees,Supplies & Services
07/11/2016,Berry Recruitment,583314,318.31,Casuals Waged-Agency Staff,City Centre Sweeping,Pay
07/11/2016,Concept Staffing Ltd,583277,369.46,Casuals Waged-Agency Staff,Car Park Sweeping,Pay
07/11/2016,Concept Staffing Ltd,583277,123.53,Casuals Waged-Agency Staff,City Centre Sweeping,Pay
07/11/2016,Concept Staffing Ltd,583277,123.53,Casuals Waged-Agency Staff,Other Street Sweeping,Pay
07/11/2016,Concept Staffing Ltd,583277,172.94,Casuals Waged-Agency Staff,Public Conveniences,Pay
07/11/2016,Concept Staffing Ltd,583302,"1,016.55",Casuals Waged-Agency Staff,Car Park Sweeping,Pay
07/11/2016,Concept Staffing Ltd,583302,868.92,Casuals Waged-Agency Staff,Childrens Play Areas,Pay
07/11/2016,Concept Staffing Ltd,583302,412.18,Casuals Waged-Agency Staff,City Centre Sweeping,Pay
07/11/2016,Concept Staffing Ltd,583302,701.84,Casuals Waged-Agency Staff,Public Conveniences,Pay
07/11/2016,Concept Staffing Ltd,583308,"1,308.99",Casuals Waged-Agency Staff,Car Park Sweeping,Pay
07/11/2016,Concept Staffing Ltd,583308,846.64,Casuals Waged-Agency Staff,Childrens Play Areas,Pay
07/11/2016,Concept Staffing Ltd,583308,412.18,Casuals Waged-Agency Staff,City Centre Sweeping,Pay
07/11/2016,Concept Staffing Ltd,583308,701.84,Casuals Waged-Agency Staff,Public Conveniences,Pay
07/11/2016,Concept Staffing Ltd,583773,434.46,Temp.Contract-Agency Staff,Land Charges,Pay
07/11/2016,Edenbrown Synergy,583799,"1,155.70",Temp.Contract-Agency Staff,Commercial Section,Pay
07/11/2016,Gae Smith Holdings Ltd T/A Casepak,583074,"4,645.12",Processing Comingled Materials,"Materials, Goods For Resale",Supplies & Services
07/11/2016,Gap Personnel,579892,381.98,Casuals Waged-Agency Staff,Materials Reclamation Facility,Pay
07/11/2016,Gregory Distribution  Ltd,582652,273.10,Paper Haulage Out,"Materials, Goods For Resale",Transport
07/11/2016,Housing Partners Ltd,583076,263.67,Software Licences/Support,Customer Relations,Supplies & Services
07/11/2016,Housing Partners Ltd,583077,"5,721.65",Software Licences/Support,Customer Relations,Supplies & Services
07/11/2016,Jtt Contracting Ltd,583243,"2,440.00",Sub-Contractors,Ecqt Suspense,Premises
07/11/2016,K & J Electrical Contractors Ltd,584303,618.89,Planned Rewires,Prog'D Elec Re-Wiring General,Supplies & Services
07/11/2016,K & J Electrical Contractors Ltd,584304,"1,013.44",Planned Rewires,Prog'D Elec Re-Wiring General,Supplies & Services
07/11/2016,Kirkham Board Associates,582053,325.00,Empty Property Charges,Livestock/Matford Centre,Premises
07/11/2016,Kone Plc,583505,525.40,Aim Lease Requirements,Bradninch Place,Premises
07/11/2016,Kone Plc,583506,"1,970.20",Rechargeable Repairs,Commercial Properties,Premises
07/11/2016,Mears Ltd,581870,"3,497.11",General Maintenance,Repairs To Void Properties,Premises
07/11/2016,Mears Ltd,582841,21.68,General Maintenance,Elec Testing/Reactive,Premises
07/11/2016,Mears Ltd,582841,613.59,General Maintenance,General Maintenance,Premises
07/11/2016,Mears Ltd,582841,86.26,Blocks Of Flat Repairs,General Maintenance,Premises
07/11/2016,Mears Ltd,583487,540.34,General Maintenance,Repairs To Void Properties,Premises
07/11/2016,Mears Ltd,583514,155.17,General Maintenance,Elec Testing/Reactive,Premises
07/11/2016,Mears Ltd,583514,525.13,General Maintenance,General Maintenance,Premises
07/11/2016,Mears Ltd,583619,173.29,General Maintenance,Elec Testing/Reactive,Premises
07/11/2016,Mears Ltd,583619,503.99,General Maintenance,General Maintenance,Premises
07/11/2016,Mears Ltd,583619,122.30,Blocks Of Flat Repairs,General Maintenance,Premises
07/11/2016,Mears Ltd,583621,44.72,General Maintenance,Elec Testing/Reactive,Premises
07/11/2016,Mears Ltd,583621,488.01,General Maintenance,General Maintenance,Premises
07/11/2016,Mears Ltd,583621,29.81,Blocks Of Flat Repairs,General Maintenance,Premises
07/11/2016,Mears Ltd,583628,43.36,General Maintenance,Elec Testing/Reactive,Premises
07/11/2016,Mears Ltd,583628,488.54,General Maintenance,General Maintenance,Premises
07/11/2016,Mears Ltd,583649,45.38,General Maintenance,Elec Testing/Reactive,Premises
07/11/2016,Mears Ltd,583649,153.41,General Maintenance,General Maintenance,Premises
07/11/2016,Mears Ltd,583649,55.13,Blocks Of Flat Repairs,General Maintenance,Premises
07/11/2016,Mears Ltd,584005,"5,624.30",General Maintenance,Repairs To Void Properties,Premises
07/11/2016,Playsafety Limited,584184,"1,250.00",Staff Training,Learning & Development,Pay
07/11/2016,Riverside Christian Centre,584139,300.00,Grants Issued,Community Inclusion & Involv'T,Supplies & Services
07/11/2016,Robert Heath Heating Ltd,584306,"3,751.93",Gas & Central Heat Servicing,Service Contracts,Premises
07/11/2016,Robert Heath Heating Ltd,584308,724.38,Service & Maint Agreements,Psl Properties,Premises
07/11/2016,Robert Heath Heating Ltd,584309,241.46,Service & Maint Agreements,Extralet,Premises
07/11/2016,Scan Coin Ltd,583345,"1,994.50",Maintenance Of Equipment,Strata,Supplies & Services
07/11/2016,Sphere Solutions Ltd,583324,214.50,Temp.Contract-Agency Staff,Planned Works,Pay
07/11/2016,Sphere Solutions Ltd,583324,321.75,Temp.Contract-Agency Staff,Reactive Repairs,Pay
07/11/2016,Sphere Solutions Ltd,583824,220.00,Temp.Contract-Agency Staff,Planned Works,Pay
07/11/2016,Sphere Solutions Ltd,583824,330.00,Temp.Contract-Agency Staff,Reactive Repairs,Pay
07/11/2016,Splitz Support Service,577449,"3,679.67",Grants Issued,The Exeter Board,Supplies & Services
07/11/2016,Spring Personnel,583829,412.50,Temp.Contract-Agency Staff,Customer Relations,Pay
07/11/2016,Staffordshire University,583844,"2,040.00",Staff Training,Learning & Development,Pay
07/11/2016,Venn Group Ltd,580707,191.57,Temp.Contract-Agency Staff,Commercial Section,Pay
07/11/2016,Venn Group Ltd,580707,319.27,Temp.Contract-Agency Staff,General Environmental Services,Pay
07/11/2016,Venn Group Ltd,580707,34.83,Temp.Contract-Agency Staff,Looking Good Redesign Team,Pay
07/11/2016,Venn Group Ltd,580707,34.83,Temp.Contract-Agency Staff,Monitoring Private Housing,Pay
07/11/2016,Whipton Community Association,583974,300.00,Grants Issued,Community Inclusion & Involv'T,Supplies & Services
07/11/2016,Worldwide Waste Wise Ltd,583833,315.00,Staff Training,Learning & Development,Pay
08/11/2016,Ashfords,583992,"7,858.00",Consultants Fees,Major Projects,Supplies & Services
08/11/2016,Ashfords,583994,"1,792.00",Consultants Fees,Major Projects,Supplies & Services
08/11/2016,Berry Recruitment,583317,429.19,Casuals Waged-Agency Staff,Parks And Playing Fields,Pay
08/11/2016,Berry Recruitment,583320,399.23,Casuals Waged-Agency Staff,City Centre Sweeping,Pay
08/11/2016,Berry Recruitment,583323,474.13,Casuals Waged-Agency Staff,City Centre Sweeping,Pay
08/11/2016,Berry Recruitment,583361,406.72,Casuals Waged-Agency Staff,City Centre Sweeping,Pay
08/11/2016,Berry Recruitment,583809,356.07,Casuals Waged-Agency Staff,City Centre Sweeping,Pay
08/11/2016,Berry Recruitment,583810,399.23,Casuals Waged-Agency Staff,City Centre Sweeping,Pay
08/11/2016,Concept Staffing Ltd,583325,412.18,Casuals Waged-Agency Staff,Materials Reclamation Facility,Pay
08/11/2016,Concept Staffing Ltd,583770,412.18,Casuals Waged-Agency Staff,Materials Reclamation Facility,Pay
08/11/2016,Concept Staffing Ltd,583771,241.78,Casuals Waged-Agency Staff,Materials Reclamation Facility,Pay
08/11/2016,Concept Staffing Ltd,583774,"1,365.83",Casuals Waged-Agency Staff,Car Park Sweeping,Pay
08/11/2016,Concept Staffing Ltd,583774,690.68,Casuals Waged-Agency Staff,Childrens Play Areas,Pay
08/11/2016,Concept Staffing Ltd,583774,824.36,Casuals Waged-Agency Staff,City Centre Sweeping,Pay
08/11/2016,Concept Staffing Ltd,583774,406.63,Casuals Waged-Agency Staff,Public Conveniences,Pay
08/11/2016,D R Jones (Yeovil) Ltd,583638,"3,748.67",Contract Payments,Kitchen Replacements,Supplies & Services
08/11/2016,Devon County Council,582057,"60,973.79",Waste Disposal,Trade Refuse Collection,Supplies & Services
08/11/2016,Devon County Council,582058,"53,934.44",Waste Disposal,Trade Refuse Collection,Supplies & Services
08/11/2016,Dodd Group (South) Ltd,584504,664.24,Electrical Testing Dwellings,Elec Testing/Reactive,Premises
08/11/2016,Dodd Group (South) Ltd,584505,664.24,Electrical Testing Dwellings,Elec Testing/Reactive,Premises
08/11/2016,Dodd Group (South) Ltd,584506,664.24,Electrical Testing Dwellings,Elec Testing/Reactive,Premises
08/11/2016,Dodd Group (South) Ltd,584507,664.24,Electrical Testing Dwellings,Elec Testing/Reactive,Premises
08/11/2016,Dodd Group (South) Ltd,584508,415.15,Electrical Testing Dwellings,Elec Testing/Reactive,Premises
08/11/2016,Dolphin Lifts South West,584149,"4,400.00",Grants Issued,Disabled Facilities Grants,Supplies & Services
08/11/2016,Dolphin Lifts South West,584515,"3,200.00",Grants Issued,Disabled Facilities Grants,Supplies & Services
08/11/2016,Gap Personnel,583356,430.12,Casuals Waged-Agency Staff,Cemeteries - Operational,Pay
08/11/2016,Gap Personnel,583356,645.60,Casuals Waged-Agency Staff,Other Street Sweeping,Pay
08/11/2016,Gap Personnel,583358,398.12,Casuals Waged-Agency Staff,Materials Reclamation Facility,Pay
08/11/2016,Gap Personnel,583371,834.42,Casuals Waged-Agency Staff,Other Street Sweeping,Pay
08/11/2016,Goldsworthy Heating,584516,"5,196.00",Grants Issued,Disabled Facilities Grants,Supplies & Services
08/11/2016,Ichabods Industries Ltd,584195,"1,400.00",Subscriptions,Accountancy Services,Supplies & Services
08/11/2016,Mears Ltd,584395,"2,275.68",Contract Payments,Adaptations,Supplies & Services
08/11/2016,Mears Ltd,584396,"3,519.48",General Maintenance,Repairs To Void Properties,Premises
08/11/2016,Mears Ltd,584397,"3,098.39",General Maintenance,Repairs To Void Properties,Premises
08/11/2016,Mears Ltd,584398,820.71,General Maintenance,Repairs To Void Properties,Premises
08/11/2016,Mears Ltd,584400,599.41,General Maintenance,Repairs To Void Properties,Premises
08/11/2016,Mears Ltd,584401,"4,098.55",General Maintenance,Repairs To Void Properties,Premises
08/11/2016,Mears Ltd,584402,411.95,Repairs To Void Properties,The Haven,Premises
08/11/2016,Mears Ltd,584404,39.94,General Maintenance,Elec Testing/Reactive,Premises
08/11/2016,Mears Ltd,584404,607.60,General Maintenance,General Maintenance,Premises
08/11/2016,Mears Ltd,584404,50.56,Blocks Of Flat Repairs,General Maintenance,Premises
08/11/2016,Mears Ltd,584405,410.79,General Maintenance,General Maintenance,Premises
08/11/2016,Mears Ltd,584405,104.03,Blocks Of Flat Repairs,General Maintenance,Premises
08/11/2016,Mears Ltd,584406,65.30,General Maintenance,Elec Testing/Reactive,Premises
08/11/2016,Mears Ltd,584406,143.53,General Maintenance,General Maintenance,Premises
08/11/2016,Mears Ltd,584407,21.68,General Maintenance,Elec Testing/Reactive,Premises
08/11/2016,Mears Ltd,584407,549.98,General Maintenance,General Maintenance,Premises
08/11/2016,Mears Ltd,584409,79.21,General Maintenance,Elec Testing/Reactive,Premises
08/11/2016,Mears Ltd,584409,476.08,General Maintenance,General Maintenance,Premises
08/11/2016,Mears Ltd,584409,59.25,Blocks Of Flat Repairs,General Maintenance,Premises
08/11/2016,Mears Ltd,584409,43.65,Knights Place Repairs & Maint,Knights Place,Premises
08/11/2016,Mears Ltd,584410,21.68,General Maintenance,Elec Testing/Reactive,Premises
08/11/2016,Mears Ltd,584410,484.70,General Maintenance,General Maintenance,Premises
08/11/2016,Mears Ltd,584410,39.28,Blocks Of Flat Repairs,General Maintenance,Premises
08/11/2016,Mears Ltd,584410,37.30,Knights Place Repairs & Maint,Knights Place,Premises
08/11/2016,Mears Ltd,584411,54.35,Repairs To Void Properties,Extralet,Premises
08/11/2016,Mears Ltd,584411,76.90,Reactive Repairs To Property,Extralet,Premises
08/11/2016,Mears Ltd,584411,21.73,Grass Cutting,Psl Properties,Premises
08/11/2016,Mears Ltd,584411,163.00,Reactive Repairs To Property,Psl Properties,Premises
08/11/2016,Mears Ltd,584412,131.12,General Maintenance,Elec Testing/Reactive,Premises
08/11/2016,Mears Ltd,584412,21.68,Blocks Of Flat Repairs,Elec Testing/Reactive,Premises
08/11/2016,Mears Ltd,584412,194.59,General Maintenance,General Maintenance,Premises
08/11/2016,Mears Ltd,584413,104.49,General Maintenance,Elec Testing/Reactive,Premises
08/11/2016,Mears Ltd,584413,470.78,General Maintenance,General Maintenance,Premises
08/11/2016,Mears Ltd,584413,86.10,Blocks Of Flat Repairs,General Maintenance,Premises
08/11/2016,Mears Ltd,584415,298.93,General Maintenance,General Maintenance,Premises
08/11/2016,Mears Ltd,584417,375.11,General Maintenance,General Maintenance,Premises
08/11/2016,Mears Ltd,584494,"1,607.44",General Maintenance,Repairs To Void Properties,Premises
08/11/2016,Mears Ltd,584497,21.68,General Maintenance,Elec Testing/Reactive,Premises
08/11/2016,Mears Ltd,584497,513.20,General Maintenance,General Maintenance,Premises
08/11/2016,Prime Time Recruitment,583318,241.78,Casuals Waged-Agency Staff,Agency Costs - Waste,Pay
08/11/2016,Prime Time Recruitment,583318,644.00,Casuals Waged-Agency Staff,Car Park Sweeping,Pay
08/11/2016,Prime Time Recruitment,583318,401.14,Casuals Waged-Agency Staff,Other Street Sweeping,Pay
08/11/2016,Professor T H Pennington Cbe Frse,583589,700.00,Consultants Fees,Commercial Section,Supplies & Services
08/11/2016,Recruitment Solutions (Sw) Ltd,579846,428.61,Casuals Waged-Agency Staff,Childrens Play Areas,Pay
08/11/2016,Robert Heath Heating Ltd,584502,156.32,General Maintenance,General Maintenance,Premises
08/11/2016,Robert Heath Heating Ltd,584502,"1,810.96",Gas Equip Replacement,General Maintenance,Premises
08/11/2016,Robert Heath Heating Ltd,584502,43.68,Repairs To Hand Back Prop,Psl Properties,Premises
08/11/2016,Robert Heath Heating Ltd,584502,111.28,General Maintenance,Repairs To Void Properties,Premises
08/11/2016,Robert Heath Heating Ltd,584502,160.84,Gas Equip Replacement,Repairs To Void Properties,Premises
08/11/2016,Ross & Roberts,584021,0.00,Bailiffs Fees,Revenues Recovery,Supplies & Services
08/11/2016,Sciprint Ltd,584302,"1,579.24",Stationery,Electoral Registration,Supplies & Services
08/11/2016,Southern Electric,582684,284.55,Electricity,Older Persons Accommodation,Premises
08/11/2016,Stalite Signs Ltd,584152,583.85,Marketing,Museum Shop,Supplies & Services
08/11/2016,The Best Connection Group Ltd,578851,"1,256.58",Casuals Waged-Agency Staff,Parks And Playing Fields,Pay
08/11/2016,The Best Connection Group Ltd,583352,714.21,Casuals Waged-Agency Staff,Materials Reclamation Facility,Pay
08/11/2016,The Best Connection Group Ltd,583359,397.38,Casuals Waged-Agency Staff,Materials Reclamation Facility,Pay
08/11/2016,The Best Connection Group Ltd,583376,472.56,Casuals Waged-Agency Staff,Materials Reclamation Facility,Pay
08/11/2016,The Best Connection Group Ltd,583800,826.98,Casuals Waged-Agency Staff,Parks And Playing Fields,Pay
08/11/2016,The Best Connection Group Ltd,583801,767.91,Casuals Waged-Agency Staff,Parks And Playing Fields,Pay
08/11/2016,Whistl Uk Ltd,584499,"1,129.52",Postage/Stamps,Mail,Supplies & Services
09/11/2016,100 Club Community Group,584513,"1,264.48",Miscellaneous Grants,Grants And Contributions,Supplies & Services
09/11/2016,A S Mooring Services Ltd,581232,213.00,Materials For Buoys,River Exe - Assets,Premises
09/11/2016,Adt Fire And Security,571336,296.00,Contract Payments,Strata,Supplies & Services
09/11/2016,Adt Fire And Security,583502,296.00,Central Alarm Service,St Nicholas Priory,Premises
09/11/2016,Ashfords,584701,"3,586.50",Consultants Fees,Major Projects,Supplies & Services
09/11/2016,Ats Euromaster Ltd,583442,874.13,Tyres,Materials Reclamation Facility,Transport
09/11/2016,B K Servicing,583364,212.77,Routine Maintenance,Graffiti Cleaning,Transport
09/11/2016,Berry Recruitment,578862,429.19,Casuals Waged-Agency Staff,Parks And Playing Fields,Pay
09/11/2016,Berry Recruitment,583811,399.23,Casuals Waged-Agency Staff,City Centre Sweeping,Pay
09/11/2016,Berry Recruitment,583812,399.23,Casuals Waged-Agency Staff,City Centre Sweeping,Pay
09/11/2016,Berry Recruitment,583814,429.19,Casuals Waged-Agency Staff,Parks And Playing Fields,Pay
09/11/2016,Berry Recruitment,583815,474.13,Casuals Waged-Agency Staff,City Centre Sweeping,Pay
09/11/2016,Berry Recruitment,583816,399.23,Casuals Waged-Agency Staff,City Centre Sweeping,Pay
09/11/2016,Berry Recruitment,583818,399.23,Casuals Waged-Agency Staff,City Centre Sweeping,Pay
09/11/2016,Berry Recruitment,583819,511.58,Casuals Waged-Agency Staff,City Centre Sweeping,Pay
09/11/2016,Bound And Gagged Ltd,582985,"4,522.24",Event Promotion,Exeter Corn Exchange,Supplies & Services
09/11/2016,Brian Shaw Concerts Ltd,582788,"6,266.47",Event Promotion,Exeter Corn Exchange,Supplies & Services
09/11/2016,Brook Street,584750,998.84,Temp.Contract-Agency Staff,Health & Safety Compliance,Pay
09/11/2016,Ciob,584289,270.00,Professional Subscriptions,Building Control Advice,Pay
09/11/2016,County Tyres,583084,256.00,Tyres,Parks And Playing Fields,Transport
09/11/2016,Cwvh New Village Hall,584514,"4,141.25",Grants Issued,Countess Wear - Village Hall,Supplies & Services
09/11/2016,D R Jones (Yeovil) Ltd,583585,"1,144.25",General Maintenance,General Maintenance,Premises
09/11/2016,Devon Norse Ltd,584355,442.25,Cleaning,Cctv Control Room - Assets,Premises
09/11/2016,Dodd Group (South) Ltd,584800,664.24,Electrical Testing Dwellings,Elec Testing/Reactive,Premises
09/11/2016,Dodd Group (South) Ltd,584801,664.24,Electrical Testing Dwellings,Elec Testing/Reactive,Premises
09/11/2016,Dodd Group (South) Ltd,584802,664.24,Electrical Testing Dwellings,Elec Testing/Reactive,Premises
09/11/2016,Dodd Group (South) Ltd,584803,581.21,Electrical Testing Dwellings,Elec Testing/Reactive,Premises
09/11/2016,E C Jones Ltd,583853,647.04,Display Expenses,Ramm,Supplies & Services
09/11/2016,Edf Energy Customers Ltd,584523,796.86,Electricity,Commercial Properties,Premises
09/11/2016,Epc Tickets,584809,337.25,Travel & Attraction Tickets,Exeter Visitor Information,Supplies & Services
09/11/2016,Equita Certificated Bailiffs,584510,75.00,Bailiffs Fees,Revenues Recovery,Supplies & Services
09/11/2016,Exeter Festival Of Food And Drink,584811,"5,000.00",Grants Issued,The Exeter Board,Supplies & Services
09/11/2016,Exeter Ymca Community Projects,584812,"5,495.00",Grants Issued,The Exeter Board,Supplies & Services
09/11/2016,Experian Ltd,584172,545.00,Experian,Nndr Collection,Supplies & Services
09/11/2016,F K Commercials Ltd,581440,337.81,Reactive Repairs,Green Waste Collection Service,Transport
09/11/2016,F K Commercials Ltd,583753,905.30,Reactive Repairs,City Centre Sweeping,Transport
09/11/2016,F K Commercials Ltd,583754,294.72,Reactive Repairs,Refuse Collection,Transport
09/11/2016,F K Commercials Ltd,583755,547.42,Reactive Repairs,Refuse Collection,Transport
09/11/2016,F K Commercials Ltd,583759,215.22,Accident Repairs,Green Waste Collection Service,Transport
09/11/2016,F K Commercials Ltd,583762,254.58,Reactive Repairs,Refuse Collection,Transport
09/11/2016,F K Commercials Ltd,583763,234.20,Reactive Repairs,Refuse Collection,Transport
09/11/2016,Glendale Countryside Ltd,580202,565.00,Sub-Contractors,Countryside Man - Assets,Premises
09/11/2016,Gullivers Truck Hire Ltd,583602,875.00,Fleet - Hire Costs,Refuse Collection,Transport
09/11/2016,Hako Machines Ltd,583350,281.25,Routine Maintenance,Mechanical Sweeping,Transport
09/11/2016,Hako Machines Ltd,583351,297.50,Routine Maintenance,Mechanical Sweeping,Transport
09/11/2016,Hako Machines Ltd,583353,552.52,Routine Maintenance,Mechanical Sweeping,Transport
09/11/2016,Hako Machines Ltd,583355,468.16,Routine Maintenance,Mechanical Sweeping,Transport
09/11/2016,Hako Machines Ltd,583357,391.24,Accident Repairs,Other Street Sweeping,Transport
09/11/2016,Hako Machines Ltd,583360,241.00,Reactive Repairs,Other Street Sweeping,Transport
09/11/2016,Hako Machines Ltd,583507,"1,835.61",Routine Maintenance,Mechanical Sweeping,Transport
09/11/2016,Masternaut (Uk) Ltd,569608,210.00,Routine Maintenance,Cash Collection,Transport
09/11/2016,Masternaut (Uk) Ltd,569613,210.00,Routine Maintenance,Parks Operational Overheads,Transport
09/11/2016,Masternaut (Uk) Ltd,583735,210.00,Routine Maintenance,Electricians,Transport
09/11/2016,Masternaut (Uk) Ltd,583739,210.00,Routine Maintenance,Other Street Sweeping,Transport
09/11/2016,Masternaut (Uk) Ltd,583740,210.00,Routine Maintenance,Customer Relations,Transport
09/11/2016,Masternaut (Uk) Ltd,583741,210.00,Routine Maintenance,Other Street Sweeping,Transport
09/11/2016,Masternaut (Uk) Ltd,583742,210.00,Routine Maintenance,Enforcement Team,Transport
09/11/2016,Masternaut (Uk) Ltd,583743,210.00,Routine Maintenance,Electricians,Transport
09/11/2016,Mears Ltd,584414,"3,464.19",Decs For Elderly & Disabled,Internal Decoration Prog,Premises
09/11/2016,Mears Ltd,584418,"2,485.77",General Maintenance,Repairs To Void Properties,Premises
09/11/2016,Mears Ltd,584495,"4,631.86",General Maintenance,General Maintenance,Premises
09/11/2016,Mig Security & Events Ltd,583993,"1,975.50",Security Patrol,Car Parks - Assets,Premises
09/11/2016,Mobile Auto Electrical Services,583670,392.00,Betterment,Enforcement Team,Transport
09/11/2016,Northgate Public Services (Uk) Ltd,582097,464.25,Software Licences/Support,Strata,Supplies & Services
09/11/2016,Northgate Public Services (Uk) Ltd,582099,918.61,Software Licences/Support,Strata,Supplies & Services
09/11/2016,Orsis (Uk) Limited,583648,850.20,Subscriptions,Customer Relations,Supplies & Services
09/11/2016,Playsafety Limited,584300,"1,010.00",Staff Training,Learning & Development,Pay
09/11/2016,Premier Park Ltd,584299,458.58,Longservice Awards,Human Resources,Pay
09/11/2016,Promenade Promotions (Prom-Prom) Ltd,583852,500.00,Event Promotion,Ramm,Supplies & Services
09/11/2016,Purchase Power,582767,526.19,Postage/Stamps,Exeter Corn Exchange,Supplies & Services
09/11/2016,REDACTED COMMERCIALLY SENSITIVE,584559,460.00,REDACTED COMMERCIALLY SENSITIVE,Dog & Enforcement Svcs,Supplies & Services
09/11/2016,Renault Trucks Southwest,583591,455.89,Reactive Repairs,Trade Refuse Collection,Transport
09/11/2016,Renault Trucks Southwest,583605,562.73,Reactive Repairs,Litter Bins,Transport
09/11/2016,Renault Trucks Southwest,583610,"1,891.11",Reactive Repairs,Parks And Playing Fields,Transport
09/11/2016,South West Water,582763,"2,030.32",Water,Public Conveniences - Assets,Premises
09/11/2016,Southern Electric,578556,315.79,Electricity,River Exe - Assets,Premises
09/11/2016,Southern Electric,582814,"1,152.57",Electricity,Exeter Corn Exchange,Premises
09/11/2016,Southern Electric,583011,898.00,Electricity,Ramm,Premises
09/11/2016,Stalite Signs Ltd,584151,251.30,Marketing,Museum Shop,Supplies & Services
09/11/2016,Strata Service Solutions Ltd,584112,"3,698.00",Payment To Strata,Telephones,Supplies & Services
09/11/2016,Strata Service Solutions Ltd,584360,"26,200.00",Payment To Strata,Customer Contact Platform,Supplies & Services
09/11/2016,Strata Service Solutions Ltd,584361,"20,396.00",Payment To Strata,Hr System,Supplies & Services
09/11/2016,Strata Service Solutions Ltd,584362,"7,845.66",Payment To Strata,Strata Contract Payment,Supplies & Services
09/11/2016,Strata Service Solutions Ltd,584824,"15,527.07",Payment To Strata,Efinancials V5,Supplies & Services
09/11/2016,Strutt + Parker Llp,584697,"12,500.00",Consultants Fees,Major Projects,Supplies & Services
09/11/2016,Teignmouth Harbour Commissions,579353,900.90,Marine Advice Contract,River Exe,Supplies & Services
09/11/2016,The Exeter Northcott Theatre Company,584818,"2,509.50",Travel & Attraction Tickets,Exeter Visitor Information,Supplies & Services
09/11/2016,The Oyster Partnership Ltd,584509,527.00,Temp.Contract-Agency Staff,Planning,Pay
09/11/2016,The Purple Company (Uk) Ltd,583083,211.55,"Clothing, Laundry, & Uniforms",Ramm,Supplies & Services
09/11/2016,The Two Moors Festival,584810,291.65,Travel & Attraction Tickets,Exeter Visitor Information,Supplies & Services
09/11/2016,Trustees Of J T Gibbs & Co Ltd (1989) P. Plan,573267,"3,125.00",Rents,River Exe - Assets,Premises
09/11/2016,Venn Group Ltd,584751,940.00,Temp.Contract-Agency Staff,Procurement,Pay
09/11/2016,W B Employment Ltd,583287,401.14,Casuals Waged-Agency Staff,Agency Costs - Waste,Pay
09/11/2016,W B Employment Ltd,583287,428.61,Casuals Waged-Agency Staff,Parks And Playing Fields,Pay
10/11/2016,3c Payment Uk Ltd,581900,900.40,Card Payment Charges,Car Parks,Supplies & Services
10/11/2016,Andyloos,584820,270.00,Special Events,Arts & Events,Supplies & Services
10/11/2016,Ashfords,583996,340.50,Consultants Fees,Major Projects,Supplies & Services
10/11/2016,Ashton Cleaning Services (Sw) Ltd,583653,314.00,Cleaning,Psl Properties,Premises
10/11/2016,Association Of Electoral Administrators,584913,285.00,Staff Training,Electoral Registration,Pay
10/11/2016,Atg Ltd,584854,332.62,Travel & Attraction Tickets,Exeter Visitor Information,Supplies & Services
10/11/2016,Atg Ltd,584898,387.49,Travel & Attraction Tickets,Exeter Visitor Information,Supplies & Services
10/11/2016,Atmosphere,584846,351.00,Shop Purchases,Exeter Visitor Information,Supplies & Services
10/11/2016,Aw Jenkinson Transport Ltd,584825,"1,470.00",Comingled Haulage Out,"Materials, Goods For Resale",Transport
10/11/2016,Backline Logistic Support,583775,404.41,Casuals Waged-Agency Staff,Agency Costs - Waste,Pay
10/11/2016,Berry Recruitment,584881,429.19,Casuals Waged-Agency Staff,Cemeteries - Operational,Pay
10/11/2016,Berry Recruitment,584882,275.15,Casuals Waged-Agency Staff,City Centre Sweeping,Pay
10/11/2016,Berry Recruitment,584884,399.23,Casuals Waged-Agency Staff,City Centre Sweeping,Pay
10/11/2016,Berry Recruitment,584888,429.19,Casuals Waged-Agency Staff,Parks And Playing Fields,Pay
10/11/2016,Bidvest Foodservice,584728,279.32,Food,Exeter Corn Exchange,Supplies & Services
10/11/2016,Bsw Consulting Ltd,584730,520.00,Contract Payments,Structural Repairs,Supplies & Services
10/11/2016,Bsw Consulting Ltd,584731,520.00,Contract Payments,Structural Repairs,Supplies & Services
10/11/2016,Bsw Consulting Ltd,584733,495.00,Contract Payments,Structural Repairs,Supplies & Services
10/11/2016,Bsw Consulting Ltd,584735,495.00,Contract Payments,Programmed Re-Roofing,Supplies & Services
10/11/2016,Bsw Consulting Ltd,584736,520.00,Contract Payments,Structural Repairs,Supplies & Services
10/11/2016,Bsw Consulting Ltd,584737,325.00,Contract Payments,Structural Repairs,Supplies & Services
10/11/2016,Bsw Consulting Ltd,584738,850.00,Contract Payments,Structural Repairs,Supplies & Services
10/11/2016,Capita Business Services,583857,"4,000.00",It General,General Management,Support Services
10/11/2016,Carmen Marin Martinez,585086,262.50,Project Work,Ramm,Supplies & Services
10/11/2016,Concept Informatics Ltd ,584926,739.69,Casuals Waged-Agency Staff,Agency Costs - Waste,Pay
10/11/2016,Devon County Council,584512,250.00,Grants Issued,Community Inclusion & Involv'T,Supplies & Services
10/11/2016,Devon Tree Services Ltd,583745,"1,907.20",Hra Shrubs & Trees - Communal,Estate Maintenance,Premises
10/11/2016,Devon Tree Services Ltd,583746,357.60,Hra Shrubs & Trees - Communal,Estate Maintenance,Premises
10/11/2016,Devon Tree Services Ltd,584175,476.80,Sub-Contractors,Arboricultural - Assets,Premises
10/11/2016,Dolphin Lifts South West,583456,"5,410.00",Contract Payments,Adaptations,Supplies & Services
10/11/2016,Euro Lifts Ltd,584358,437.26,Lift Maintenance,Service Contracts,Premises
10/11/2016,Euro Lifts Ltd,584359,398.88,Lift Maintenance,Service Contracts,Premises
10/11/2016,Frb Ltd,584831,723.50,Play Ground Repair/Inspect/Mnt,Childrens Play Areas,Premises
10/11/2016,Frb Ltd,584891,268.00,Play Ground Repair/Inspect/Mnt,Childrens Play Areas,Premises
10/11/2016,Gae Smith Holdings Ltd T/A Casepak,584567,"4,758.40",Processing Comingled Materials,"Materials, Goods For Resale",Supplies & Services
10/11/2016,Gap Personnel,580655,916.24,Casuals Waged-Agency Staff,Other Street Sweeping,Pay
10/11/2016,Gap Personnel,580655,80.70,Casuals Waged-Agency Staff,Public Conveniences,Pay
10/11/2016,Gap Personnel,580663,398.12,Casuals Waged-Agency Staff,Materials Reclamation Facility,Pay
10/11/2016,Gap Personnel,580684,430.12,Casuals Waged-Agency Staff,Cemeteries - Operational,Pay
10/11/2016,Gap Personnel,580684,688.64,Casuals Waged-Agency Staff,Other Street Sweeping,Pay
10/11/2016,Gap Personnel,584741,398.12,Casuals Waged-Agency Staff,Materials Reclamation Facility,Pay
10/11/2016,Gap Personnel,584742,430.12,Casuals Waged-Agency Staff,Cemeteries - Operational,Pay
10/11/2016,Gap Personnel,584742,785.48,Casuals Waged-Agency Staff,Other Street Sweeping,Pay
10/11/2016,Gap Personnel,584743,694.82,Casuals Waged-Agency Staff,Other Street Sweeping,Pay
10/11/2016,Gap Personnel,584747,317.42,Casuals Waged-Agency Staff,Other Street Sweeping,Pay
10/11/2016,Gap Personnel,584747,430.12,Casuals Waged-Agency Staff,Parks And Playing Fields,Pay
10/11/2016,Gap Personnel,584749,518.12,Casuals Waged-Agency Staff,Other Street Sweeping,Pay
10/11/2016,Gap Personnel,584749,209.82,Casuals Waged-Agency Staff,Public Conveniences,Pay
10/11/2016,Glen Cleaning,584850,368.88,Cleaning,Underground Passages,Premises
10/11/2016,Glen Cleaning,584923,"6,087.95",Cleaning,Civic Centre,Premises
10/11/2016,H & S Transport Ltd,584158,"2,502.50",Sub-Contractors,Land Drainage Water C - Assets,Premises
10/11/2016,H & S Transport Ltd,584185,604.00,Sub-Contractors,Footpaths Maint - Assets,Premises
10/11/2016,Ian Hutchcroft,583002,"1,372.60",Contract Payments,Rennes House Structural Works,Supplies & Services
10/11/2016,James Andrews Recruitment Solutions,576765,497.65,Temp.Contract-Agency Staff,Development Team,Pay
10/11/2016,Lyreco Uk Ltd,584316,209.90,Stationery,Corporate Support Unit,Supplies & Services
10/11/2016,Lyreco Uk Ltd,584319,243.40,Stationery,Other Street Sweeping,Supplies & Services
10/11/2016,Lyreco Uk Ltd,584326,304.25,Stationery,Other Street Sweeping,Supplies & Services
10/11/2016,Mears Ltd,584408,113.78,General Maintenance,Elec Testing/Reactive,Premises
10/11/2016,Mears Ltd,584408,252.78,General Maintenance,General Maintenance,Premises
10/11/2016,Mears Ltd,584408,48.82,Blocks Of Flat Repairs,General Maintenance,Premises
10/11/2016,Mears Ltd,584804,"4,550.73",Decs For Elderly & Disabled,Internal Decoration Prog,Premises
10/11/2016,Mears Ltd,584805,65.04,General Maintenance,Elec Testing/Reactive,Premises
10/11/2016,Mears Ltd,584805,21.68,Blocks Of Flat Repairs,Elec Testing/Reactive,Premises
10/11/2016,Mears Ltd,584805,198.69,General Maintenance,General Maintenance,Premises
10/11/2016,Mears Ltd,584806,149.14,General Maintenance,Elec Testing/Reactive,Premises
10/11/2016,Mears Ltd,584806,415.74,General Maintenance,General Maintenance,Premises
10/11/2016,Mears Ltd,584806,88.97,Blocks Of Flat Repairs,General Maintenance,Premises
10/11/2016,Mears Ltd,584806,41.94,Reactive Repairs To Property,Psl Properties,Premises
10/11/2016,Mears Ltd,585039,"6,912.49",General Maintenance,Repairs To Void Properties,Premises
10/11/2016,Mears Ltd,585040,61.65,General Maintenance,Elec Testing/Reactive,Premises
10/11/2016,Mears Ltd,585040,"1,335.42",General Maintenance,General Maintenance,Premises
10/11/2016,Mears Ltd,585040,108.90,Blocks Of Flat Repairs,General Maintenance,Premises
10/11/2016,Mears Ltd,585041,"8,755.17",General Maintenance,Repairs To Void Properties,Premises
10/11/2016,Mears Ltd,585042,515.83,General Maintenance,Elec Testing/Reactive,Premises
10/11/2016,Mears Ltd,585042,"2,594.76",General Maintenance,General Maintenance,Premises
10/11/2016,Mears Ltd,585042,144.26,Floor Tiles,General Maintenance,Premises
10/11/2016,Mears Ltd,585043,45.38,General Maintenance,Elec Testing/Reactive,Premises
10/11/2016,Mears Ltd,585043,922.72,General Maintenance,General Maintenance,Premises
10/11/2016,Mears Ltd,585043,21.98,Blocks Of Flat Repairs,General Maintenance,Premises
10/11/2016,Mears Ltd,585044,"3,626.43",General Maintenance,General Maintenance,Premises
10/11/2016,Mears Ltd,585044,107.48,Blocks Of Flat Repairs,General Maintenance,Premises
10/11/2016,Mears Ltd,585044,193.80,Sanctuary Scheme,Resettlement Strategy,Supplies & Services
10/11/2016,Mears Ltd,585045,296.90,Electrical Testing,Elec Testing/Reactive,Premises
10/11/2016,Mears Ltd,585045,837.97,General Maintenance,General Maintenance,Premises
10/11/2016,Mears Ltd,585045,557.32,Blocks Of Flat Repairs,General Maintenance,Premises
10/11/2016,Mears Ltd,585046,120.95,General Maintenance,Elec Testing/Reactive,Premises
10/11/2016,Mears Ltd,585046,"1,009.84",General Maintenance,General Maintenance,Premises
10/11/2016,Mears Ltd,585047,"2,290.22",General Maintenance,General Maintenance,Premises
10/11/2016,Mears Ltd,585047,142.04,Blocks Of Flat Repairs,General Maintenance,Premises
10/11/2016,Mears Ltd,585048,103.19,General Maintenance,Elec Testing/Reactive,Premises
10/11/2016,Mears Ltd,585048,729.91,General Maintenance,General Maintenance,Premises
10/11/2016,Mears Ltd,585048,21.68,Blocks Of Flat Repairs,General Maintenance,Premises
10/11/2016,Mears Ltd,585049,229.96,General Maintenance,Elec Testing/Reactive,Premises
10/11/2016,Mears Ltd,585049,"1,094.11",General Maintenance,General Maintenance,Premises
10/11/2016,Mears Ltd,585049,81.80,Blocks Of Flat Repairs,General Maintenance,Premises
10/11/2016,Mears Ltd,585050,"1,892.85",General Maintenance,General Maintenance,Premises
10/11/2016,Mears Ltd,585050,242.70,Glazing,General Maintenance,Premises
10/11/2016,Mears Ltd,585051,223.42,General Maintenance,Elec Testing/Reactive,Premises
10/11/2016,Mears Ltd,585051,"1,071.82",General Maintenance,General Maintenance,Premises
10/11/2016,Mears Ltd,585052,"3,116.08",General Maintenance,General Maintenance,Premises
10/11/2016,Mig Security & Events Ltd,583944,615.43,Security Patrol,Car Parks - Assets,Premises
10/11/2016,Mig Security & Events Ltd,583945,"1,921.50",Security Patrol,Car Parks - Assets,Premises
10/11/2016,Mig Security & Events Ltd,583995,478.00,Security Patrol,Car Parks - Assets,Premises
10/11/2016,Mr Derek Lamb,584912,"5,035.00",Event Promotion,Exeter Corn Exchange,Supplies & Services
10/11/2016,Nute Plumbing Services Ltd,583646,"4,658.70",Contract Payments,Adaptations,Supplies & Services
10/11/2016,Patronus Security Uk Ltd,584911,"1,260.00",Security Patrol,Vehicles Licensing,Premises
10/11/2016,Pell Frischmann Consultants Ltd,584568,375.00,Contract Payments,Structural Repairs,Supplies & Services
10/11/2016,Pertemps Recruitment Partnership Ltd,578938,665.84,Temp.Contract-Agency Staff,Planning,Pay
10/11/2016,Puxley Ltd,584836,"1,179.00",Special Events,Arts & Events,Supplies & Services
10/11/2016,Randall Simmonds,584614,"1,650.00",Grants Issued,Rennes House,Supplies & Services
10/11/2016,Randall Simmonds,584615,"2,100.00",Grants Issued,Rennes House,Supplies & Services
10/11/2016,Recruitment Solutions (Sw) Ltd,584902,236.29,Casuals Waged-Agency Staff,Agency Costs - Waste,Pay
10/11/2016,Rock Solid Production Events Ltd,584823,"8,774.34",Event Promotion,Exeter Corn Exchange,Supplies & Services
10/11/2016,Schooling Building Contractor Ltd,584827,"17,869.84",Contract Payments,Common Area Footpth/Wall Imps,Supplies & Services
10/11/2016,Schooling Building Contractor Ltd,584828,"25,073.43",Contract Payments,Common Area Footpth/Wall Imps,Supplies & Services
10/11/2016,South West Water,585079,"1,029.60",Electricity,Livestock/Matford Centre,Premises
10/11/2016,Southern Electric,582839,890.65,Electricity,Car Parks - Assets,Premises
10/11/2016,Southern Electric,582842,"1,882.13",Electricity,Car Parks - Assets,Premises
10/11/2016,Southern Electric,582843,"1,328.34",Electricity,Car Parks - Assets,Premises
10/11/2016,Southern Electric,582967,362.58,Electricity,Belle Isle Depot  - Assets,Premises
10/11/2016,Southern Electric,582968,241.24,Electricity,Facilities Management - Assets,Premises
10/11/2016,Southern Electric,582971,259.27,Electricity,Facilities Management - Assets,Premises
10/11/2016,Southern Electric,582972,704.47,Electricity,Facilities Management - Assets,Premises
10/11/2016,Southern Electric,582976,456.33,Electricity,Exeter Visitor Information,Premises
10/11/2016,Spektrix Ltd,584908,"1,367.45",Event Promotion,Exeter Corn Exchange,Supplies & Services
10/11/2016,Star Editions Ltd,584859,934.24,Shop Purchases,Exeter Visitor Information,Supplies & Services
10/11/2016,Strata Service Solutions Ltd,584841,"19,670.33",Payment To Strata,Strata - Idox,Supplies & Services
10/11/2016,Tangent Security Ltd,584878,"2,688.75",Special Events,Arts & Events,Supplies & Services
10/11/2016,Teignbridge District Council,581111,"7,824.53",Non-Contractual Overtime,Customer Service Centre,Pay
10/11/2016,The Best Connection Group Ltd,584754,397.38,Casuals Waged-Agency Staff,Materials Reclamation Facility,Pay
10/11/2016,The Best Connection Group Ltd,584755,359.79,Casuals Waged-Agency Staff,Materials Reclamation Facility,Pay
10/11/2016,The Best Connection Group Ltd,584756,735.69,Casuals Waged-Agency Staff,Parks And Playing Fields,Pay
10/11/2016,Transplant Mastertrain,583495,644.00,Staff Training,Learning & Development,Pay
10/11/2016,Trump Engineering Ltd,584916,224.00,Maintenance Of Equipment,Materials Reclamation Facility,Supplies & Services
10/11/2016,Ultimate Cleaning South West,584048,498.27,Equipment Tools And Materials,Cleansing Overheads,Supplies & Services
10/11/2016,University Of Plymouth,584687,"2,100.00",Staff Training,Learning & Development,Pay
10/11/2016,University Of Plymouth,584688,"2,100.00",Staff Training,Learning & Development,Pay
10/11/2016,W B Employment Ltd,581450,730.84,Casuals Waged-Agency Staff,Agency Costs - Waste,Pay
10/11/2016,W B Employment Ltd,581450,174.45,Temp.Contract-Agency Staff,Human Resources,Pay
10/11/2016,W B Employment Ltd,581450,428.61,Casuals Waged-Agency Staff,Other Street Sweeping,Pay
10/11/2016,Westpointe Ltd,584830,"43,255.00",Contract Payments,Common Area Footpth/Wall Imps,Supplies & Services
10/11/2016,Wider Plan Ltd,584757,24.64,Commission,Payroll,Supplies & Services
11/11/2016,Aa Signs,585097,683.00,Special Events,Arts & Events,Supplies & Services
11/11/2016,Actavo,584159,885.30,Materials,Parks And Playing Fields,Supplies & Services
11/11/2016,Adt Fire And Security,537519,764.86,Aim Service & Maintenance,Exeter Corn Exchange,Premises
11/11/2016,Alpha Logistics,585150,105.00,Postage/Stamps,Civic Centre,Supplies & Services
11/11/2016,Alpha Logistics,585150,21.00,Other Expenses,Exeter Corn Exchange,Supplies & Services
11/11/2016,Alpha Logistics,585150,21.00,Other Expenses,Livestock/Matford Centre,Supplies & Services
11/11/2016,Alpha Logistics,585150,105.00,Postage/Stamps,Oakwood House Administrative C,Supplies & Services
11/11/2016,Archant South West,578744,300.00,Marketing,Ramm,Supplies & Services
11/11/2016,Ashton Cleaning Services (Sw) Ltd,584144,624.00,Cleaning,Glencoe,Premises
11/11/2016,Avoncrop Amenity Products,583979,"1,858.07",Materials,Parks And Playing Fields,Supplies & Services
11/11/2016,Beyond The Barricade Ltd,585080,"1,237.39",Event Promotion,Exeter Corn Exchange,Supplies & Services
11/11/2016,Brightsea Ltd,579888,"2,863.00",Publications/Leaflets,Ramm,Supplies & Services
11/11/2016,Bsw Consulting Ltd,584734,495.00,Contract Payments,Reroofing Works Shilhay,Supplies & Services
11/11/2016,Charlie Watts,585100,700.00,Special Events,Arts & Events,Supplies & Services
11/11/2016,Creditcall Communications Ltd,585163,729.59,Card Payment Charges,Car Parks - Assets,Supplies & Services
11/11/2016,D R Jones (Yeovil) Ltd,585135,456.68,Planned Rewires,Prog'D Elec Re-Wiring General,Supplies & Services
11/11/2016,D R Jones (Yeovil) Ltd,585136,"2,988.77",Contract Payments,Bathroom Replacements,Supplies & Services
11/11/2016,D R Jones (Yeovil) Ltd,585137,"5,055.56",Contract Payments,Kitchen Replacements,Supplies & Services
11/11/2016,D R Jones (Yeovil) Ltd,585138,"3,331.25",Contract Payments,Bathroom Replacements,Supplies & Services
11/11/2016,David Garner Photography,579546,840.00,Photographic Contract/Work,Ramm,Supplies & Services
11/11/2016,Dickens Showrooms Ltd,578739,295.00,Grant,Syrian Resettlement Scheme,Income
11/11/2016,E.On   (Electricity),580434,249.26,Electricity,"Museum Store, Exton Road",Premises
11/11/2016,E.On   (Electricity),585108,"1,662.14",Electricity,Livestock/Matford Centre,Premises
11/11/2016,Earlsmere Limited,583977,335.00,Stationery,Parks And Playing Fields,Supplies & Services
11/11/2016,Edward A Savory Fuller,585095,"1,200.00",Special Events,Arts & Events,Supplies & Services
11/11/2016,Equita Certificated Bailiffs,585131,20.00,Bailiffs Fees,Revenues Recovery,Supplies & Services
11/11/2016,Gordon Morris Ltd,584042,310.00,Licences,Ramm,Supplies & Services
11/11/2016,Gta Music Events,585249,"2,076.38",Event Promotion,Exeter Corn Exchange,Supplies & Services
11/11/2016,Inform Cpi Ltd,585110,"2,300.00",Software Licences/Support,Nndr Collection,Supplies & Services
11/11/2016,Intelligent Data Systems (Uk) Ltd,585161,275.50,Drivers Licences - 1 Year,Vehicles Licensing,Income
11/11/2016,International Institute For Conservation,583000,360.00,Subscriptions,Ramm,Supplies & Services
11/11/2016,Iola Weir,585091,"1,810.00",Special Events,Arts & Events,Supplies & Services
11/11/2016,Kingcombe Aquacare Ltd,584571,"2,275.00",Sub-Contractors,Canal - Assets,Premises
11/11/2016,Kingcombe Aquacare Ltd,584572,"6,372.10",Sub-Contractors,Canal - Assets,Premises
11/11/2016,Kingsdown,581898,565.00,Printing,Devon Home Choice,Supplies & Services
11/11/2016,Main Street Signs,584576,704.00,Sub-Contractors,Street Naming - Assets,Premises
11/11/2016,Mears Ltd,584498,65.04,General Maintenance,Elec Testing/Reactive,Premises
11/11/2016,Mears Ltd,584498,284.98,General Maintenance,General Maintenance,Premises
11/11/2016,Mears Ltd,584498,75.72,Blocks Of Flat Repairs,General Maintenance,Premises
11/11/2016,Mears Ltd,585038,"5,478.58",General Maintenance,Repairs To Void Properties,Premises
11/11/2016,Mears Ltd,585054,"1,625.03",General Maintenance,General Maintenance,Premises
11/11/2016,Mears Ltd,585054,293.76,Glazing,General Maintenance,Premises
11/11/2016,Mears Ltd,585055,573.36,General Maintenance,General Maintenance,Premises
11/11/2016,Mears Ltd,585055,75.19,Blocks Of Flat Repairs,General Maintenance,Premises
11/11/2016,Mike Shelston,584315,810.00,Countryside Topping/Cutting,Countryside Man - Assets,Premises
11/11/2016,Miss Rebecca Taylor,584525,"2,000.00",Solicitors And Legal Fees/Lics,Knights Place,Supplies & Services
11/11/2016,Mitie Property Services,584196,573.00,Sub-Contractors,Signs & Sundries - Assets,Premises
11/11/2016,Morgan Hunt Uk Ltd,584745,820.04,Temp.Contract-Agency Staff,Revenues Recovery,Pay
11/11/2016,Morgan Hunt Uk Ltd,584746,"1,000.00",Temp.Contract-Agency Staff,Revenues Recovery,Pay
11/11/2016,Mr Trevor Ward,584829,650.00,Solicitors And Legal Fees/Lics,Planning,Supplies & Services
11/11/2016,Naome R Glanville,582802,400.00,Consultants Fees,Ramm,Supplies & Services
11/11/2016,P Harvey,584838,"1,000.00",Special Events,Arts & Events,Supplies & Services
11/11/2016,Rebecca Savory,584883,627.00,Special Events,Arts & Events,Supplies & Services
11/11/2016,Ross & Roberts,584589,0.00,Bailiffs Fees,Revenues Recovery,Supplies & Services
11/11/2016,Samuel J Pike,585089,700.00,Special Events,Arts & Events,Supplies & Services
11/11/2016,Scheidt & Bachmann (Uk) Ltd,583973,247.50,Maintenance Of Equipment,Car Parks,Supplies & Services
11/11/2016,Simon Bastone Associates Ltd,585101,450.00,Special Events,Arts & Events,Supplies & Services
11/11/2016,Smart Solutions,560523,538.20,Temp.Contract-Agency Staff,Vehicles Licensing,Pay
11/11/2016,South West Water,582766,654.13,Water,Belle Isle Depot  - Assets,Premises
11/11/2016,South West Water,582828,414.23,Water,Allotments - Assets,Premises
11/11/2016,South West Water,582834,795.05,Water,Mrf Premises Costs,Premises
11/11/2016,South West Water,583013,944.55,Trade Effluent Charges,Refuse Collection,Premises
11/11/2016,Southern Electric,582833,213.13,Electricity,Car Parks - Assets,Premises
11/11/2016,Southern Electric,582837,942.98,Electricity,Car Parks - Assets,Premises
11/11/2016,Southern Electric,582974,733.25,Electricity,Oakwood House Premises Costs,Premises
11/11/2016,Southern Electric,583220,"1,375.33",Electricity,Car Parks - Assets,Premises
11/11/2016,Streetmaster (South Wales) Ltd,584897,850.00,Sub-Contractors,Parks & Playing Field - Assets,Premises
11/11/2016,Tim Pestridge Photography,582790,210.00,Photographic Contract/Work,Ramm,Supplies & Services
11/11/2016,Venn Group Ltd,584845,"1,471.36",Temp.Contract-Agency Staff,Legal Services,Pay
11/11/2016,Venn Group Ltd,584853,690.00,Temp.Contract-Agency Staff,Legal Services,Pay
11/11/2016,Venn Group Ltd,584856,"1,471.36",Temp.Contract-Agency Staff,Legal Services,Pay
11/11/2016,W B Employment Ltd,583838,318.71,Casuals Waged-Agency Staff,Agency Costs - Waste,Pay
11/11/2016,W B Employment Ltd,583838,87.92,Casuals Waged-Agency Staff,Parks And Playing Fields,Pay
11/11/2016,Walcon Marine Ltd,584876,"3,243.50",Sub-Contractors,Canal Pontoon,Premises
11/11/2016,Young Devon,583841,"24,125.00",Youngpersons Mentalhealth Post,Resettlement Strategy,Supplies & Services
14/11/2016,28 Quest Ltd,585337,"3,362.00",Staff Training,Learning & Development,Pay
14/11/2016,4 All Of Us,584821,270.84,Conference/Seminars Costs,Chief Executive & Growth Dir,Supplies & Services
14/11/2016,4 All Of Us,584821,437.51,Conference/Seminars Costs,Exeter City Futures,Supplies & Services
14/11/2016,A S Mooring Services Ltd,585158,"4,422.95",Maintenance Of Buoys,River Exe - Assets,Premises
14/11/2016,Adecco Uk Ltd,584518,412.50,Temp.Contract-Agency Staff,Customer Relations,Pay
14/11/2016,Allstar Business Solutions,585251,186.44,Motor Fuel,Canal,Transport
14/11/2016,Allstar Business Solutions,585251,374.59,Motor Fuel,Car Park Sweeping,Transport
14/11/2016,Allstar Business Solutions,585251,266.37,Motor Fuel,Cash Collection,Transport
14/11/2016,Allstar Business Solutions,585251,212.33,Motor Fuel,Cemeteries - Operational,Transport
14/11/2016,Allstar Business Solutions,585251,38.10,Motor Fuel,Cleansing Overheads,Transport
14/11/2016,Allstar Business Solutions,585251,133.28,Motor Fuel,Development Team,Transport
14/11/2016,Allstar Business Solutions,585251,134.20,Motor Fuel,Dog Bins,Transport
14/11/2016,Allstar Business Solutions,585251,48.39,Motor Fuel,Electricians,Transport
14/11/2016,Allstar Business Solutions,585251,134.75,Motor Fuel,Enforcement Team,Transport
14/11/2016,Allstar Business Solutions,585251,61.82,Motor Fuel,General Environmental Services,Transport
14/11/2016,Allstar Business Solutions,585251,145.94,Motor Fuel,Graffiti Cleaning,Transport
14/11/2016,Allstar Business Solutions,585251,"1,795.83",Motor Fuel,Green Waste Collection Service,Transport
14/11/2016,Allstar Business Solutions,585251,132.29,Motor Fuel,Housing Cleansing Round,Transport
14/11/2016,Allstar Business Solutions,585251,151.11,Motor Fuel,Litter Bins,Transport
14/11/2016,Allstar Business Solutions,585251,185.97,Motor Fuel,Materials Reclamation Facility,Transport
14/11/2016,Allstar Business Solutions,585251,221.60,Motor Fuel,Mayoralty,Transport
14/11/2016,Allstar Business Solutions,585251,"1,313.43",Motor Fuel,Mechanical Sweeping,Transport
14/11/2016,Allstar Business Solutions,585251,"1,705.85",Motor Fuel,Other Street Sweeping,Transport
14/11/2016,Allstar Business Solutions,585251,"1,739.57",Motor Fuel,Parks And Playing Fields,Transport
14/11/2016,Allstar Business Solutions,585251,847.11,Motor Fuel,Parks Operational Overheads,Transport
14/11/2016,Allstar Business Solutions,585251,78.83,Motor Fuel,Planning,Transport
14/11/2016,Allstar Business Solutions,585251,129.14,Motor Fuel,Property Assets - Builders,Transport
14/11/2016,Allstar Business Solutions,585251,104.94,Motor Fuel,Ramm,Transport
14/11/2016,Allstar Business Solutions,585251,409.02,Motor Fuel,Reactive Team,Transport
